{"text_format":"3","workbook":"xlsx","n_sheets":2,"sheets":["Розклад занять","Список занять"],"not_rendered":{"defined_names":17},"read":"whole","date_system":"1900"}

{"sheet":"Розклад занять","index":0,"n_rows":56,"n_cols":9,"rows_kept":56,"merged":[[0,1,1,5],[0,8,1,8]]}
[null,"РОЗКЛАД ЗАНЯТЬ",{"$nulls":4},"ПОЧАТОК РОЗКЛАДУ","ПРОМІЖОК ЧАСУ","Список занять"]
[{"$nulls":6},"08:00:00","15 ХВ"]
[null,"ЧАС","НЕДІЛЯ","ПОНЕДІЛОК","ВІВТОРОК","СЕРЕДА","ЧЕТВЕР","П’ЯТНИЦЯ","СУБОТА"]
[null,{"$f":"ПочатокРозкладу","v":"08:00:00"},{"$f":"IFERROR(INDEX(СписокЗанять[],MATCH(SUMPRODUCT((СписокЗанять[ДЕНЬ]=РозкладЗанять[[#Headers],[НЕДІЛЯ]])*(ROUNDDOWN($B4,10)>=ROUNDDOWN(СписокЗанять[ЧАС ПОЧАТКУ],10))*($B4<=СписокЗанять[ЧАС ЗАВЕРШЕННЯ]),СписокЗанять[УНІКАЛЬНІ]),СписокЗанять[УНІКАЛЬНІ],0),2),0)","v":0},{"$f":"IFERROR(INDEX(СписокЗанять[],MATCH(SUMPRODUCT((СписокЗанять[ДЕНЬ]=РозкладЗанять[[#Headers],[ПОНЕДІЛОК]])*(ROUNDDOWN($B4,10)>=ROUNDDOWN(СписокЗанять[ЧАС ПОЧАТКУ],10))*($B4<=СписокЗанять[ЧАС ЗАВЕРШЕННЯ]),СписокЗанять[УНІКАЛЬНІ]),СписокЗанять[УНІКАЛЬНІ],0),2),0)","v":0},{"$f":"IFERROR(INDEX(СписокЗанять[],MATCH(SUMPRODUCT((СписокЗанять[ДЕНЬ]=РозкладЗанять[[#Headers],[ВІВТОРОК]])*(ROUNDDOWN($B4,10)>=ROUNDDOWN(СписокЗанять[ЧАС ПОЧАТКУ],10))*($B4<=СписокЗанять[ЧАС ЗАВЕРШЕННЯ]),СписокЗанять[УНІКАЛЬНІ]),СписокЗанять[УНІКАЛЬНІ],0),2),0)","v":0},{"$f":"IFERROR(INDEX(СписокЗанять[],MATCH(SUMPRODUCT((СписокЗанять[ДЕНЬ]=РозкладЗанять[[#Headers],[СЕРЕДА]])*(ROUNDDOWN($B4,10)>=ROUNDDOWN(СписокЗанять[ЧАС ПОЧАТКУ],10))*($B4<=СписокЗанять[ЧАС ЗАВЕРШЕННЯ]),СписокЗанять[УНІКАЛЬНІ]),СписокЗанять[УНІКАЛЬНІ],0),2),0)","v":0},{"$f":"IFERROR(INDEX(СписокЗанять[],MATCH(SUMPRODUCT((СписокЗанять[ДЕНЬ]=РозкладЗанять[[#Headers],[ЧЕТВЕР]])*(ROUNDDOWN($B4,10)>=ROUNDDOWN(СписокЗанять[ЧАС ПОЧАТКУ],10))*($B4<=СписокЗанять[ЧАС ЗАВЕРШЕННЯ]),СписокЗанять[УНІКАЛЬНІ]),СписокЗанять[УНІКАЛЬНІ],0),2),0)","v":0},{"$f":"IFERROR(INDEX(СписокЗанять[],MATCH(SUMPRODUCT((СписокЗанять[ДЕНЬ]=РозкладЗанять[[#Headers],[П’ЯТНИЦЯ]])*(ROUNDDOWN($B4,10)>=ROUNDDOWN(СписокЗанять[ЧАС ПОЧАТКУ],10))*($B4<=СписокЗанять[ЧАС ЗАВЕРШЕННЯ]),СписокЗанять[УНІКАЛЬНІ]),СписокЗанять[УНІКАЛЬНІ],0),2),0)","v":0},{"$f":"IFERROR(INDEX(СписокЗанять[],MATCH(SUMPRODUCT((СписокЗанять[ДЕНЬ]=РозкладЗанять[[#Headers],[СУБОТА]])*(ROUNDDOWN($B4,10)>=ROUNDDOWN(СписокЗанять[ЧАС ПОЧАТКУ],10))*($B4<=СписокЗанять[ЧАС ЗАВЕРШЕННЯ]),СписокЗанять[УНІКАЛЬНІ]),СписокЗанять[УНІКАЛЬНІ],0),2),0)","v":0}]
[null,{"$f":"B4+Приріст","v":"08:15:00"},{"$f":"IFERROR(INDEX(СписокЗанять[],MATCH(SUMPRODUCT((СписокЗанять[ДЕНЬ]=РозкладЗанять[[#Headers],[НЕДІЛЯ]])*(ROUNDDOWN($B5,10)>=ROUNDDOWN(СписокЗанять[ЧАС ПОЧАТКУ],10))*($B5<=СписокЗанять[ЧАС ЗАВЕРШЕННЯ]),СписокЗанять[УНІКАЛЬНІ]),СписокЗанять[УНІКАЛЬНІ],0),2),0)","v":0},{"$f":"IFERROR(INDEX(СписокЗанять[],MATCH(SUMPRODUCT((СписокЗанять[ДЕНЬ]=РозкладЗанять[[#Headers],[ПОНЕДІЛОК]])*(ROUNDDOWN($B5,10)>=ROUNDDOWN(СписокЗанять[ЧАС ПОЧАТКУ],10))*($B5<=СписокЗанять[ЧАС ЗАВЕРШЕННЯ]),СписокЗанять[УНІКАЛЬНІ]),СписокЗанять[УНІКАЛЬНІ],0),2),0)","v":"АЛГ"},{"$f":"IFERROR(INDEX(СписокЗанять[],MATCH(SUMPRODUCT((СписокЗанять[ДЕНЬ]=РозкладЗанять[[#Headers],[ВІВТОРОК]])*(ROUNDDOWN($B5,10)>=ROUNDDOWN(СписокЗанять[ЧАС ПОЧАТКУ],10))*($B5<=СписокЗанять[ЧАС ЗАВЕРШЕННЯ]),СписокЗанять[УНІКАЛЬНІ]),СписокЗанять[УНІКАЛЬНІ],0),2),0)","v":0},{"$f":"IFERROR(INDEX(СписокЗанять[],MATCH(SUMPRODUCT((СписокЗанять[ДЕНЬ]=РозкладЗанять[[#Headers],[СЕРЕДА]])*(ROUNDDOWN($B5,10)>=ROUNDDOWN(СписокЗанять[ЧАС ПОЧАТКУ],10))*($B5<=СписокЗанять[ЧАС ЗАВЕРШЕННЯ]),СписокЗанять[УНІКАЛЬНІ]),СписокЗанять[УНІКАЛЬНІ],0),2),0)","v":"АЛГ"},{"$f":"IFERROR(INDEX(СписокЗанять[],MATCH(SUMPRODUCT((СписокЗанять[ДЕНЬ]=РозкладЗанять[[#Headers],[ЧЕТВЕР]])*(ROUNDDOWN($B5,10)>=ROUNDDOWN(СписокЗанять[ЧАС ПОЧАТКУ],10))*($B5<=СписокЗанять[ЧАС ЗАВЕРШЕННЯ]),СписокЗанять[УНІКАЛЬНІ]),СписокЗанять[УНІКАЛЬНІ],0),2),0)","v":0},{"$f":"IFERROR(INDEX(СписокЗанять[],MATCH(SUMPRODUCT((СписокЗанять[ДЕНЬ]=РозкладЗанять[[#Headers],[П’ЯТНИЦЯ]])*(ROUNDDOWN($B5,10)>=ROUNDDOWN(СписокЗанять[ЧАС ПОЧАТКУ],10))*($B5<=СписокЗанять[ЧАС ЗАВЕРШЕННЯ]),СписокЗанять[УНІКАЛЬНІ]),СписокЗанять[УНІКАЛЬНІ],0),2),0)","v":"АЛГ"},{"$f":"IFERROR(INDEX(СписокЗанять[],MATCH(SUMPRODUCT((СписокЗанять[ДЕНЬ]=РозкладЗанять[[#Headers],[СУБОТА]])*(ROUNDDOWN($B5,10)>=ROUNDDOWN(СписокЗанять[ЧАС ПОЧАТКУ],10))*($B5<=СписокЗанять[ЧАС ЗАВЕРШЕННЯ]),СписокЗанять[УНІКАЛЬНІ]),СписокЗанять[УНІКАЛЬНІ],0),2),0)","v":0}]
[null,"08:30:00",{"$f":"IFERROR(INDEX(СписокЗанять[],MATCH(SUMPRODUCT((СписокЗанять[ДЕНЬ]=РозкладЗанять[[#Headers],[НЕДІЛЯ]])*(ROUNDDOWN($B6,10)>=ROUNDDOWN(СписокЗанять[ЧАС ПОЧАТКУ],10))*($B6<=СписокЗанять[ЧАС ЗАВЕРШЕННЯ]),СписокЗанять[УНІКАЛЬНІ]),СписокЗанять[УНІКАЛЬНІ],0),2),0)","v":0},{"$f":"IFERROR(INDEX(СписокЗанять[],MATCH(SUMPRODUCT((СписокЗанять[ДЕНЬ]=РозкладЗанять[[#Headers],[ПОНЕДІЛОК]])*(ROUNDDOWN($B6,10)>=ROUNDDOWN(СписокЗанять[ЧАС ПОЧАТКУ],10))*($B6<=СписокЗанять[ЧАС ЗАВЕРШЕННЯ]),СписокЗанять[УНІКАЛЬНІ]),СписокЗанять[УНІКАЛЬНІ],0),2),0)","v":"АЛГ"},{"$f":"IFERROR(INDEX(СписокЗанять[],MATCH(SUMPRODUCT((СписокЗанять[ДЕНЬ]=РозкладЗанять[[#Headers],[ВІВТОРОК]])*(ROUNDDOWN($B6,10)>=ROUNDDOWN(СписокЗанять[ЧАС ПОЧАТКУ],10))*($B6<=СписокЗанять[ЧАС ЗАВЕРШЕННЯ]),СписокЗанять[УНІКАЛЬНІ]),СписокЗанять[УНІКАЛЬНІ],0),2),0)","v":0},{"$f":"IFERROR(INDEX(СписокЗанять[],MATCH(SUMPRODUCT((СписокЗанять[ДЕНЬ]=РозкладЗанять[[#Headers],[СЕРЕДА]])*(ROUNDDOWN($B6,10)>=ROUNDDOWN(СписокЗанять[ЧАС ПОЧАТКУ],10))*($B6<=СписокЗанять[ЧАС ЗАВЕРШЕННЯ]),СписокЗанять[УНІКАЛЬНІ]),СписокЗанять[УНІКАЛЬНІ],0),2),0)","v":"АЛГ"},{"$f":"IFERROR(INDEX(СписокЗанять[],MATCH(SUMPRODUCT((СписокЗанять[ДЕНЬ]=РозкладЗанять[[#Headers],[ЧЕТВЕР]])*(ROUNDDOWN($B6,10)>=ROUNDDOWN(СписокЗанять[ЧАС ПОЧАТКУ],10))*($B6<=СписокЗанять[ЧАС ЗАВЕРШЕННЯ]),СписокЗанять[УНІКАЛЬНІ]),СписокЗанять[УНІКАЛЬНІ],0),2),0)","v":0},{"$f":"IFERROR(INDEX(СписокЗанять[],MATCH(SUMPRODUCT((СписокЗанять[ДЕНЬ]=РозкладЗанять[[#Headers],[П’ЯТНИЦЯ]])*(ROUNDDOWN($B6,10)>=ROUNDDOWN(СписокЗанять[ЧАС ПОЧАТКУ],10))*($B6<=СписокЗанять[ЧАС ЗАВЕРШЕННЯ]),СписокЗанять[УНІКАЛЬНІ]),СписокЗанять[УНІКАЛЬНІ],0),2),0)","v":"АЛГ"},{"$f":"IFERROR(INDEX(СписокЗанять[],MATCH(SUMPRODUCT((СписокЗанять[ДЕНЬ]=РозкладЗанять[[#Headers],[СУБОТА]])*(ROUNDDOWN($B6,10)>=ROUNDDOWN(СписокЗанять[ЧАС ПОЧАТКУ],10))*($B6<=СписокЗанять[ЧАС ЗАВЕРШЕННЯ]),СписокЗанять[УНІКАЛЬНІ]),СписокЗанять[УНІКАЛЬНІ],0),2),0)","v":0}]
[null,"08:45:00",{"$f":"IFERROR(INDEX(СписокЗанять[],MATCH(SUMPRODUCT((СписокЗанять[ДЕНЬ]=РозкладЗанять[[#Headers],[НЕДІЛЯ]])*(ROUNDDOWN($B7,10)>=ROUNDDOWN(СписокЗанять[ЧАС ПОЧАТКУ],10))*($B7<=СписокЗанять[ЧАС ЗАВЕРШЕННЯ]),СписокЗанять[УНІКАЛЬНІ]),СписокЗанять[УНІКАЛЬНІ],0),2),0)","v":0},{"$f":"IFERROR(INDEX(СписокЗанять[],MATCH(SUMPRODUCT((СписокЗанять[ДЕНЬ]=РозкладЗанять[[#Headers],[ПОНЕДІЛОК]])*(ROUNDDOWN($B7,10)>=ROUNDDOWN(СписокЗанять[ЧАС ПОЧАТКУ],10))*($B7<=СписокЗанять[ЧАС ЗАВЕРШЕННЯ]),СписокЗанять[УНІКАЛЬНІ]),СписокЗанять[УНІКАЛЬНІ],0),2),0)","v":"АЛГ"},{"$f":"IFERROR(INDEX(СписокЗанять[],MATCH(SUMPRODUCT((СписокЗанять[ДЕНЬ]=РозкладЗанять[[#Headers],[ВІВТОРОК]])*(ROUNDDOWN($B7,10)>=ROUNDDOWN(СписокЗанять[ЧАС ПОЧАТКУ],10))*($B7<=СписокЗанять[ЧАС ЗАВЕРШЕННЯ]),СписокЗанять[УНІКАЛЬНІ]),СписокЗанять[УНІКАЛЬНІ],0),2),0)","v":0},{"$f":"IFERROR(INDEX(СписокЗанять[],MATCH(SUMPRODUCT((СписокЗанять[ДЕНЬ]=РозкладЗанять[[#Headers],[СЕРЕДА]])*(ROUNDDOWN($B7,10)>=ROUNDDOWN(СписокЗанять[ЧАС ПОЧАТКУ],10))*($B7<=СписокЗанять[ЧАС ЗАВЕРШЕННЯ]),СписокЗанять[УНІКАЛЬНІ]),СписокЗанять[УНІКАЛЬНІ],0),2),0)","v":"АЛГ"},{"$f":"IFERROR(INDEX(СписокЗанять[],MATCH(SUMPRODUCT((СписокЗанять[ДЕНЬ]=РозкладЗанять[[#Headers],[ЧЕТВЕР]])*(ROUNDDOWN($B7,10)>=ROUNDDOWN(СписокЗанять[ЧАС ПОЧАТКУ],10))*($B7<=СписокЗанять[ЧАС ЗАВЕРШЕННЯ]),СписокЗанять[УНІКАЛЬНІ]),СписокЗанять[УНІКАЛЬНІ],0),2),0)","v":0},{"$f":"IFERROR(INDEX(СписокЗанять[],MATCH(SUMPRODUCT((СписокЗанять[ДЕНЬ]=РозкладЗанять[[#Headers],[П’ЯТНИЦЯ]])*(ROUNDDOWN($B7,10)>=ROUNDDOWN(СписокЗанять[ЧАС ПОЧАТКУ],10))*($B7<=СписокЗанять[ЧАС ЗАВЕРШЕННЯ]),СписокЗанять[УНІКАЛЬНІ]),СписокЗанять[УНІКАЛЬНІ],0),2),0)","v":"АЛГ"},{"$f":"IFERROR(INDEX(СписокЗанять[],MATCH(SUMPRODUCT((СписокЗанять[ДЕНЬ]=РозкладЗанять[[#Headers],[СУБОТА]])*(ROUNDDOWN($B7,10)>=ROUNDDOWN(СписокЗанять[ЧАС ПОЧАТКУ],10))*($B7<=СписокЗанять[ЧАС ЗАВЕРШЕННЯ]),СписокЗанять[УНІКАЛЬНІ]),СписокЗанять[УНІКАЛЬНІ],0),2),0)","v":0}]
[null,"09:00:00",{"$f":"IFERROR(INDEX(СписокЗанять[],MATCH(SUMPRODUCT((СписокЗанять[ДЕНЬ]=РозкладЗанять[[#Headers],[НЕДІЛЯ]])*(ROUNDDOWN($B8,10)>=ROUNDDOWN(СписокЗанять[ЧАС ПОЧАТКУ],10))*($B8<=СписокЗанять[ЧАС ЗАВЕРШЕННЯ]),СписокЗанять[УНІКАЛЬНІ]),СписокЗанять[УНІКАЛЬНІ],0),2),0)","v":0},{"$f":"IFERROR(INDEX(СписокЗанять[],MATCH(SUMPRODUCT((СписокЗанять[ДЕНЬ]=РозкладЗанять[[#Headers],[ПОНЕДІЛОК]])*(ROUNDDOWN($B8,10)>=ROUNDDOWN(СписокЗанять[ЧАС ПОЧАТКУ],10))*($B8<=СписокЗанять[ЧАС ЗАВЕРШЕННЯ]),СписокЗанять[УНІКАЛЬНІ]),СписокЗанять[УНІКАЛЬНІ],0),2),0)","v":"АЛГ"},{"$f":"IFERROR(INDEX(СписокЗанять[],MATCH(SUMPRODUCT((СписокЗанять[ДЕНЬ]=РозкладЗанять[[#Headers],[ВІВТОРОК]])*(ROUNDDOWN($B8,10)>=ROUNDDOWN(СписокЗанять[ЧАС ПОЧАТКУ],10))*($B8<=СписокЗанять[ЧАС ЗАВЕРШЕННЯ]),СписокЗанять[УНІКАЛЬНІ]),СписокЗанять[УНІКАЛЬНІ],0),2),0)","v":0},{"$f":"IFERROR(INDEX(СписокЗанять[],MATCH(SUMPRODUCT((СписокЗанять[ДЕНЬ]=РозкладЗанять[[#Headers],[СЕРЕДА]])*(ROUNDDOWN($B8,10)>=ROUNDDOWN(СписокЗанять[ЧАС ПОЧАТКУ],10))*($B8<=СписокЗанять[ЧАС ЗАВЕРШЕННЯ]),СписокЗанять[УНІКАЛЬНІ]),СписокЗанять[УНІКАЛЬНІ],0),2),0)","v":"АЛГ"},{"$f":"IFERROR(INDEX(СписокЗанять[],MATCH(SUMPRODUCT((СписокЗанять[ДЕНЬ]=РозкладЗанять[[#Headers],[ЧЕТВЕР]])*(ROUNDDOWN($B8,10)>=ROUNDDOWN(СписокЗанять[ЧАС ПОЧАТКУ],10))*($B8<=СписокЗанять[ЧАС ЗАВЕРШЕННЯ]),СписокЗанять[УНІКАЛЬНІ]),СписокЗанять[УНІКАЛЬНІ],0),2),0)","v":0},{"$f":"IFERROR(INDEX(СписокЗанять[],MATCH(SUMPRODUCT((СписокЗанять[ДЕНЬ]=РозкладЗанять[[#Headers],[П’ЯТНИЦЯ]])*(ROUNDDOWN($B8,10)>=ROUNDDOWN(СписокЗанять[ЧАС ПОЧАТКУ],10))*($B8<=СписокЗанять[ЧАС ЗАВЕРШЕННЯ]),СписокЗанять[УНІКАЛЬНІ]),СписокЗанять[УНІКАЛЬНІ],0),2),0)","v":"АЛГ"},{"$f":"IFERROR(INDEX(СписокЗанять[],MATCH(SUMPRODUCT((СписокЗанять[ДЕНЬ]=РозкладЗанять[[#Headers],[СУБОТА]])*(ROUNDDOWN($B8,10)>=ROUNDDOWN(СписокЗанять[ЧАС ПОЧАТКУ],10))*($B8<=СписокЗанять[ЧАС ЗАВЕРШЕННЯ]),СписокЗанять[УНІКАЛЬНІ]),СписокЗанять[УНІКАЛЬНІ],0),2),0)","v":0}]
[null,"09:15:00",{"$f":"IFERROR(INDEX(СписокЗанять[],MATCH(SUMPRODUCT((СписокЗанять[ДЕНЬ]=РозкладЗанять[[#Headers],[НЕДІЛЯ]])*(ROUNDDOWN($B9,10)>=ROUNDDOWN(СписокЗанять[ЧАС ПОЧАТКУ],10))*($B9<=СписокЗанять[ЧАС ЗАВЕРШЕННЯ]),СписокЗанять[УНІКАЛЬНІ]),СписокЗанять[УНІКАЛЬНІ],0),2),0)","v":0},{"$f":"IFERROR(INDEX(СписокЗанять[],MATCH(SUMPRODUCT((СписокЗанять[ДЕНЬ]=РозкладЗанять[[#Headers],[ПОНЕДІЛОК]])*(ROUNDDOWN($B9,10)>=ROUNDDOWN(СписокЗанять[ЧАС ПОЧАТКУ],10))*($B9<=СписокЗанять[ЧАС ЗАВЕРШЕННЯ]),СписокЗанять[УНІКАЛЬНІ]),СписокЗанять[УНІКАЛЬНІ],0),2),0)","v":"АЛГ"},{"$f":"IFERROR(INDEX(СписокЗанять[],MATCH(SUMPRODUCT((СписокЗанять[ДЕНЬ]=РозкладЗанять[[#Headers],[ВІВТОРОК]])*(ROUNDDOWN($B9,10)>=ROUNDDOWN(СписокЗанять[ЧАС ПОЧАТКУ],10))*($B9<=СписокЗанять[ЧАС ЗАВЕРШЕННЯ]),СписокЗанять[УНІКАЛЬНІ]),СписокЗанять[УНІКАЛЬНІ],0),2),0)","v":0},{"$f":"IFERROR(INDEX(СписокЗанять[],MATCH(SUMPRODUCT((СписокЗанять[ДЕНЬ]=РозкладЗанять[[#Headers],[СЕРЕДА]])*(ROUNDDOWN($B9,10)>=ROUNDDOWN(СписокЗанять[ЧАС ПОЧАТКУ],10))*($B9<=СписокЗанять[ЧАС ЗАВЕРШЕННЯ]),СписокЗанять[УНІКАЛЬНІ]),СписокЗанять[УНІКАЛЬНІ],0),2),0)","v":"АЛГ"},{"$f":"IFERROR(INDEX(СписокЗанять[],MATCH(SUMPRODUCT((СписокЗанять[ДЕНЬ]=РозкладЗанять[[#Headers],[ЧЕТВЕР]])*(ROUNDDOWN($B9,10)>=ROUNDDOWN(СписокЗанять[ЧАС ПОЧАТКУ],10))*($B9<=СписокЗанять[ЧАС ЗАВЕРШЕННЯ]),СписокЗанять[УНІКАЛЬНІ]),СписокЗанять[УНІКАЛЬНІ],0),2),0)","v":0},{"$f":"IFERROR(INDEX(СписокЗанять[],MATCH(SUMPRODUCT((СписокЗанять[ДЕНЬ]=РозкладЗанять[[#Headers],[П’ЯТНИЦЯ]])*(ROUNDDOWN($B9,10)>=ROUNDDOWN(СписокЗанять[ЧАС ПОЧАТКУ],10))*($B9<=СписокЗанять[ЧАС ЗАВЕРШЕННЯ]),СписокЗанять[УНІКАЛЬНІ]),СписокЗанять[УНІКАЛЬНІ],0),2),0)","v":"АЛГ"},{"$f":"IFERROR(INDEX(СписокЗанять[],MATCH(SUMPRODUCT((СписокЗанять[ДЕНЬ]=РозкладЗанять[[#Headers],[СУБОТА]])*(ROUNDDOWN($B9,10)>=ROUNDDOWN(СписокЗанять[ЧАС ПОЧАТКУ],10))*($B9<=СписокЗанять[ЧАС ЗАВЕРШЕННЯ]),СписокЗанять[УНІКАЛЬНІ]),СписокЗанять[УНІКАЛЬНІ],0),2),0)","v":0}]
[null,"09:30:00",{"$f":"IFERROR(INDEX(СписокЗанять[],MATCH(SUMPRODUCT((СписокЗанять[ДЕНЬ]=РозкладЗанять[[#Headers],[НЕДІЛЯ]])*(ROUNDDOWN($B10,10)>=ROUNDDOWN(СписокЗанять[ЧАС ПОЧАТКУ],10))*($B10<=СписокЗанять[ЧАС ЗАВЕРШЕННЯ]),СписокЗанять[УНІКАЛЬНІ]),СписокЗанять[УНІКАЛЬНІ],0),2),0)","v":0},{"$f":"IFERROR(INDEX(СписокЗанять[],MATCH(SUMPRODUCT((СписокЗанять[ДЕНЬ]=РозкладЗанять[[#Headers],[ПОНЕДІЛОК]])*(ROUNDDOWN($B10,10)>=ROUNDDOWN(СписокЗанять[ЧАС ПОЧАТКУ],10))*($B10<=СписокЗанять[ЧАС ЗАВЕРШЕННЯ]),СписокЗанять[УНІКАЛЬНІ]),СписокЗанять[УНІКАЛЬНІ],0),2),0)","v":0},{"$f":"IFERROR(INDEX(СписокЗанять[],MATCH(SUMPRODUCT((СписокЗанять[ДЕНЬ]=РозкладЗанять[[#Headers],[ВІВТОРОК]])*(ROUNDDOWN($B10,10)>=ROUNDDOWN(СписокЗанять[ЧАС ПОЧАТКУ],10))*($B10<=СписокЗанять[ЧАС ЗАВЕРШЕННЯ]),СписокЗанять[УНІКАЛЬНІ]),СписокЗанять[УНІКАЛЬНІ],0),2),0)","v":0},{"$f":"IFERROR(INDEX(СписокЗанять[],MATCH(SUMPRODUCT((СписокЗанять[ДЕНЬ]=РозкладЗанять[[#Headers],[СЕРЕДА]])*(ROUNDDOWN($B10,10)>=ROUNDDOWN(СписокЗанять[ЧАС ПОЧАТКУ],10))*($B10<=СписокЗанять[ЧАС ЗАВЕРШЕННЯ]),СписокЗанять[УНІКАЛЬНІ]),СписокЗанять[УНІКАЛЬНІ],0),2),0)","v":0},{"$f":"IFERROR(INDEX(СписокЗанять[],MATCH(SUMPRODUCT((СписокЗанять[ДЕНЬ]=РозкладЗанять[[#Headers],[ЧЕТВЕР]])*(ROUNDDOWN($B10,10)>=ROUNDDOWN(СписокЗанять[ЧАС ПОЧАТКУ],10))*($B10<=СписокЗанять[ЧАС ЗАВЕРШЕННЯ]),СписокЗанять[УНІКАЛЬНІ]),СписокЗанять[УНІКАЛЬНІ],0),2),0)","v":0},{"$f":"IFERROR(INDEX(СписокЗанять[],MATCH(SUMPRODUCT((СписокЗанять[ДЕНЬ]=РозкладЗанять[[#Headers],[П’ЯТНИЦЯ]])*(ROUNDDOWN($B10,10)>=ROUNDDOWN(СписокЗанять[ЧАС ПОЧАТКУ],10))*($B10<=СписокЗанять[ЧАС ЗАВЕРШЕННЯ]),СписокЗанять[УНІКАЛЬНІ]),СписокЗанять[УНІКАЛЬНІ],0),2),0)","v":0},{"$f":"IFERROR(INDEX(СписокЗанять[],MATCH(SUMPRODUCT((СписокЗанять[ДЕНЬ]=РозкладЗанять[[#Headers],[СУБОТА]])*(ROUNDDOWN($B10,10)>=ROUNDDOWN(СписокЗанять[ЧАС ПОЧАТКУ],10))*($B10<=СписокЗанять[ЧАС ЗАВЕРШЕННЯ]),СписокЗанять[УНІКАЛЬНІ]),СписокЗанять[УНІКАЛЬНІ],0),2),0)","v":0}]
[null,"09:45:00",{"$f":"IFERROR(INDEX(СписокЗанять[],MATCH(SUMPRODUCT((СписокЗанять[ДЕНЬ]=РозкладЗанять[[#Headers],[НЕДІЛЯ]])*(ROUNDDOWN($B11,10)>=ROUNDDOWN(СписокЗанять[ЧАС ПОЧАТКУ],10))*($B11<=СписокЗанять[ЧАС ЗАВЕРШЕННЯ]),СписокЗанять[УНІКАЛЬНІ]),СписокЗанять[УНІКАЛЬНІ],0),2),0)","v":0},{"$f":"IFERROR(INDEX(СписокЗанять[],MATCH(SUMPRODUCT((СписокЗанять[ДЕНЬ]=РозкладЗанять[[#Headers],[ПОНЕДІЛОК]])*(ROUNDDOWN($B11,10)>=ROUNDDOWN(СписокЗанять[ЧАС ПОЧАТКУ],10))*($B11<=СписокЗанять[ЧАС ЗАВЕРШЕННЯ]),СписокЗанять[УНІКАЛЬНІ]),СписокЗанять[УНІКАЛЬНІ],0),2),0)","v":0},{"$f":"IFERROR(INDEX(СписокЗанять[],MATCH(SUMPRODUCT((СписокЗанять[ДЕНЬ]=РозкладЗанять[[#Headers],[ВІВТОРОК]])*(ROUNDDOWN($B11,10)>=ROUNDDOWN(СписокЗанять[ЧАС ПОЧАТКУ],10))*($B11<=СписокЗанять[ЧАС ЗАВЕРШЕННЯ]),СписокЗанять[УНІКАЛЬНІ]),СписокЗанять[УНІКАЛЬНІ],0),2),0)","v":0},{"$f":"IFERROR(INDEX(СписокЗанять[],MATCH(SUMPRODUCT((СписокЗанять[ДЕНЬ]=РозкладЗанять[[#Headers],[СЕРЕДА]])*(ROUNDDOWN($B11,10)>=ROUNDDOWN(СписокЗанять[ЧАС ПОЧАТКУ],10))*($B11<=СписокЗанять[ЧАС ЗАВЕРШЕННЯ]),СписокЗанять[УНІКАЛЬНІ]),СписокЗанять[УНІКАЛЬНІ],0),2),0)","v":0},{"$f":"IFERROR(INDEX(СписокЗанять[],MATCH(SUMPRODUCT((СписокЗанять[ДЕНЬ]=РозкладЗанять[[#Headers],[ЧЕТВЕР]])*(ROUNDDOWN($B11,10)>=ROUNDDOWN(СписокЗанять[ЧАС ПОЧАТКУ],10))*($B11<=СписокЗанять[ЧАС ЗАВЕРШЕННЯ]),СписокЗанять[УНІКАЛЬНІ]),СписокЗанять[УНІКАЛЬНІ],0),2),0)","v":0},{"$f":"IFERROR(INDEX(СписокЗанять[],MATCH(SUMPRODUCT((СписокЗанять[ДЕНЬ]=РозкладЗанять[[#Headers],[П’ЯТНИЦЯ]])*(ROUNDDOWN($B11,10)>=ROUNDDOWN(СписокЗанять[ЧАС ПОЧАТКУ],10))*($B11<=СписокЗанять[ЧАС ЗАВЕРШЕННЯ]),СписокЗанять[УНІКАЛЬНІ]),СписокЗанять[УНІКАЛЬНІ],0),2),0)","v":0},{"$f":"IFERROR(INDEX(СписокЗанять[],MATCH(SUMPRODUCT((СписокЗанять[ДЕНЬ]=РозкладЗанять[[#Headers],[СУБОТА]])*(ROUNDDOWN($B11,10)>=ROUNDDOWN(СписокЗанять[ЧАС ПОЧАТКУ],10))*($B11<=СписокЗанять[ЧАС ЗАВЕРШЕННЯ]),СписокЗанять[УНІКАЛЬНІ]),СписокЗанять[УНІКАЛЬНІ],0),2),0)","v":0}]
[null,"10:00:00",{"$f":"IFERROR(INDEX(СписокЗанять[],MATCH(SUMPRODUCT((СписокЗанять[ДЕНЬ]=РозкладЗанять[[#Headers],[НЕДІЛЯ]])*(ROUNDDOWN($B12,10)>=ROUNDDOWN(СписокЗанять[ЧАС ПОЧАТКУ],10))*($B12<=СписокЗанять[ЧАС ЗАВЕРШЕННЯ]),СписокЗанять[УНІКАЛЬНІ]),СписокЗанять[УНІКАЛЬНІ],0),2),0)","v":0},{"$f":"IFERROR(INDEX(СписокЗанять[],MATCH(SUMPRODUCT((СписокЗанять[ДЕНЬ]=РозкладЗанять[[#Headers],[ПОНЕДІЛОК]])*(ROUNDDOWN($B12,10)>=ROUNDDOWN(СписокЗанять[ЧАС ПОЧАТКУ],10))*($B12<=СписокЗанять[ЧАС ЗАВЕРШЕННЯ]),СписокЗанять[УНІКАЛЬНІ]),СписокЗанять[УНІКАЛЬНІ],0),2),0)","v":0},{"$f":"IFERROR(INDEX(СписокЗанять[],MATCH(SUMPRODUCT((СписокЗанять[ДЕНЬ]=РозкладЗанять[[#Headers],[ВІВТОРОК]])*(ROUNDDOWN($B12,10)>=ROUNDDOWN(СписокЗанять[ЧАС ПОЧАТКУ],10))*($B12<=СписокЗанять[ЧАС ЗАВЕРШЕННЯ]),СписокЗанять[УНІКАЛЬНІ]),СписокЗанять[УНІКАЛЬНІ],0),2),0)","v":0},{"$f":"IFERROR(INDEX(СписокЗанять[],MATCH(SUMPRODUCT((СписокЗанять[ДЕНЬ]=РозкладЗанять[[#Headers],[СЕРЕДА]])*(ROUNDDOWN($B12,10)>=ROUNDDOWN(СписокЗанять[ЧАС ПОЧАТКУ],10))*($B12<=СписокЗанять[ЧАС ЗАВЕРШЕННЯ]),СписокЗанять[УНІКАЛЬНІ]),СписокЗанять[УНІКАЛЬНІ],0),2),0)","v":0},{"$f":"IFERROR(INDEX(СписокЗанять[],MATCH(SUMPRODUCT((СписокЗанять[ДЕНЬ]=РозкладЗанять[[#Headers],[ЧЕТВЕР]])*(ROUNDDOWN($B12,10)>=ROUNDDOWN(СписокЗанять[ЧАС ПОЧАТКУ],10))*($B12<=СписокЗанять[ЧАС ЗАВЕРШЕННЯ]),СписокЗанять[УНІКАЛЬНІ]),СписокЗанять[УНІКАЛЬНІ],0),2),0)","v":0},{"$f":"IFERROR(INDEX(СписокЗанять[],MATCH(SUMPRODUCT((СписокЗанять[ДЕНЬ]=РозкладЗанять[[#Headers],[П’ЯТНИЦЯ]])*(ROUNDDOWN($B12,10)>=ROUNDDOWN(СписокЗанять[ЧАС ПОЧАТКУ],10))*($B12<=СписокЗанять[ЧАС ЗАВЕРШЕННЯ]),СписокЗанять[УНІКАЛЬНІ]),СписокЗанять[УНІКАЛЬНІ],0),2),0)","v":0},{"$f":"IFERROR(INDEX(СписокЗанять[],MATCH(SUMPRODUCT((СписокЗанять[ДЕНЬ]=РозкладЗанять[[#Headers],[СУБОТА]])*(ROUNDDOWN($B12,10)>=ROUNDDOWN(СписокЗанять[ЧАС ПОЧАТКУ],10))*($B12<=СписокЗанять[ЧАС ЗАВЕРШЕННЯ]),СписокЗанять[УНІКАЛЬНІ]),СписокЗанять[УНІКАЛЬНІ],0),2),0)","v":0}]
[null,"10:15:00",{"$f":"IFERROR(INDEX(СписокЗанять[],MATCH(SUMPRODUCT((СписокЗанять[ДЕНЬ]=РозкладЗанять[[#Headers],[НЕДІЛЯ]])*(ROUNDDOWN($B13,10)>=ROUNDDOWN(СписокЗанять[ЧАС ПОЧАТКУ],10))*($B13<=СписокЗанять[ЧАС ЗАВЕРШЕННЯ]),СписокЗанять[УНІКАЛЬНІ]),СписокЗанять[УНІКАЛЬНІ],0),2),0)","v":0},{"$f":"IFERROR(INDEX(СписокЗанять[],MATCH(SUMPRODUCT((СписокЗанять[ДЕНЬ]=РозкладЗанять[[#Headers],[ПОНЕДІЛОК]])*(ROUNDDOWN($B13,10)>=ROUNDDOWN(СписокЗанять[ЧАС ПОЧАТКУ],10))*($B13<=СписокЗанять[ЧАС ЗАВЕРШЕННЯ]),СписокЗанять[УНІКАЛЬНІ]),СписокЗанять[УНІКАЛЬНІ],0),2),0)","v":0},{"$f":"IFERROR(INDEX(СписокЗанять[],MATCH(SUMPRODUCT((СписокЗанять[ДЕНЬ]=РозкладЗанять[[#Headers],[ВІВТОРОК]])*(ROUNDDOWN($B13,10)>=ROUNDDOWN(СписокЗанять[ЧАС ПОЧАТКУ],10))*($B13<=СписокЗанять[ЧАС ЗАВЕРШЕННЯ]),СписокЗанять[УНІКАЛЬНІ]),СписокЗанять[УНІКАЛЬНІ],0),2),0)","v":0},{"$f":"IFERROR(INDEX(СписокЗанять[],MATCH(SUMPRODUCT((СписокЗанять[ДЕНЬ]=РозкладЗанять[[#Headers],[СЕРЕДА]])*(ROUNDDOWN($B13,10)>=ROUNDDOWN(СписокЗанять[ЧАС ПОЧАТКУ],10))*($B13<=СписокЗанять[ЧАС ЗАВЕРШЕННЯ]),СписокЗанять[УНІКАЛЬНІ]),СписокЗанять[УНІКАЛЬНІ],0),2),0)","v":0},{"$f":"IFERROR(INDEX(СписокЗанять[],MATCH(SUMPRODUCT((СписокЗанять[ДЕНЬ]=РозкладЗанять[[#Headers],[ЧЕТВЕР]])*(ROUNDDOWN($B13,10)>=ROUNDDOWN(СписокЗанять[ЧАС ПОЧАТКУ],10))*($B13<=СписокЗанять[ЧАС ЗАВЕРШЕННЯ]),СписокЗанять[УНІКАЛЬНІ]),СписокЗанять[УНІКАЛЬНІ],0),2),0)","v":0},{"$f":"IFERROR(INDEX(СписокЗанять[],MATCH(SUMPRODUCT((СписокЗанять[ДЕНЬ]=РозкладЗанять[[#Headers],[П’ЯТНИЦЯ]])*(ROUNDDOWN($B13,10)>=ROUNDDOWN(СписокЗанять[ЧАС ПОЧАТКУ],10))*($B13<=СписокЗанять[ЧАС ЗАВЕРШЕННЯ]),СписокЗанять[УНІКАЛЬНІ]),СписокЗанять[УНІКАЛЬНІ],0),2),0)","v":0},{"$f":"IFERROR(INDEX(СписокЗанять[],MATCH(SUMPRODUCT((СписокЗанять[ДЕНЬ]=РозкладЗанять[[#Headers],[СУБОТА]])*(ROUNDDOWN($B13,10)>=ROUNDDOWN(СписокЗанять[ЧАС ПОЧАТКУ],10))*($B13<=СписокЗанять[ЧАС ЗАВЕРШЕННЯ]),СписокЗанять[УНІКАЛЬНІ]),СписокЗанять[УНІКАЛЬНІ],0),2),0)","v":0}]
[null,"10:30:00",{"$f":"IFERROR(INDEX(СписокЗанять[],MATCH(SUMPRODUCT((СписокЗанять[ДЕНЬ]=РозкладЗанять[[#Headers],[НЕДІЛЯ]])*(ROUNDDOWN($B14,10)>=ROUNDDOWN(СписокЗанять[ЧАС ПОЧАТКУ],10))*($B14<=СписокЗанять[ЧАС ЗАВЕРШЕННЯ]),СписокЗанять[УНІКАЛЬНІ]),СписокЗанять[УНІКАЛЬНІ],0),2),0)","v":0},{"$f":"IFERROR(INDEX(СписокЗанять[],MATCH(SUMPRODUCT((СписокЗанять[ДЕНЬ]=РозкладЗанять[[#Headers],[ПОНЕДІЛОК]])*(ROUNDDOWN($B14,10)>=ROUNDDOWN(СписокЗанять[ЧАС ПОЧАТКУ],10))*($B14<=СписокЗанять[ЧАС ЗАВЕРШЕННЯ]),СписокЗанять[УНІКАЛЬНІ]),СписокЗанять[УНІКАЛЬНІ],0),2),0)","v":0},{"$f":"IFERROR(INDEX(СписокЗанять[],MATCH(SUMPRODUCT((СписокЗанять[ДЕНЬ]=РозкладЗанять[[#Headers],[ВІВТОРОК]])*(ROUNDDOWN($B14,10)>=ROUNDDOWN(СписокЗанять[ЧАС ПОЧАТКУ],10))*($B14<=СписокЗанять[ЧАС ЗАВЕРШЕННЯ]),СписокЗанять[УНІКАЛЬНІ]),СписокЗанять[УНІКАЛЬНІ],0),2),0)","v":0},{"$f":"IFERROR(INDEX(СписокЗанять[],MATCH(SUMPRODUCT((СписокЗанять[ДЕНЬ]=РозкладЗанять[[#Headers],[СЕРЕДА]])*(ROUNDDOWN($B14,10)>=ROUNDDOWN(СписокЗанять[ЧАС ПОЧАТКУ],10))*($B14<=СписокЗанять[ЧАС ЗАВЕРШЕННЯ]),СписокЗанять[УНІКАЛЬНІ]),СписокЗанять[УНІКАЛЬНІ],0),2),0)","v":0},{"$f":"IFERROR(INDEX(СписокЗанять[],MATCH(SUMPRODUCT((СписокЗанять[ДЕНЬ]=РозкладЗанять[[#Headers],[ЧЕТВЕР]])*(ROUNDDOWN($B14,10)>=ROUNDDOWN(СписокЗанять[ЧАС ПОЧАТКУ],10))*($B14<=СписокЗанять[ЧАС ЗАВЕРШЕННЯ]),СписокЗанять[УНІКАЛЬНІ]),СписокЗанять[УНІКАЛЬНІ],0),2),0)","v":0},{"$f":"IFERROR(INDEX(СписокЗанять[],MATCH(SUMPRODUCT((СписокЗанять[ДЕНЬ]=РозкладЗанять[[#Headers],[П’ЯТНИЦЯ]])*(ROUNDDOWN($B14,10)>=ROUNDDOWN(СписокЗанять[ЧАС ПОЧАТКУ],10))*($B14<=СписокЗанять[ЧАС ЗАВЕРШЕННЯ]),СписокЗанять[УНІКАЛЬНІ]),СписокЗанять[УНІКАЛЬНІ],0),2),0)","v":0},{"$f":"IFERROR(INDEX(СписокЗанять[],MATCH(SUMPRODUCT((СписокЗанять[ДЕНЬ]=РозкладЗанять[[#Headers],[СУБОТА]])*(ROUNDDOWN($B14,10)>=ROUNDDOWN(СписокЗанять[ЧАС ПОЧАТКУ],10))*($B14<=СписокЗанять[ЧАС ЗАВЕРШЕННЯ]),СписокЗанять[УНІКАЛЬНІ]),СписокЗанять[УНІКАЛЬНІ],0),2),0)","v":0}]
[null,"10:45:00",{"$f":"IFERROR(INDEX(СписокЗанять[],MATCH(SUMPRODUCT((СписокЗанять[ДЕНЬ]=РозкладЗанять[[#Headers],[НЕДІЛЯ]])*(ROUNDDOWN($B15,10)>=ROUNDDOWN(СписокЗанять[ЧАС ПОЧАТКУ],10))*($B15<=СписокЗанять[ЧАС ЗАВЕРШЕННЯ]),СписокЗанять[УНІКАЛЬНІ]),СписокЗанять[УНІКАЛЬНІ],0),2),0)","v":0},{"$f":"IFERROR(INDEX(СписокЗанять[],MATCH(SUMPRODUCT((СписокЗанять[ДЕНЬ]=РозкладЗанять[[#Headers],[ПОНЕДІЛОК]])*(ROUNDDOWN($B15,10)>=ROUNDDOWN(СписокЗанять[ЧАС ПОЧАТКУ],10))*($B15<=СписокЗанять[ЧАС ЗАВЕРШЕННЯ]),СписокЗанять[УНІКАЛЬНІ]),СписокЗанять[УНІКАЛЬНІ],0),2),0)","v":0},{"$f":"IFERROR(INDEX(СписокЗанять[],MATCH(SUMPRODUCT((СписокЗанять[ДЕНЬ]=РозкладЗанять[[#Headers],[ВІВТОРОК]])*(ROUNDDOWN($B15,10)>=ROUNDDOWN(СписокЗанять[ЧАС ПОЧАТКУ],10))*($B15<=СписокЗанять[ЧАС ЗАВЕРШЕННЯ]),СписокЗанять[УНІКАЛЬНІ]),СписокЗанять[УНІКАЛЬНІ],0),2),0)","v":0},{"$f":"IFERROR(INDEX(СписокЗанять[],MATCH(SUMPRODUCT((СписокЗанять[ДЕНЬ]=РозкладЗанять[[#Headers],[СЕРЕДА]])*(ROUNDDOWN($B15,10)>=ROUNDDOWN(СписокЗанять[ЧАС ПОЧАТКУ],10))*($B15<=СписокЗанять[ЧАС ЗАВЕРШЕННЯ]),СписокЗанять[УНІКАЛЬНІ]),СписокЗанять[УНІКАЛЬНІ],0),2),0)","v":0},{"$f":"IFERROR(INDEX(СписокЗанять[],MATCH(SUMPRODUCT((СписокЗанять[ДЕНЬ]=РозкладЗанять[[#Headers],[ЧЕТВЕР]])*(ROUNDDOWN($B15,10)>=ROUNDDOWN(СписокЗанять[ЧАС ПОЧАТКУ],10))*($B15<=СписокЗанять[ЧАС ЗАВЕРШЕННЯ]),СписокЗанять[УНІКАЛЬНІ]),СписокЗанять[УНІКАЛЬНІ],0),2),0)","v":0},{"$f":"IFERROR(INDEX(СписокЗанять[],MATCH(SUMPRODUCT((СписокЗанять[ДЕНЬ]=РозкладЗанять[[#Headers],[П’ЯТНИЦЯ]])*(ROUNDDOWN($B15,10)>=ROUNDDOWN(СписокЗанять[ЧАС ПОЧАТКУ],10))*($B15<=СписокЗанять[ЧАС ЗАВЕРШЕННЯ]),СписокЗанять[УНІКАЛЬНІ]),СписокЗанять[УНІКАЛЬНІ],0),2),0)","v":0},{"$f":"IFERROR(INDEX(СписокЗанять[],MATCH(SUMPRODUCT((СписокЗанять[ДЕНЬ]=РозкладЗанять[[#Headers],[СУБОТА]])*(ROUNDDOWN($B15,10)>=ROUNDDOWN(СписокЗанять[ЧАС ПОЧАТКУ],10))*($B15<=СписокЗанять[ЧАС ЗАВЕРШЕННЯ]),СписокЗанять[УНІКАЛЬНІ]),СписокЗанять[УНІКАЛЬНІ],0),2),0)","v":0}]
[null,"11:00:00",{"$f":"IFERROR(INDEX(СписокЗанять[],MATCH(SUMPRODUCT((СписокЗанять[ДЕНЬ]=РозкладЗанять[[#Headers],[НЕДІЛЯ]])*(ROUNDDOWN($B16,10)>=ROUNDDOWN(СписокЗанять[ЧАС ПОЧАТКУ],10))*($B16<=СписокЗанять[ЧАС ЗАВЕРШЕННЯ]),СписокЗанять[УНІКАЛЬНІ]),СписокЗанять[УНІКАЛЬНІ],0),2),0)","v":0},{"$f":"IFERROR(INDEX(СписокЗанять[],MATCH(SUMPRODUCT((СписокЗанять[ДЕНЬ]=РозкладЗанять[[#Headers],[ПОНЕДІЛОК]])*(ROUNDDOWN($B16,10)>=ROUNDDOWN(СписокЗанять[ЧАС ПОЧАТКУ],10))*($B16<=СписокЗанять[ЧАС ЗАВЕРШЕННЯ]),СписокЗанять[УНІКАЛЬНІ]),СписокЗанять[УНІКАЛЬНІ],0),2),0)","v":0},{"$f":"IFERROR(INDEX(СписокЗанять[],MATCH(SUMPRODUCT((СписокЗанять[ДЕНЬ]=РозкладЗанять[[#Headers],[ВІВТОРОК]])*(ROUNDDOWN($B16,10)>=ROUNDDOWN(СписокЗанять[ЧАС ПОЧАТКУ],10))*($B16<=СписокЗанять[ЧАС ЗАВЕРШЕННЯ]),СписокЗанять[УНІКАЛЬНІ]),СписокЗанять[УНІКАЛЬНІ],0),2),0)","v":"ФІЗ"},{"$f":"IFERROR(INDEX(СписокЗанять[],MATCH(SUMPRODUCT((СписокЗанять[ДЕНЬ]=РозкладЗанять[[#Headers],[СЕРЕДА]])*(ROUNDDOWN($B16,10)>=ROUNDDOWN(СписокЗанять[ЧАС ПОЧАТКУ],10))*($B16<=СписокЗанять[ЧАС ЗАВЕРШЕННЯ]),СписокЗанять[УНІКАЛЬНІ]),СписокЗанять[УНІКАЛЬНІ],0),2),0)","v":0},{"$f":"IFERROR(INDEX(СписокЗанять[],MATCH(SUMPRODUCT((СписокЗанять[ДЕНЬ]=РозкладЗанять[[#Headers],[ЧЕТВЕР]])*(ROUNDDOWN($B16,10)>=ROUNDDOWN(СписокЗанять[ЧАС ПОЧАТКУ],10))*($B16<=СписокЗанять[ЧАС ЗАВЕРШЕННЯ]),СписокЗанять[УНІКАЛЬНІ]),СписокЗанять[УНІКАЛЬНІ],0),2),0)","v":"ФІЗ"},{"$f":"IFERROR(INDEX(СписокЗанять[],MATCH(SUMPRODUCT((СписокЗанять[ДЕНЬ]=РозкладЗанять[[#Headers],[П’ЯТНИЦЯ]])*(ROUNDDOWN($B16,10)>=ROUNDDOWN(СписокЗанять[ЧАС ПОЧАТКУ],10))*($B16<=СписокЗанять[ЧАС ЗАВЕРШЕННЯ]),СписокЗанять[УНІКАЛЬНІ]),СписокЗанять[УНІКАЛЬНІ],0),2),0)","v":0},{"$f":"IFERROR(INDEX(СписокЗанять[],MATCH(SUMPRODUCT((СписокЗанять[ДЕНЬ]=РозкладЗанять[[#Headers],[СУБОТА]])*(ROUNDDOWN($B16,10)>=ROUNDDOWN(СписокЗанять[ЧАС ПОЧАТКУ],10))*($B16<=СписокЗанять[ЧАС ЗАВЕРШЕННЯ]),СписокЗанять[УНІКАЛЬНІ]),СписокЗанять[УНІКАЛЬНІ],0),2),0)","v":0}]
[null,"11:15:00",{"$f":"IFERROR(INDEX(СписокЗанять[],MATCH(SUMPRODUCT((СписокЗанять[ДЕНЬ]=РозкладЗанять[[#Headers],[НЕДІЛЯ]])*(ROUNDDOWN($B17,10)>=ROUNDDOWN(СписокЗанять[ЧАС ПОЧАТКУ],10))*($B17<=СписокЗанять[ЧАС ЗАВЕРШЕННЯ]),СписокЗанять[УНІКАЛЬНІ]),СписокЗанять[УНІКАЛЬНІ],0),2),0)","v":0},{"$f":"IFERROR(INDEX(СписокЗанять[],MATCH(SUMPRODUCT((СписокЗанять[ДЕНЬ]=РозкладЗанять[[#Headers],[ПОНЕДІЛОК]])*(ROUNDDOWN($B17,10)>=ROUNDDOWN(СписокЗанять[ЧАС ПОЧАТКУ],10))*($B17<=СписокЗанять[ЧАС ЗАВЕРШЕННЯ]),СписокЗанять[УНІКАЛЬНІ]),СписокЗанять[УНІКАЛЬНІ],0),2),0)","v":0},{"$f":"IFERROR(INDEX(СписокЗанять[],MATCH(SUMPRODUCT((СписокЗанять[ДЕНЬ]=РозкладЗанять[[#Headers],[ВІВТОРОК]])*(ROUNDDOWN($B17,10)>=ROUNDDOWN(СписокЗанять[ЧАС ПОЧАТКУ],10))*($B17<=СписокЗанять[ЧАС ЗАВЕРШЕННЯ]),СписокЗанять[УНІКАЛЬНІ]),СписокЗанять[УНІКАЛЬНІ],0),2),0)","v":"ФІЗ"},{"$f":"IFERROR(INDEX(СписокЗанять[],MATCH(SUMPRODUCT((СписокЗанять[ДЕНЬ]=РозкладЗанять[[#Headers],[СЕРЕДА]])*(ROUNDDOWN($B17,10)>=ROUNDDOWN(СписокЗанять[ЧАС ПОЧАТКУ],10))*($B17<=СписокЗанять[ЧАС ЗАВЕРШЕННЯ]),СписокЗанять[УНІКАЛЬНІ]),СписокЗанять[УНІКАЛЬНІ],0),2),0)","v":0},{"$f":"IFERROR(INDEX(СписокЗанять[],MATCH(SUMPRODUCT((СписокЗанять[ДЕНЬ]=РозкладЗанять[[#Headers],[ЧЕТВЕР]])*(ROUNDDOWN($B17,10)>=ROUNDDOWN(СписокЗанять[ЧАС ПОЧАТКУ],10))*($B17<=СписокЗанять[ЧАС ЗАВЕРШЕННЯ]),СписокЗанять[УНІКАЛЬНІ]),СписокЗанять[УНІКАЛЬНІ],0),2),0)","v":"ФІЗ"},{"$f":"IFERROR(INDEX(СписокЗанять[],MATCH(SUMPRODUCT((СписокЗанять[ДЕНЬ]=РозкладЗанять[[#Headers],[П’ЯТНИЦЯ]])*(ROUNDDOWN($B17,10)>=ROUNDDOWN(СписокЗанять[ЧАС ПОЧАТКУ],10))*($B17<=СписокЗанять[ЧАС ЗАВЕРШЕННЯ]),СписокЗанять[УНІКАЛЬНІ]),СписокЗанять[УНІКАЛЬНІ],0),2),0)","v":0},{"$f":"IFERROR(INDEX(СписокЗанять[],MATCH(SUMPRODUCT((СписокЗанять[ДЕНЬ]=РозкладЗанять[[#Headers],[СУБОТА]])*(ROUNDDOWN($B17,10)>=ROUNDDOWN(СписокЗанять[ЧАС ПОЧАТКУ],10))*($B17<=СписокЗанять[ЧАС ЗАВЕРШЕННЯ]),СписокЗанять[УНІКАЛЬНІ]),СписокЗанять[УНІКАЛЬНІ],0),2),0)","v":0}]
[null,"11:30:00",{"$f":"IFERROR(INDEX(СписокЗанять[],MATCH(SUMPRODUCT((СписокЗанять[ДЕНЬ]=РозкладЗанять[[#Headers],[НЕДІЛЯ]])*(ROUNDDOWN($B18,10)>=ROUNDDOWN(СписокЗанять[ЧАС ПОЧАТКУ],10))*($B18<=СписокЗанять[ЧАС ЗАВЕРШЕННЯ]),СписокЗанять[УНІКАЛЬНІ]),СписокЗанять[УНІКАЛЬНІ],0),2),0)","v":0},{"$f":"IFERROR(INDEX(СписокЗанять[],MATCH(SUMPRODUCT((СписокЗанять[ДЕНЬ]=РозкладЗанять[[#Headers],[ПОНЕДІЛОК]])*(ROUNDDOWN($B18,10)>=ROUNDDOWN(СписокЗанять[ЧАС ПОЧАТКУ],10))*($B18<=СписокЗанять[ЧАС ЗАВЕРШЕННЯ]),СписокЗанять[УНІКАЛЬНІ]),СписокЗанять[УНІКАЛЬНІ],0),2),0)","v":0},{"$f":"IFERROR(INDEX(СписокЗанять[],MATCH(SUMPRODUCT((СписокЗанять[ДЕНЬ]=РозкладЗанять[[#Headers],[ВІВТОРОК]])*(ROUNDDOWN($B18,10)>=ROUNDDOWN(СписокЗанять[ЧАС ПОЧАТКУ],10))*($B18<=СписокЗанять[ЧАС ЗАВЕРШЕННЯ]),СписокЗанять[УНІКАЛЬНІ]),СписокЗанять[УНІКАЛЬНІ],0),2),0)","v":"ФІЗ"},{"$f":"IFERROR(INDEX(СписокЗанять[],MATCH(SUMPRODUCT((СписокЗанять[ДЕНЬ]=РозкладЗанять[[#Headers],[СЕРЕДА]])*(ROUNDDOWN($B18,10)>=ROUNDDOWN(СписокЗанять[ЧАС ПОЧАТКУ],10))*($B18<=СписокЗанять[ЧАС ЗАВЕРШЕННЯ]),СписокЗанять[УНІКАЛЬНІ]),СписокЗанять[УНІКАЛЬНІ],0),2),0)","v":0},{"$f":"IFERROR(INDEX(СписокЗанять[],MATCH(SUMPRODUCT((СписокЗанять[ДЕНЬ]=РозкладЗанять[[#Headers],[ЧЕТВЕР]])*(ROUNDDOWN($B18,10)>=ROUNDDOWN(СписокЗанять[ЧАС ПОЧАТКУ],10))*($B18<=СписокЗанять[ЧАС ЗАВЕРШЕННЯ]),СписокЗанять[УНІКАЛЬНІ]),СписокЗанять[УНІКАЛЬНІ],0),2),0)","v":"ФІЗ"},{"$f":"IFERROR(INDEX(СписокЗанять[],MATCH(SUMPRODUCT((СписокЗанять[ДЕНЬ]=РозкладЗанять[[#Headers],[П’ЯТНИЦЯ]])*(ROUNDDOWN($B18,10)>=ROUNDDOWN(СписокЗанять[ЧАС ПОЧАТКУ],10))*($B18<=СписокЗанять[ЧАС ЗАВЕРШЕННЯ]),СписокЗанять[УНІКАЛЬНІ]),СписокЗанять[УНІКАЛЬНІ],0),2),0)","v":0},{"$f":"IFERROR(INDEX(СписокЗанять[],MATCH(SUMPRODUCT((СписокЗанять[ДЕНЬ]=РозкладЗанять[[#Headers],[СУБОТА]])*(ROUNDDOWN($B18,10)>=ROUNDDOWN(СписокЗанять[ЧАС ПОЧАТКУ],10))*($B18<=СписокЗанять[ЧАС ЗАВЕРШЕННЯ]),СписокЗанять[УНІКАЛЬНІ]),СписокЗанять[УНІКАЛЬНІ],0),2),0)","v":0}]
[null,"11:45:00",{"$f":"IFERROR(INDEX(СписокЗанять[],MATCH(SUMPRODUCT((СписокЗанять[ДЕНЬ]=РозкладЗанять[[#Headers],[НЕДІЛЯ]])*(ROUNDDOWN($B19,10)>=ROUNDDOWN(СписокЗанять[ЧАС ПОЧАТКУ],10))*($B19<=СписокЗанять[ЧАС ЗАВЕРШЕННЯ]),СписокЗанять[УНІКАЛЬНІ]),СписокЗанять[УНІКАЛЬНІ],0),2),0)","v":0},{"$f":"IFERROR(INDEX(СписокЗанять[],MATCH(SUMPRODUCT((СписокЗанять[ДЕНЬ]=РозкладЗанять[[#Headers],[ПОНЕДІЛОК]])*(ROUNDDOWN($B19,10)>=ROUNDDOWN(СписокЗанять[ЧАС ПОЧАТКУ],10))*($B19<=СписокЗанять[ЧАС ЗАВЕРШЕННЯ]),СписокЗанять[УНІКАЛЬНІ]),СписокЗанять[УНІКАЛЬНІ],0),2),0)","v":0},{"$f":"IFERROR(INDEX(СписокЗанять[],MATCH(SUMPRODUCT((СписокЗанять[ДЕНЬ]=РозкладЗанять[[#Headers],[ВІВТОРОК]])*(ROUNDDOWN($B19,10)>=ROUNDDOWN(СписокЗанять[ЧАС ПОЧАТКУ],10))*($B19<=СписокЗанять[ЧАС ЗАВЕРШЕННЯ]),СписокЗанять[УНІКАЛЬНІ]),СписокЗанять[УНІКАЛЬНІ],0),2),0)","v":"ФІЗ"},{"$f":"IFERROR(INDEX(СписокЗанять[],MATCH(SUMPRODUCT((СписокЗанять[ДЕНЬ]=РозкладЗанять[[#Headers],[СЕРЕДА]])*(ROUNDDOWN($B19,10)>=ROUNDDOWN(СписокЗанять[ЧАС ПОЧАТКУ],10))*($B19<=СписокЗанять[ЧАС ЗАВЕРШЕННЯ]),СписокЗанять[УНІКАЛЬНІ]),СписокЗанять[УНІКАЛЬНІ],0),2),0)","v":0},{"$f":"IFERROR(INDEX(СписокЗанять[],MATCH(SUMPRODUCT((СписокЗанять[ДЕНЬ]=РозкладЗанять[[#Headers],[ЧЕТВЕР]])*(ROUNDDOWN($B19,10)>=ROUNDDOWN(СписокЗанять[ЧАС ПОЧАТКУ],10))*($B19<=СписокЗанять[ЧАС ЗАВЕРШЕННЯ]),СписокЗанять[УНІКАЛЬНІ]),СписокЗанять[УНІКАЛЬНІ],0),2),0)","v":"ФІЗ"},{"$f":"IFERROR(INDEX(СписокЗанять[],MATCH(SUMPRODUCT((СписокЗанять[ДЕНЬ]=РозкладЗанять[[#Headers],[П’ЯТНИЦЯ]])*(ROUNDDOWN($B19,10)>=ROUNDDOWN(СписокЗанять[ЧАС ПОЧАТКУ],10))*($B19<=СписокЗанять[ЧАС ЗАВЕРШЕННЯ]),СписокЗанять[УНІКАЛЬНІ]),СписокЗанять[УНІКАЛЬНІ],0),2),0)","v":0},{"$f":"IFERROR(INDEX(СписокЗанять[],MATCH(SUMPRODUCT((СписокЗанять[ДЕНЬ]=РозкладЗанять[[#Headers],[СУБОТА]])*(ROUNDDOWN($B19,10)>=ROUNDDOWN(СписокЗанять[ЧАС ПОЧАТКУ],10))*($B19<=СписокЗанять[ЧАС ЗАВЕРШЕННЯ]),СписокЗанять[УНІКАЛЬНІ]),СписокЗанять[УНІКАЛЬНІ],0),2),0)","v":0}]
[null,"12:00:00",{"$f":"IFERROR(INDEX(СписокЗанять[],MATCH(SUMPRODUCT((СписокЗанять[ДЕНЬ]=РозкладЗанять[[#Headers],[НЕДІЛЯ]])*(ROUNDDOWN($B20,10)>=ROUNDDOWN(СписокЗанять[ЧАС ПОЧАТКУ],10))*($B20<=СписокЗанять[ЧАС ЗАВЕРШЕННЯ]),СписокЗанять[УНІКАЛЬНІ]),СписокЗанять[УНІКАЛЬНІ],0),2),0)","v":0},{"$f":"IFERROR(INDEX(СписокЗанять[],MATCH(SUMPRODUCT((СписокЗанять[ДЕНЬ]=РозкладЗанять[[#Headers],[ПОНЕДІЛОК]])*(ROUNDDOWN($B20,10)>=ROUNDDOWN(СписокЗанять[ЧАС ПОЧАТКУ],10))*($B20<=СписокЗанять[ЧАС ЗАВЕРШЕННЯ]),СписокЗанять[УНІКАЛЬНІ]),СписокЗанять[УНІКАЛЬНІ],0),2),0)","v":0},{"$f":"IFERROR(INDEX(СписокЗанять[],MATCH(SUMPRODUCT((СписокЗанять[ДЕНЬ]=РозкладЗанять[[#Headers],[ВІВТОРОК]])*(ROUNDDOWN($B20,10)>=ROUNDDOWN(СписокЗанять[ЧАС ПОЧАТКУ],10))*($B20<=СписокЗанять[ЧАС ЗАВЕРШЕННЯ]),СписокЗанять[УНІКАЛЬНІ]),СписокЗанять[УНІКАЛЬНІ],0),2),0)","v":"ФІЗ"},{"$f":"IFERROR(INDEX(СписокЗанять[],MATCH(SUMPRODUCT((СписокЗанять[ДЕНЬ]=РозкладЗанять[[#Headers],[СЕРЕДА]])*(ROUNDDOWN($B20,10)>=ROUNDDOWN(СписокЗанять[ЧАС ПОЧАТКУ],10))*($B20<=СписокЗанять[ЧАС ЗАВЕРШЕННЯ]),СписокЗанять[УНІКАЛЬНІ]),СписокЗанять[УНІКАЛЬНІ],0),2),0)","v":0},{"$f":"IFERROR(INDEX(СписокЗанять[],MATCH(SUMPRODUCT((СписокЗанять[ДЕНЬ]=РозкладЗанять[[#Headers],[ЧЕТВЕР]])*(ROUNDDOWN($B20,10)>=ROUNDDOWN(СписокЗанять[ЧАС ПОЧАТКУ],10))*($B20<=СписокЗанять[ЧАС ЗАВЕРШЕННЯ]),СписокЗанять[УНІКАЛЬНІ]),СписокЗанять[УНІКАЛЬНІ],0),2),0)","v":"ФІЗ"},{"$f":"IFERROR(INDEX(СписокЗанять[],MATCH(SUMPRODUCT((СписокЗанять[ДЕНЬ]=РозкладЗанять[[#Headers],[П’ЯТНИЦЯ]])*(ROUNDDOWN($B20,10)>=ROUNDDOWN(СписокЗанять[ЧАС ПОЧАТКУ],10))*($B20<=СписокЗанять[ЧАС ЗАВЕРШЕННЯ]),СписокЗанять[УНІКАЛЬНІ]),СписокЗанять[УНІКАЛЬНІ],0),2),0)","v":0},{"$f":"IFERROR(INDEX(СписокЗанять[],MATCH(SUMPRODUCT((СписокЗанять[ДЕНЬ]=РозкладЗанять[[#Headers],[СУБОТА]])*(ROUNDDOWN($B20,10)>=ROUNDDOWN(СписокЗанять[ЧАС ПОЧАТКУ],10))*($B20<=СписокЗанять[ЧАС ЗАВЕРШЕННЯ]),СписокЗанять[УНІКАЛЬНІ]),СписокЗанять[УНІКАЛЬНІ],0),2),0)","v":0}]
[null,"12:15:00",{"$f":"IFERROR(INDEX(СписокЗанять[],MATCH(SUMPRODUCT((СписокЗанять[ДЕНЬ]=РозкладЗанять[[#Headers],[НЕДІЛЯ]])*(ROUNDDOWN($B21,10)>=ROUNDDOWN(СписокЗанять[ЧАС ПОЧАТКУ],10))*($B21<=СписокЗанять[ЧАС ЗАВЕРШЕННЯ]),СписокЗанять[УНІКАЛЬНІ]),СписокЗанять[УНІКАЛЬНІ],0),2),0)","v":0},{"$f":"IFERROR(INDEX(СписокЗанять[],MATCH(SUMPRODUCT((СписокЗанять[ДЕНЬ]=РозкладЗанять[[#Headers],[ПОНЕДІЛОК]])*(ROUNDDOWN($B21,10)>=ROUNDDOWN(СписокЗанять[ЧАС ПОЧАТКУ],10))*($B21<=СписокЗанять[ЧАС ЗАВЕРШЕННЯ]),СписокЗанять[УНІКАЛЬНІ]),СписокЗанять[УНІКАЛЬНІ],0),2),0)","v":0},{"$f":"IFERROR(INDEX(СписокЗанять[],MATCH(SUMPRODUCT((СписокЗанять[ДЕНЬ]=РозкладЗанять[[#Headers],[ВІВТОРОК]])*(ROUNDDOWN($B21,10)>=ROUNDDOWN(СписокЗанять[ЧАС ПОЧАТКУ],10))*($B21<=СписокЗанять[ЧАС ЗАВЕРШЕННЯ]),СписокЗанять[УНІКАЛЬНІ]),СписокЗанять[УНІКАЛЬНІ],0),2),0)","v":0},{"$f":"IFERROR(INDEX(СписокЗанять[],MATCH(SUMPRODUCT((СписокЗанять[ДЕНЬ]=РозкладЗанять[[#Headers],[СЕРЕДА]])*(ROUNDDOWN($B21,10)>=ROUNDDOWN(СписокЗанять[ЧАС ПОЧАТКУ],10))*($B21<=СписокЗанять[ЧАС ЗАВЕРШЕННЯ]),СписокЗанять[УНІКАЛЬНІ]),СписокЗанять[УНІКАЛЬНІ],0),2),0)","v":0},{"$f":"IFERROR(INDEX(СписокЗанять[],MATCH(SUMPRODUCT((СписокЗанять[ДЕНЬ]=РозкладЗанять[[#Headers],[ЧЕТВЕР]])*(ROUNDDOWN($B21,10)>=ROUNDDOWN(СписокЗанять[ЧАС ПОЧАТКУ],10))*($B21<=СписокЗанять[ЧАС ЗАВЕРШЕННЯ]),СписокЗанять[УНІКАЛЬНІ]),СписокЗанять[УНІКАЛЬНІ],0),2),0)","v":0},{"$f":"IFERROR(INDEX(СписокЗанять[],MATCH(SUMPRODUCT((СписокЗанять[ДЕНЬ]=РозкладЗанять[[#Headers],[П’ЯТНИЦЯ]])*(ROUNDDOWN($B21,10)>=ROUNDDOWN(СписокЗанять[ЧАС ПОЧАТКУ],10))*($B21<=СписокЗанять[ЧАС ЗАВЕРШЕННЯ]),СписокЗанять[УНІКАЛЬНІ]),СписокЗанять[УНІКАЛЬНІ],0),2),0)","v":0},{"$f":"IFERROR(INDEX(СписокЗанять[],MATCH(SUMPRODUCT((СписокЗанять[ДЕНЬ]=РозкладЗанять[[#Headers],[СУБОТА]])*(ROUNDDOWN($B21,10)>=ROUNDDOWN(СписокЗанять[ЧАС ПОЧАТКУ],10))*($B21<=СписокЗанять[ЧАС ЗАВЕРШЕННЯ]),СписокЗанять[УНІКАЛЬНІ]),СписокЗанять[УНІКАЛЬНІ],0),2),0)","v":0}]
[null,"12:30:00",{"$f":"IFERROR(INDEX(СписокЗанять[],MATCH(SUMPRODUCT((СписокЗанять[ДЕНЬ]=РозкладЗанять[[#Headers],[НЕДІЛЯ]])*(ROUNDDOWN($B22,10)>=ROUNDDOWN(СписокЗанять[ЧАС ПОЧАТКУ],10))*($B22<=СписокЗанять[ЧАС ЗАВЕРШЕННЯ]),СписокЗанять[УНІКАЛЬНІ]),СписокЗанять[УНІКАЛЬНІ],0),2),0)","v":0},{"$f":"IFERROR(INDEX(СписокЗанять[],MATCH(SUMPRODUCT((СписокЗанять[ДЕНЬ]=РозкладЗанять[[#Headers],[ПОНЕДІЛОК]])*(ROUNDDOWN($B22,10)>=ROUNDDOWN(СписокЗанять[ЧАС ПОЧАТКУ],10))*($B22<=СписокЗанять[ЧАС ЗАВЕРШЕННЯ]),СписокЗанять[УНІКАЛЬНІ]),СписокЗанять[УНІКАЛЬНІ],0),2),0)","v":0},{"$f":"IFERROR(INDEX(СписокЗанять[],MATCH(SUMPRODUCT((СписокЗанять[ДЕНЬ]=РозкладЗанять[[#Headers],[ВІВТОРОК]])*(ROUNDDOWN($B22,10)>=ROUNDDOWN(СписокЗанять[ЧАС ПОЧАТКУ],10))*($B22<=СписокЗанять[ЧАС ЗАВЕРШЕННЯ]),СписокЗанять[УНІКАЛЬНІ]),СписокЗанять[УНІКАЛЬНІ],0),2),0)","v":0},{"$f":"IFERROR(INDEX(СписокЗанять[],MATCH(SUMPRODUCT((СписокЗанять[ДЕНЬ]=РозкладЗанять[[#Headers],[СЕРЕДА]])*(ROUNDDOWN($B22,10)>=ROUNDDOWN(СписокЗанять[ЧАС ПОЧАТКУ],10))*($B22<=СписокЗанять[ЧАС ЗАВЕРШЕННЯ]),СписокЗанять[УНІКАЛЬНІ]),СписокЗанять[УНІКАЛЬНІ],0),2),0)","v":0},{"$f":"IFERROR(INDEX(СписокЗанять[],MATCH(SUMPRODUCT((СписокЗанять[ДЕНЬ]=РозкладЗанять[[#Headers],[ЧЕТВЕР]])*(ROUNDDOWN($B22,10)>=ROUNDDOWN(СписокЗанять[ЧАС ПОЧАТКУ],10))*($B22<=СписокЗанять[ЧАС ЗАВЕРШЕННЯ]),СписокЗанять[УНІКАЛЬНІ]),СписокЗанять[УНІКАЛЬНІ],0),2),0)","v":0},{"$f":"IFERROR(INDEX(СписокЗанять[],MATCH(SUMPRODUCT((СписокЗанять[ДЕНЬ]=РозкладЗанять[[#Headers],[П’ЯТНИЦЯ]])*(ROUNDDOWN($B22,10)>=ROUNDDOWN(СписокЗанять[ЧАС ПОЧАТКУ],10))*($B22<=СписокЗанять[ЧАС ЗАВЕРШЕННЯ]),СписокЗанять[УНІКАЛЬНІ]),СписокЗанять[УНІКАЛЬНІ],0),2),0)","v":0},{"$f":"IFERROR(INDEX(СписокЗанять[],MATCH(SUMPRODUCT((СписокЗанять[ДЕНЬ]=РозкладЗанять[[#Headers],[СУБОТА]])*(ROUNDDOWN($B22,10)>=ROUNDDOWN(СписокЗанять[ЧАС ПОЧАТКУ],10))*($B22<=СписокЗанять[ЧАС ЗАВЕРШЕННЯ]),СписокЗанять[УНІКАЛЬНІ]),СписокЗанять[УНІКАЛЬНІ],0),2),0)","v":0}]
[null,"12:45:00",{"$f":"IFERROR(INDEX(СписокЗанять[],MATCH(SUMPRODUCT((СписокЗанять[ДЕНЬ]=РозкладЗанять[[#Headers],[НЕДІЛЯ]])*(ROUNDDOWN($B23,10)>=ROUNDDOWN(СписокЗанять[ЧАС ПОЧАТКУ],10))*($B23<=СписокЗанять[ЧАС ЗАВЕРШЕННЯ]),СписокЗанять[УНІКАЛЬНІ]),СписокЗанять[УНІКАЛЬНІ],0),2),0)","v":0},{"$f":"IFERROR(INDEX(СписокЗанять[],MATCH(SUMPRODUCT((СписокЗанять[ДЕНЬ]=РозкладЗанять[[#Headers],[ПОНЕДІЛОК]])*(ROUNDDOWN($B23,10)>=ROUNDDOWN(СписокЗанять[ЧАС ПОЧАТКУ],10))*($B23<=СписокЗанять[ЧАС ЗАВЕРШЕННЯ]),СписокЗанять[УНІКАЛЬНІ]),СписокЗанять[УНІКАЛЬНІ],0),2),0)","v":0},{"$f":"IFERROR(INDEX(СписокЗанять[],MATCH(SUMPRODUCT((СписокЗанять[ДЕНЬ]=РозкладЗанять[[#Headers],[ВІВТОРОК]])*(ROUNDDOWN($B23,10)>=ROUNDDOWN(СписокЗанять[ЧАС ПОЧАТКУ],10))*($B23<=СписокЗанять[ЧАС ЗАВЕРШЕННЯ]),СписокЗанять[УНІКАЛЬНІ]),СписокЗанять[УНІКАЛЬНІ],0),2),0)","v":0},{"$f":"IFERROR(INDEX(СписокЗанять[],MATCH(SUMPRODUCT((СписокЗанять[ДЕНЬ]=РозкладЗанять[[#Headers],[СЕРЕДА]])*(ROUNDDOWN($B23,10)>=ROUNDDOWN(СписокЗанять[ЧАС ПОЧАТКУ],10))*($B23<=СписокЗанять[ЧАС ЗАВЕРШЕННЯ]),СписокЗанять[УНІКАЛЬНІ]),СписокЗанять[УНІКАЛЬНІ],0),2),0)","v":0},{"$f":"IFERROR(INDEX(СписокЗанять[],MATCH(SUMPRODUCT((СписокЗанять[ДЕНЬ]=РозкладЗанять[[#Headers],[ЧЕТВЕР]])*(ROUNDDOWN($B23,10)>=ROUNDDOWN(СписокЗанять[ЧАС ПОЧАТКУ],10))*($B23<=СписокЗанять[ЧАС ЗАВЕРШЕННЯ]),СписокЗанять[УНІКАЛЬНІ]),СписокЗанять[УНІКАЛЬНІ],0),2),0)","v":0},{"$f":"IFERROR(INDEX(СписокЗанять[],MATCH(SUMPRODUCT((СписокЗанять[ДЕНЬ]=РозкладЗанять[[#Headers],[П’ЯТНИЦЯ]])*(ROUNDDOWN($B23,10)>=ROUNDDOWN(СписокЗанять[ЧАС ПОЧАТКУ],10))*($B23<=СписокЗанять[ЧАС ЗАВЕРШЕННЯ]),СписокЗанять[УНІКАЛЬНІ]),СписокЗанять[УНІКАЛЬНІ],0),2),0)","v":0},{"$f":"IFERROR(INDEX(СписокЗанять[],MATCH(SUMPRODUCT((СписокЗанять[ДЕНЬ]=РозкладЗанять[[#Headers],[СУБОТА]])*(ROUNDDOWN($B23,10)>=ROUNDDOWN(СписокЗанять[ЧАС ПОЧАТКУ],10))*($B23<=СписокЗанять[ЧАС ЗАВЕРШЕННЯ]),СписокЗанять[УНІКАЛЬНІ]),СписокЗанять[УНІКАЛЬНІ],0),2),0)","v":0}]
[null,"13:00:00",{"$f":"IFERROR(INDEX(СписокЗанять[],MATCH(SUMPRODUCT((СписокЗанять[ДЕНЬ]=РозкладЗанять[[#Headers],[НЕДІЛЯ]])*(ROUNDDOWN($B24,10)>=ROUNDDOWN(СписокЗанять[ЧАС ПОЧАТКУ],10))*($B24<=СписокЗанять[ЧАС ЗАВЕРШЕННЯ]),СписокЗанять[УНІКАЛЬНІ]),СписокЗанять[УНІКАЛЬНІ],0),2),0)","v":0},{"$f":"IFERROR(INDEX(СписокЗанять[],MATCH(SUMPRODUCT((СписокЗанять[ДЕНЬ]=РозкладЗанять[[#Headers],[ПОНЕДІЛОК]])*(ROUNDDOWN($B24,10)>=ROUNDDOWN(СписокЗанять[ЧАС ПОЧАТКУ],10))*($B24<=СписокЗанять[ЧАС ЗАВЕРШЕННЯ]),СписокЗанять[УНІКАЛЬНІ]),СписокЗанять[УНІКАЛЬНІ],0),2),0)","v":"ТЕХД"},{"$f":"IFERROR(INDEX(СписокЗанять[],MATCH(SUMPRODUCT((СписокЗанять[ДЕНЬ]=РозкладЗанять[[#Headers],[ВІВТОРОК]])*(ROUNDDOWN($B24,10)>=ROUNDDOWN(СписокЗанять[ЧАС ПОЧАТКУ],10))*($B24<=СписокЗанять[ЧАС ЗАВЕРШЕННЯ]),СписокЗанять[УНІКАЛЬНІ]),СписокЗанять[УНІКАЛЬНІ],0),2),0)","v":0},{"$f":"IFERROR(INDEX(СписокЗанять[],MATCH(SUMPRODUCT((СписокЗанять[ДЕНЬ]=РозкладЗанять[[#Headers],[СЕРЕДА]])*(ROUNDDOWN($B24,10)>=ROUNDDOWN(СписокЗанять[ЧАС ПОЧАТКУ],10))*($B24<=СписокЗанять[ЧАС ЗАВЕРШЕННЯ]),СписокЗанять[УНІКАЛЬНІ]),СписокЗанять[УНІКАЛЬНІ],0),2),0)","v":"ТЕХД"},{"$f":"IFERROR(INDEX(СписокЗанять[],MATCH(SUMPRODUCT((СписокЗанять[ДЕНЬ]=РозкладЗанять[[#Headers],[ЧЕТВЕР]])*(ROUNDDOWN($B24,10)>=ROUNDDOWN(СписокЗанять[ЧАС ПОЧАТКУ],10))*($B24<=СписокЗанять[ЧАС ЗАВЕРШЕННЯ]),СписокЗанять[УНІКАЛЬНІ]),СписокЗанять[УНІКАЛЬНІ],0),2),0)","v":0},{"$f":"IFERROR(INDEX(СписокЗанять[],MATCH(SUMPRODUCT((СписокЗанять[ДЕНЬ]=РозкладЗанять[[#Headers],[П’ЯТНИЦЯ]])*(ROUNDDOWN($B24,10)>=ROUNDDOWN(СписокЗанять[ЧАС ПОЧАТКУ],10))*($B24<=СписокЗанять[ЧАС ЗАВЕРШЕННЯ]),СписокЗанять[УНІКАЛЬНІ]),СписокЗанять[УНІКАЛЬНІ],0),2),0)","v":0},{"$f":"IFERROR(INDEX(СписокЗанять[],MATCH(SUMPRODUCT((СписокЗанять[ДЕНЬ]=РозкладЗанять[[#Headers],[СУБОТА]])*(ROUNDDOWN($B24,10)>=ROUNDDOWN(СписокЗанять[ЧАС ПОЧАТКУ],10))*($B24<=СписокЗанять[ЧАС ЗАВЕРШЕННЯ]),СписокЗанять[УНІКАЛЬНІ]),СписокЗанять[УНІКАЛЬНІ],0),2),0)","v":0}]
[null,"13:15:00",{"$f":"IFERROR(INDEX(СписокЗанять[],MATCH(SUMPRODUCT((СписокЗанять[ДЕНЬ]=РозкладЗанять[[#Headers],[НЕДІЛЯ]])*(ROUNDDOWN($B25,10)>=ROUNDDOWN(СписокЗанять[ЧАС ПОЧАТКУ],10))*($B25<=СписокЗанять[ЧАС ЗАВЕРШЕННЯ]),СписокЗанять[УНІКАЛЬНІ]),СписокЗанять[УНІКАЛЬНІ],0),2),0)","v":0},{"$f":"IFERROR(INDEX(СписокЗанять[],MATCH(SUMPRODUCT((СписокЗанять[ДЕНЬ]=РозкладЗанять[[#Headers],[ПОНЕДІЛОК]])*(ROUNDDOWN($B25,10)>=ROUNDDOWN(СписокЗанять[ЧАС ПОЧАТКУ],10))*($B25<=СписокЗанять[ЧАС ЗАВЕРШЕННЯ]),СписокЗанять[УНІКАЛЬНІ]),СписокЗанять[УНІКАЛЬНІ],0),2),0)","v":"ТЕХД"},{"$f":"IFERROR(INDEX(СписокЗанять[],MATCH(SUMPRODUCT((СписокЗанять[ДЕНЬ]=РозкладЗанять[[#Headers],[ВІВТОРОК]])*(ROUNDDOWN($B25,10)>=ROUNDDOWN(СписокЗанять[ЧАС ПОЧАТКУ],10))*($B25<=СписокЗанять[ЧАС ЗАВЕРШЕННЯ]),СписокЗанять[УНІКАЛЬНІ]),СписокЗанять[УНІКАЛЬНІ],0),2),0)","v":0},{"$f":"IFERROR(INDEX(СписокЗанять[],MATCH(SUMPRODUCT((СписокЗанять[ДЕНЬ]=РозкладЗанять[[#Headers],[СЕРЕДА]])*(ROUNDDOWN($B25,10)>=ROUNDDOWN(СписокЗанять[ЧАС ПОЧАТКУ],10))*($B25<=СписокЗанять[ЧАС ЗАВЕРШЕННЯ]),СписокЗанять[УНІКАЛЬНІ]),СписокЗанять[УНІКАЛЬНІ],0),2),0)","v":"ТЕХД"},{"$f":"IFERROR(INDEX(СписокЗанять[],MATCH(SUMPRODUCT((СписокЗанять[ДЕНЬ]=РозкладЗанять[[#Headers],[ЧЕТВЕР]])*(ROUNDDOWN($B25,10)>=ROUNDDOWN(СписокЗанять[ЧАС ПОЧАТКУ],10))*($B25<=СписокЗанять[ЧАС ЗАВЕРШЕННЯ]),СписокЗанять[УНІКАЛЬНІ]),СписокЗанять[УНІКАЛЬНІ],0),2),0)","v":0},{"$f":"IFERROR(INDEX(СписокЗанять[],MATCH(SUMPRODUCT((СписокЗанять[ДЕНЬ]=РозкладЗанять[[#Headers],[П’ЯТНИЦЯ]])*(ROUNDDOWN($B25,10)>=ROUNDDOWN(СписокЗанять[ЧАС ПОЧАТКУ],10))*($B25<=СписокЗанять[ЧАС ЗАВЕРШЕННЯ]),СписокЗанять[УНІКАЛЬНІ]),СписокЗанять[УНІКАЛЬНІ],0),2),0)","v":0},{"$f":"IFERROR(INDEX(СписокЗанять[],MATCH(SUMPRODUCT((СписокЗанять[ДЕНЬ]=РозкладЗанять[[#Headers],[СУБОТА]])*(ROUNDDOWN($B25,10)>=ROUNDDOWN(СписокЗанять[ЧАС ПОЧАТКУ],10))*($B25<=СписокЗанять[ЧАС ЗАВЕРШЕННЯ]),СписокЗанять[УНІКАЛЬНІ]),СписокЗанять[УНІКАЛЬНІ],0),2),0)","v":0}]
[null,"13:30:00",{"$f":"IFERROR(INDEX(СписокЗанять[],MATCH(SUMPRODUCT((СписокЗанять[ДЕНЬ]=РозкладЗанять[[#Headers],[НЕДІЛЯ]])*(ROUNDDOWN($B26,10)>=ROUNDDOWN(СписокЗанять[ЧАС ПОЧАТКУ],10))*($B26<=СписокЗанять[ЧАС ЗАВЕРШЕННЯ]),СписокЗанять[УНІКАЛЬНІ]),СписокЗанять[УНІКАЛЬНІ],0),2),0)","v":0},{"$f":"IFERROR(INDEX(СписокЗанять[],MATCH(SUMPRODUCT((СписокЗанять[ДЕНЬ]=РозкладЗанять[[#Headers],[ПОНЕДІЛОК]])*(ROUNDDOWN($B26,10)>=ROUNDDOWN(СписокЗанять[ЧАС ПОЧАТКУ],10))*($B26<=СписокЗанять[ЧАС ЗАВЕРШЕННЯ]),СписокЗанять[УНІКАЛЬНІ]),СписокЗанять[УНІКАЛЬНІ],0),2),0)","v":"ТЕХД"},{"$f":"IFERROR(INDEX(СписокЗанять[],MATCH(SUMPRODUCT((СписокЗанять[ДЕНЬ]=РозкладЗанять[[#Headers],[ВІВТОРОК]])*(ROUNDDOWN($B26,10)>=ROUNDDOWN(СписокЗанять[ЧАС ПОЧАТКУ],10))*($B26<=СписокЗанять[ЧАС ЗАВЕРШЕННЯ]),СписокЗанять[УНІКАЛЬНІ]),СписокЗанять[УНІКАЛЬНІ],0),2),0)","v":0},{"$f":"IFERROR(INDEX(СписокЗанять[],MATCH(SUMPRODUCT((СписокЗанять[ДЕНЬ]=РозкладЗанять[[#Headers],[СЕРЕДА]])*(ROUNDDOWN($B26,10)>=ROUNDDOWN(СписокЗанять[ЧАС ПОЧАТКУ],10))*($B26<=СписокЗанять[ЧАС ЗАВЕРШЕННЯ]),СписокЗанять[УНІКАЛЬНІ]),СписокЗанять[УНІКАЛЬНІ],0),2),0)","v":"ТЕХД"},{"$f":"IFERROR(INDEX(СписокЗанять[],MATCH(SUMPRODUCT((СписокЗанять[ДЕНЬ]=РозкладЗанять[[#Headers],[ЧЕТВЕР]])*(ROUNDDOWN($B26,10)>=ROUNDDOWN(СписокЗанять[ЧАС ПОЧАТКУ],10))*($B26<=СписокЗанять[ЧАС ЗАВЕРШЕННЯ]),СписокЗанять[УНІКАЛЬНІ]),СписокЗанять[УНІКАЛЬНІ],0),2),0)","v":0},{"$f":"IFERROR(INDEX(СписокЗанять[],MATCH(SUMPRODUCT((СписокЗанять[ДЕНЬ]=РозкладЗанять[[#Headers],[П’ЯТНИЦЯ]])*(ROUNDDOWN($B26,10)>=ROUNDDOWN(СписокЗанять[ЧАС ПОЧАТКУ],10))*($B26<=СписокЗанять[ЧАС ЗАВЕРШЕННЯ]),СписокЗанять[УНІКАЛЬНІ]),СписокЗанять[УНІКАЛЬНІ],0),2),0)","v":0},{"$f":"IFERROR(INDEX(СписокЗанять[],MATCH(SUMPRODUCT((СписокЗанять[ДЕНЬ]=РозкладЗанять[[#Headers],[СУБОТА]])*(ROUNDDOWN($B26,10)>=ROUNDDOWN(СписокЗанять[ЧАС ПОЧАТКУ],10))*($B26<=СписокЗанять[ЧАС ЗАВЕРШЕННЯ]),СписокЗанять[УНІКАЛЬНІ]),СписокЗанять[УНІКАЛЬНІ],0),2),0)","v":0}]
[null,"13:45:00",{"$f":"IFERROR(INDEX(СписокЗанять[],MATCH(SUMPRODUCT((СписокЗанять[ДЕНЬ]=РозкладЗанять[[#Headers],[НЕДІЛЯ]])*(ROUNDDOWN($B27,10)>=ROUNDDOWN(СписокЗанять[ЧАС ПОЧАТКУ],10))*($B27<=СписокЗанять[ЧАС ЗАВЕРШЕННЯ]),СписокЗанять[УНІКАЛЬНІ]),СписокЗанять[УНІКАЛЬНІ],0),2),0)","v":0},{"$f":"IFERROR(INDEX(СписокЗанять[],MATCH(SUMPRODUCT((СписокЗанять[ДЕНЬ]=РозкладЗанять[[#Headers],[ПОНЕДІЛОК]])*(ROUNDDOWN($B27,10)>=ROUNDDOWN(СписокЗанять[ЧАС ПОЧАТКУ],10))*($B27<=СписокЗанять[ЧАС ЗАВЕРШЕННЯ]),СписокЗанять[УНІКАЛЬНІ]),СписокЗанять[УНІКАЛЬНІ],0),2),0)","v":"ТЕХД"},{"$f":"IFERROR(INDEX(СписокЗанять[],MATCH(SUMPRODUCT((СписокЗанять[ДЕНЬ]=РозкладЗанять[[#Headers],[ВІВТОРОК]])*(ROUNDDOWN($B27,10)>=ROUNDDOWN(СписокЗанять[ЧАС ПОЧАТКУ],10))*($B27<=СписокЗанять[ЧАС ЗАВЕРШЕННЯ]),СписокЗанять[УНІКАЛЬНІ]),СписокЗанять[УНІКАЛЬНІ],0),2),0)","v":0},{"$f":"IFERROR(INDEX(СписокЗанять[],MATCH(SUMPRODUCT((СписокЗанять[ДЕНЬ]=РозкладЗанять[[#Headers],[СЕРЕДА]])*(ROUNDDOWN($B27,10)>=ROUNDDOWN(СписокЗанять[ЧАС ПОЧАТКУ],10))*($B27<=СписокЗанять[ЧАС ЗАВЕРШЕННЯ]),СписокЗанять[УНІКАЛЬНІ]),СписокЗанять[УНІКАЛЬНІ],0),2),0)","v":"ТЕХД"},{"$f":"IFERROR(INDEX(СписокЗанять[],MATCH(SUMPRODUCT((СписокЗанять[ДЕНЬ]=РозкладЗанять[[#Headers],[ЧЕТВЕР]])*(ROUNDDOWN($B27,10)>=ROUNDDOWN(СписокЗанять[ЧАС ПОЧАТКУ],10))*($B27<=СписокЗанять[ЧАС ЗАВЕРШЕННЯ]),СписокЗанять[УНІКАЛЬНІ]),СписокЗанять[УНІКАЛЬНІ],0),2),0)","v":0},{"$f":"IFERROR(INDEX(СписокЗанять[],MATCH(SUMPRODUCT((СписокЗанять[ДЕНЬ]=РозкладЗанять[[#Headers],[П’ЯТНИЦЯ]])*(ROUNDDOWN($B27,10)>=ROUNDDOWN(СписокЗанять[ЧАС ПОЧАТКУ],10))*($B27<=СписокЗанять[ЧАС ЗАВЕРШЕННЯ]),СписокЗанять[УНІКАЛЬНІ]),СписокЗанять[УНІКАЛЬНІ],0),2),0)","v":0},{"$f":"IFERROR(INDEX(СписокЗанять[],MATCH(SUMPRODUCT((СписокЗанять[ДЕНЬ]=РозкладЗанять[[#Headers],[СУБОТА]])*(ROUNDDOWN($B27,10)>=ROUNDDOWN(СписокЗанять[ЧАС ПОЧАТКУ],10))*($B27<=СписокЗанять[ЧАС ЗАВЕРШЕННЯ]),СписокЗанять[УНІКАЛЬНІ]),СписокЗанять[УНІКАЛЬНІ],0),2),0)","v":0}]
[null,"14:00:00",{"$f":"IFERROR(INDEX(СписокЗанять[],MATCH(SUMPRODUCT((СписокЗанять[ДЕНЬ]=РозкладЗанять[[#Headers],[НЕДІЛЯ]])*(ROUNDDOWN($B28,10)>=ROUNDDOWN(СписокЗанять[ЧАС ПОЧАТКУ],10))*($B28<=СписокЗанять[ЧАС ЗАВЕРШЕННЯ]),СписокЗанять[УНІКАЛЬНІ]),СписокЗанять[УНІКАЛЬНІ],0),2),0)","v":0},{"$f":"IFERROR(INDEX(СписокЗанять[],MATCH(SUMPRODUCT((СписокЗанять[ДЕНЬ]=РозкладЗанять[[#Headers],[ПОНЕДІЛОК]])*(ROUNDDOWN($B28,10)>=ROUNDDOWN(СписокЗанять[ЧАС ПОЧАТКУ],10))*($B28<=СписокЗанять[ЧАС ЗАВЕРШЕННЯ]),СписокЗанять[УНІКАЛЬНІ]),СписокЗанять[УНІКАЛЬНІ],0),2),0)","v":"ТЕХД"},{"$f":"IFERROR(INDEX(СписокЗанять[],MATCH(SUMPRODUCT((СписокЗанять[ДЕНЬ]=РозкладЗанять[[#Headers],[ВІВТОРОК]])*(ROUNDDOWN($B28,10)>=ROUNDDOWN(СписокЗанять[ЧАС ПОЧАТКУ],10))*($B28<=СписокЗанять[ЧАС ЗАВЕРШЕННЯ]),СписокЗанять[УНІКАЛЬНІ]),СписокЗанять[УНІКАЛЬНІ],0),2),0)","v":0},{"$f":"IFERROR(INDEX(СписокЗанять[],MATCH(SUMPRODUCT((СписокЗанять[ДЕНЬ]=РозкладЗанять[[#Headers],[СЕРЕДА]])*(ROUNDDOWN($B28,10)>=ROUNDDOWN(СписокЗанять[ЧАС ПОЧАТКУ],10))*($B28<=СписокЗанять[ЧАС ЗАВЕРШЕННЯ]),СписокЗанять[УНІКАЛЬНІ]),СписокЗанять[УНІКАЛЬНІ],0),2),0)","v":"ТЕХД"},{"$f":"IFERROR(INDEX(СписокЗанять[],MATCH(SUMPRODUCT((СписокЗанять[ДЕНЬ]=РозкладЗанять[[#Headers],[ЧЕТВЕР]])*(ROUNDDOWN($B28,10)>=ROUNDDOWN(СписокЗанять[ЧАС ПОЧАТКУ],10))*($B28<=СписокЗанять[ЧАС ЗАВЕРШЕННЯ]),СписокЗанять[УНІКАЛЬНІ]),СписокЗанять[УНІКАЛЬНІ],0),2),0)","v":0},{"$f":"IFERROR(INDEX(СписокЗанять[],MATCH(SUMPRODUCT((СписокЗанять[ДЕНЬ]=РозкладЗанять[[#Headers],[П’ЯТНИЦЯ]])*(ROUNDDOWN($B28,10)>=ROUNDDOWN(СписокЗанять[ЧАС ПОЧАТКУ],10))*($B28<=СписокЗанять[ЧАС ЗАВЕРШЕННЯ]),СписокЗанять[УНІКАЛЬНІ]),СписокЗанять[УНІКАЛЬНІ],0),2),0)","v":0},{"$f":"IFERROR(INDEX(СписокЗанять[],MATCH(SUMPRODUCT((СписокЗанять[ДЕНЬ]=РозкладЗанять[[#Headers],[СУБОТА]])*(ROUNDDOWN($B28,10)>=ROUNDDOWN(СписокЗанять[ЧАС ПОЧАТКУ],10))*($B28<=СписокЗанять[ЧАС ЗАВЕРШЕННЯ]),СписокЗанять[УНІКАЛЬНІ]),СписокЗанять[УНІКАЛЬНІ],0),2),0)","v":0}]
[null,"14:15:00",{"$f":"IFERROR(INDEX(СписокЗанять[],MATCH(SUMPRODUCT((СписокЗанять[ДЕНЬ]=РозкладЗанять[[#Headers],[НЕДІЛЯ]])*(ROUNDDOWN($B29,10)>=ROUNDDOWN(СписокЗанять[ЧАС ПОЧАТКУ],10))*($B29<=СписокЗанять[ЧАС ЗАВЕРШЕННЯ]),СписокЗанять[УНІКАЛЬНІ]),СписокЗанять[УНІКАЛЬНІ],0),2),0)","v":0},{"$f":"IFERROR(INDEX(СписокЗанять[],MATCH(SUMPRODUCT((СписокЗанять[ДЕНЬ]=РозкладЗанять[[#Headers],[ПОНЕДІЛОК]])*(ROUNDDOWN($B29,10)>=ROUNDDOWN(СписокЗанять[ЧАС ПОЧАТКУ],10))*($B29<=СписокЗанять[ЧАС ЗАВЕРШЕННЯ]),СписокЗанять[УНІКАЛЬНІ]),СписокЗанять[УНІКАЛЬНІ],0),2),0)","v":0},{"$f":"IFERROR(INDEX(СписокЗанять[],MATCH(SUMPRODUCT((СписокЗанять[ДЕНЬ]=РозкладЗанять[[#Headers],[ВІВТОРОК]])*(ROUNDDOWN($B29,10)>=ROUNDDOWN(СписокЗанять[ЧАС ПОЧАТКУ],10))*($B29<=СписокЗанять[ЧАС ЗАВЕРШЕННЯ]),СписокЗанять[УНІКАЛЬНІ]),СписокЗанять[УНІКАЛЬНІ],0),2),0)","v":0},{"$f":"IFERROR(INDEX(СписокЗанять[],MATCH(SUMPRODUCT((СписокЗанять[ДЕНЬ]=РозкладЗанять[[#Headers],[СЕРЕДА]])*(ROUNDDOWN($B29,10)>=ROUNDDOWN(СписокЗанять[ЧАС ПОЧАТКУ],10))*($B29<=СписокЗанять[ЧАС ЗАВЕРШЕННЯ]),СписокЗанять[УНІКАЛЬНІ]),СписокЗанять[УНІКАЛЬНІ],0),2),0)","v":0},{"$f":"IFERROR(INDEX(СписокЗанять[],MATCH(SUMPRODUCT((СписокЗанять[ДЕНЬ]=РозкладЗанять[[#Headers],[ЧЕТВЕР]])*(ROUNDDOWN($B29,10)>=ROUNDDOWN(СписокЗанять[ЧАС ПОЧАТКУ],10))*($B29<=СписокЗанять[ЧАС ЗАВЕРШЕННЯ]),СписокЗанять[УНІКАЛЬНІ]),СписокЗанять[УНІКАЛЬНІ],0),2),0)","v":0},{"$f":"IFERROR(INDEX(СписокЗанять[],MATCH(SUMPRODUCT((СписокЗанять[ДЕНЬ]=РозкладЗанять[[#Headers],[П’ЯТНИЦЯ]])*(ROUNDDOWN($B29,10)>=ROUNDDOWN(СписокЗанять[ЧАС ПОЧАТКУ],10))*($B29<=СписокЗанять[ЧАС ЗАВЕРШЕННЯ]),СписокЗанять[УНІКАЛЬНІ]),СписокЗанять[УНІКАЛЬНІ],0),2),0)","v":0},{"$f":"IFERROR(INDEX(СписокЗанять[],MATCH(SUMPRODUCT((СписокЗанять[ДЕНЬ]=РозкладЗанять[[#Headers],[СУБОТА]])*(ROUNDDOWN($B29,10)>=ROUNDDOWN(СписокЗанять[ЧАС ПОЧАТКУ],10))*($B29<=СписокЗанять[ЧАС ЗАВЕРШЕННЯ]),СписокЗанять[УНІКАЛЬНІ]),СписокЗанять[УНІКАЛЬНІ],0),2),0)","v":0}]
[null,"14:30:00",{"$f":"IFERROR(INDEX(СписокЗанять[],MATCH(SUMPRODUCT((СписокЗанять[ДЕНЬ]=РозкладЗанять[[#Headers],[НЕДІЛЯ]])*(ROUNDDOWN($B30,10)>=ROUNDDOWN(СписокЗанять[ЧАС ПОЧАТКУ],10))*($B30<=СписокЗанять[ЧАС ЗАВЕРШЕННЯ]),СписокЗанять[УНІКАЛЬНІ]),СписокЗанять[УНІКАЛЬНІ],0),2),0)","v":0},{"$f":"IFERROR(INDEX(СписокЗанять[],MATCH(SUMPRODUCT((СписокЗанять[ДЕНЬ]=РозкладЗанять[[#Headers],[ПОНЕДІЛОК]])*(ROUNDDOWN($B30,10)>=ROUNDDOWN(СписокЗанять[ЧАС ПОЧАТКУ],10))*($B30<=СписокЗанять[ЧАС ЗАВЕРШЕННЯ]),СписокЗанять[УНІКАЛЬНІ]),СписокЗанять[УНІКАЛЬНІ],0),2),0)","v":0},{"$f":"IFERROR(INDEX(СписокЗанять[],MATCH(SUMPRODUCT((СписокЗанять[ДЕНЬ]=РозкладЗанять[[#Headers],[ВІВТОРОК]])*(ROUNDDOWN($B30,10)>=ROUNDDOWN(СписокЗанять[ЧАС ПОЧАТКУ],10))*($B30<=СписокЗанять[ЧАС ЗАВЕРШЕННЯ]),СписокЗанять[УНІКАЛЬНІ]),СписокЗанять[УНІКАЛЬНІ],0),2),0)","v":0},{"$f":"IFERROR(INDEX(СписокЗанять[],MATCH(SUMPRODUCT((СписокЗанять[ДЕНЬ]=РозкладЗанять[[#Headers],[СЕРЕДА]])*(ROUNDDOWN($B30,10)>=ROUNDDOWN(СписокЗанять[ЧАС ПОЧАТКУ],10))*($B30<=СписокЗанять[ЧАС ЗАВЕРШЕННЯ]),СписокЗанять[УНІКАЛЬНІ]),СписокЗанять[УНІКАЛЬНІ],0),2),0)","v":0},{"$f":"IFERROR(INDEX(СписокЗанять[],MATCH(SUMPRODUCT((СписокЗанять[ДЕНЬ]=РозкладЗанять[[#Headers],[ЧЕТВЕР]])*(ROUNDDOWN($B30,10)>=ROUNDDOWN(СписокЗанять[ЧАС ПОЧАТКУ],10))*($B30<=СписокЗанять[ЧАС ЗАВЕРШЕННЯ]),СписокЗанять[УНІКАЛЬНІ]),СписокЗанять[УНІКАЛЬНІ],0),2),0)","v":0},{"$f":"IFERROR(INDEX(СписокЗанять[],MATCH(SUMPRODUCT((СписокЗанять[ДЕНЬ]=РозкладЗанять[[#Headers],[П’ЯТНИЦЯ]])*(ROUNDDOWN($B30,10)>=ROUNDDOWN(СписокЗанять[ЧАС ПОЧАТКУ],10))*($B30<=СписокЗанять[ЧАС ЗАВЕРШЕННЯ]),СписокЗанять[УНІКАЛЬНІ]),СписокЗанять[УНІКАЛЬНІ],0),2),0)","v":0},{"$f":"IFERROR(INDEX(СписокЗанять[],MATCH(SUMPRODUCT((СписокЗанять[ДЕНЬ]=РозкладЗанять[[#Headers],[СУБОТА]])*(ROUNDDOWN($B30,10)>=ROUNDDOWN(СписокЗанять[ЧАС ПОЧАТКУ],10))*($B30<=СписокЗанять[ЧАС ЗАВЕРШЕННЯ]),СписокЗанять[УНІКАЛЬНІ]),СписокЗанять[УНІКАЛЬНІ],0),2),0)","v":0}]
[null,"14:45:00",{"$f":"IFERROR(INDEX(СписокЗанять[],MATCH(SUMPRODUCT((СписокЗанять[ДЕНЬ]=РозкладЗанять[[#Headers],[НЕДІЛЯ]])*(ROUNDDOWN($B31,10)>=ROUNDDOWN(СписокЗанять[ЧАС ПОЧАТКУ],10))*($B31<=СписокЗанять[ЧАС ЗАВЕРШЕННЯ]),СписокЗанять[УНІКАЛЬНІ]),СписокЗанять[УНІКАЛЬНІ],0),2),0)","v":0},{"$f":"IFERROR(INDEX(СписокЗанять[],MATCH(SUMPRODUCT((СписокЗанять[ДЕНЬ]=РозкладЗанять[[#Headers],[ПОНЕДІЛОК]])*(ROUNDDOWN($B31,10)>=ROUNDDOWN(СписокЗанять[ЧАС ПОЧАТКУ],10))*($B31<=СписокЗанять[ЧАС ЗАВЕРШЕННЯ]),СписокЗанять[УНІКАЛЬНІ]),СписокЗанять[УНІКАЛЬНІ],0),2),0)","v":0},{"$f":"IFERROR(INDEX(СписокЗанять[],MATCH(SUMPRODUCT((СписокЗанять[ДЕНЬ]=РозкладЗанять[[#Headers],[ВІВТОРОК]])*(ROUNDDOWN($B31,10)>=ROUNDDOWN(СписокЗанять[ЧАС ПОЧАТКУ],10))*($B31<=СписокЗанять[ЧАС ЗАВЕРШЕННЯ]),СписокЗанять[УНІКАЛЬНІ]),СписокЗанять[УНІКАЛЬНІ],0),2),0)","v":0},{"$f":"IFERROR(INDEX(СписокЗанять[],MATCH(SUMPRODUCT((СписокЗанять[ДЕНЬ]=РозкладЗанять[[#Headers],[СЕРЕДА]])*(ROUNDDOWN($B31,10)>=ROUNDDOWN(СписокЗанять[ЧАС ПОЧАТКУ],10))*($B31<=СписокЗанять[ЧАС ЗАВЕРШЕННЯ]),СписокЗанять[УНІКАЛЬНІ]),СписокЗанять[УНІКАЛЬНІ],0),2),0)","v":0},{"$f":"IFERROR(INDEX(СписокЗанять[],MATCH(SUMPRODUCT((СписокЗанять[ДЕНЬ]=РозкладЗанять[[#Headers],[ЧЕТВЕР]])*(ROUNDDOWN($B31,10)>=ROUNDDOWN(СписокЗанять[ЧАС ПОЧАТКУ],10))*($B31<=СписокЗанять[ЧАС ЗАВЕРШЕННЯ]),СписокЗанять[УНІКАЛЬНІ]),СписокЗанять[УНІКАЛЬНІ],0),2),0)","v":0},{"$f":"IFERROR(INDEX(СписокЗанять[],MATCH(SUMPRODUCT((СписокЗанять[ДЕНЬ]=РозкладЗанять[[#Headers],[П’ЯТНИЦЯ]])*(ROUNDDOWN($B31,10)>=ROUNDDOWN(СписокЗанять[ЧАС ПОЧАТКУ],10))*($B31<=СписокЗанять[ЧАС ЗАВЕРШЕННЯ]),СписокЗанять[УНІКАЛЬНІ]),СписокЗанять[УНІКАЛЬНІ],0),2),0)","v":0},{"$f":"IFERROR(INDEX(СписокЗанять[],MATCH(SUMPRODUCT((СписокЗанять[ДЕНЬ]=РозкладЗанять[[#Headers],[СУБОТА]])*(ROUNDDOWN($B31,10)>=ROUNDDOWN(СписокЗанять[ЧАС ПОЧАТКУ],10))*($B31<=СписокЗанять[ЧАС ЗАВЕРШЕННЯ]),СписокЗанять[УНІКАЛЬНІ]),СписокЗанять[УНІКАЛЬНІ],0),2),0)","v":0}]
[null,"15:00:00",{"$f":"IFERROR(INDEX(СписокЗанять[],MATCH(SUMPRODUCT((СписокЗанять[ДЕНЬ]=РозкладЗанять[[#Headers],[НЕДІЛЯ]])*(ROUNDDOWN($B32,10)>=ROUNDDOWN(СписокЗанять[ЧАС ПОЧАТКУ],10))*($B32<=СписокЗанять[ЧАС ЗАВЕРШЕННЯ]),СписокЗанять[УНІКАЛЬНІ]),СписокЗанять[УНІКАЛЬНІ],0),2),0)","v":0},{"$f":"IFERROR(INDEX(СписокЗанять[],MATCH(SUMPRODUCT((СписокЗанять[ДЕНЬ]=РозкладЗанять[[#Headers],[ПОНЕДІЛОК]])*(ROUNDDOWN($B32,10)>=ROUNDDOWN(СписокЗанять[ЧАС ПОЧАТКУ],10))*($B32<=СписокЗанять[ЧАС ЗАВЕРШЕННЯ]),СписокЗанять[УНІКАЛЬНІ]),СписокЗанять[УНІКАЛЬНІ],0),2),0)","v":0},{"$f":"IFERROR(INDEX(СписокЗанять[],MATCH(SUMPRODUCT((СписокЗанять[ДЕНЬ]=РозкладЗанять[[#Headers],[ВІВТОРОК]])*(ROUNDDOWN($B32,10)>=ROUNDDOWN(СписокЗанять[ЧАС ПОЧАТКУ],10))*($B32<=СписокЗанять[ЧАС ЗАВЕРШЕННЯ]),СписокЗанять[УНІКАЛЬНІ]),СписокЗанять[УНІКАЛЬНІ],0),2),0)","v":0},{"$f":"IFERROR(INDEX(СписокЗанять[],MATCH(SUMPRODUCT((СписокЗанять[ДЕНЬ]=РозкладЗанять[[#Headers],[СЕРЕДА]])*(ROUNDDOWN($B32,10)>=ROUNDDOWN(СписокЗанять[ЧАС ПОЧАТКУ],10))*($B32<=СписокЗанять[ЧАС ЗАВЕРШЕННЯ]),СписокЗанять[УНІКАЛЬНІ]),СписокЗанять[УНІКАЛЬНІ],0),2),0)","v":0},{"$f":"IFERROR(INDEX(СписокЗанять[],MATCH(SUMPRODUCT((СписокЗанять[ДЕНЬ]=РозкладЗанять[[#Headers],[ЧЕТВЕР]])*(ROUNDDOWN($B32,10)>=ROUNDDOWN(СписокЗанять[ЧАС ПОЧАТКУ],10))*($B32<=СписокЗанять[ЧАС ЗАВЕРШЕННЯ]),СписокЗанять[УНІКАЛЬНІ]),СписокЗанять[УНІКАЛЬНІ],0),2),0)","v":0},{"$f":"IFERROR(INDEX(СписокЗанять[],MATCH(SUMPRODUCT((СписокЗанять[ДЕНЬ]=РозкладЗанять[[#Headers],[П’ЯТНИЦЯ]])*(ROUNDDOWN($B32,10)>=ROUNDDOWN(СписокЗанять[ЧАС ПОЧАТКУ],10))*($B32<=СписокЗанять[ЧАС ЗАВЕРШЕННЯ]),СписокЗанять[УНІКАЛЬНІ]),СписокЗанять[УНІКАЛЬНІ],0),2),0)","v":0},{"$f":"IFERROR(INDEX(СписокЗанять[],MATCH(SUMPRODUCT((СписокЗанять[ДЕНЬ]=РозкладЗанять[[#Headers],[СУБОТА]])*(ROUNDDOWN($B32,10)>=ROUNDDOWN(СписокЗанять[ЧАС ПОЧАТКУ],10))*($B32<=СписокЗанять[ЧАС ЗАВЕРШЕННЯ]),СписокЗанять[УНІКАЛЬНІ]),СписокЗанять[УНІКАЛЬНІ],0),2),0)","v":0}]
[null,"15:15:00",{"$f":"IFERROR(INDEX(СписокЗанять[],MATCH(SUMPRODUCT((СписокЗанять[ДЕНЬ]=РозкладЗанять[[#Headers],[НЕДІЛЯ]])*(ROUNDDOWN($B33,10)>=ROUNDDOWN(СписокЗанять[ЧАС ПОЧАТКУ],10))*($B33<=СписокЗанять[ЧАС ЗАВЕРШЕННЯ]),СписокЗанять[УНІКАЛЬНІ]),СписокЗанять[УНІКАЛЬНІ],0),2),0)","v":0},{"$f":"IFERROR(INDEX(СписокЗанять[],MATCH(SUMPRODUCT((СписокЗанять[ДЕНЬ]=РозкладЗанять[[#Headers],[ПОНЕДІЛОК]])*(ROUNDDOWN($B33,10)>=ROUNDDOWN(СписокЗанять[ЧАС ПОЧАТКУ],10))*($B33<=СписокЗанять[ЧАС ЗАВЕРШЕННЯ]),СписокЗанять[УНІКАЛЬНІ]),СписокЗанять[УНІКАЛЬНІ],0),2),0)","v":0},{"$f":"IFERROR(INDEX(СписокЗанять[],MATCH(SUMPRODUCT((СписокЗанять[ДЕНЬ]=РозкладЗанять[[#Headers],[ВІВТОРОК]])*(ROUNDDOWN($B33,10)>=ROUNDDOWN(СписокЗанять[ЧАС ПОЧАТКУ],10))*($B33<=СписокЗанять[ЧАС ЗАВЕРШЕННЯ]),СписокЗанять[УНІКАЛЬНІ]),СписокЗанять[УНІКАЛЬНІ],0),2),0)","v":0},{"$f":"IFERROR(INDEX(СписокЗанять[],MATCH(SUMPRODUCT((СписокЗанять[ДЕНЬ]=РозкладЗанять[[#Headers],[СЕРЕДА]])*(ROUNDDOWN($B33,10)>=ROUNDDOWN(СписокЗанять[ЧАС ПОЧАТКУ],10))*($B33<=СписокЗанять[ЧАС ЗАВЕРШЕННЯ]),СписокЗанять[УНІКАЛЬНІ]),СписокЗанять[УНІКАЛЬНІ],0),2),0)","v":0},{"$f":"IFERROR(INDEX(СписокЗанять[],MATCH(SUMPRODUCT((СписокЗанять[ДЕНЬ]=РозкладЗанять[[#Headers],[ЧЕТВЕР]])*(ROUNDDOWN($B33,10)>=ROUNDDOWN(СписокЗанять[ЧАС ПОЧАТКУ],10))*($B33<=СписокЗанять[ЧАС ЗАВЕРШЕННЯ]),СписокЗанять[УНІКАЛЬНІ]),СписокЗанять[УНІКАЛЬНІ],0),2),0)","v":0},{"$f":"IFERROR(INDEX(СписокЗанять[],MATCH(SUMPRODUCT((СписокЗанять[ДЕНЬ]=РозкладЗанять[[#Headers],[П’ЯТНИЦЯ]])*(ROUNDDOWN($B33,10)>=ROUNDDOWN(СписокЗанять[ЧАС ПОЧАТКУ],10))*($B33<=СписокЗанять[ЧАС ЗАВЕРШЕННЯ]),СписокЗанять[УНІКАЛЬНІ]),СписокЗанять[УНІКАЛЬНІ],0),2),0)","v":0},{"$f":"IFERROR(INDEX(СписокЗанять[],MATCH(SUMPRODUCT((СписокЗанять[ДЕНЬ]=РозкладЗанять[[#Headers],[СУБОТА]])*(ROUNDDOWN($B33,10)>=ROUNDDOWN(СписокЗанять[ЧАС ПОЧАТКУ],10))*($B33<=СписокЗанять[ЧАС ЗАВЕРШЕННЯ]),СписокЗанять[УНІКАЛЬНІ]),СписокЗанять[УНІКАЛЬНІ],0),2),0)","v":0}]
[null,"15:30:00",{"$f":"IFERROR(INDEX(СписокЗанять[],MATCH(SUMPRODUCT((СписокЗанять[ДЕНЬ]=РозкладЗанять[[#Headers],[НЕДІЛЯ]])*(ROUNDDOWN($B34,10)>=ROUNDDOWN(СписокЗанять[ЧАС ПОЧАТКУ],10))*($B34<=СписокЗанять[ЧАС ЗАВЕРШЕННЯ]),СписокЗанять[УНІКАЛЬНІ]),СписокЗанять[УНІКАЛЬНІ],0),2),0)","v":0},{"$f":"IFERROR(INDEX(СписокЗанять[],MATCH(SUMPRODUCT((СписокЗанять[ДЕНЬ]=РозкладЗанять[[#Headers],[ПОНЕДІЛОК]])*(ROUNDDOWN($B34,10)>=ROUNDDOWN(СписокЗанять[ЧАС ПОЧАТКУ],10))*($B34<=СписокЗанять[ЧАС ЗАВЕРШЕННЯ]),СписокЗанять[УНІКАЛЬНІ]),СписокЗанять[УНІКАЛЬНІ],0),2),0)","v":0},{"$f":"IFERROR(INDEX(СписокЗанять[],MATCH(SUMPRODUCT((СписокЗанять[ДЕНЬ]=РозкладЗанять[[#Headers],[ВІВТОРОК]])*(ROUNDDOWN($B34,10)>=ROUNDDOWN(СписокЗанять[ЧАС ПОЧАТКУ],10))*($B34<=СписокЗанять[ЧАС ЗАВЕРШЕННЯ]),СписокЗанять[УНІКАЛЬНІ]),СписокЗанять[УНІКАЛЬНІ],0),2),0)","v":0},{"$f":"IFERROR(INDEX(СписокЗанять[],MATCH(SUMPRODUCT((СписокЗанять[ДЕНЬ]=РозкладЗанять[[#Headers],[СЕРЕДА]])*(ROUNDDOWN($B34,10)>=ROUNDDOWN(СписокЗанять[ЧАС ПОЧАТКУ],10))*($B34<=СписокЗанять[ЧАС ЗАВЕРШЕННЯ]),СписокЗанять[УНІКАЛЬНІ]),СписокЗанять[УНІКАЛЬНІ],0),2),0)","v":0},{"$f":"IFERROR(INDEX(СписокЗанять[],MATCH(SUMPRODUCT((СписокЗанять[ДЕНЬ]=РозкладЗанять[[#Headers],[ЧЕТВЕР]])*(ROUNDDOWN($B34,10)>=ROUNDDOWN(СписокЗанять[ЧАС ПОЧАТКУ],10))*($B34<=СписокЗанять[ЧАС ЗАВЕРШЕННЯ]),СписокЗанять[УНІКАЛЬНІ]),СписокЗанять[УНІКАЛЬНІ],0),2),0)","v":0},{"$f":"IFERROR(INDEX(СписокЗанять[],MATCH(SUMPRODUCT((СписокЗанять[ДЕНЬ]=РозкладЗанять[[#Headers],[П’ЯТНИЦЯ]])*(ROUNDDOWN($B34,10)>=ROUNDDOWN(СписокЗанять[ЧАС ПОЧАТКУ],10))*($B34<=СписокЗанять[ЧАС ЗАВЕРШЕННЯ]),СписокЗанять[УНІКАЛЬНІ]),СписокЗанять[УНІКАЛЬНІ],0),2),0)","v":0},{"$f":"IFERROR(INDEX(СписокЗанять[],MATCH(SUMPRODUCT((СписокЗанять[ДЕНЬ]=РозкладЗанять[[#Headers],[СУБОТА]])*(ROUNDDOWN($B34,10)>=ROUNDDOWN(СписокЗанять[ЧАС ПОЧАТКУ],10))*($B34<=СписокЗанять[ЧАС ЗАВЕРШЕННЯ]),СписокЗанять[УНІКАЛЬНІ]),СписокЗанять[УНІКАЛЬНІ],0),2),0)","v":0}]
[null,"15:45:00",{"$f":"IFERROR(INDEX(СписокЗанять[],MATCH(SUMPRODUCT((СписокЗанять[ДЕНЬ]=РозкладЗанять[[#Headers],[НЕДІЛЯ]])*(ROUNDDOWN($B35,10)>=ROUNDDOWN(СписокЗанять[ЧАС ПОЧАТКУ],10))*($B35<=СписокЗанять[ЧАС ЗАВЕРШЕННЯ]),СписокЗанять[УНІКАЛЬНІ]),СписокЗанять[УНІКАЛЬНІ],0),2),0)","v":0},{"$f":"IFERROR(INDEX(СписокЗанять[],MATCH(SUMPRODUCT((СписокЗанять[ДЕНЬ]=РозкладЗанять[[#Headers],[ПОНЕДІЛОК]])*(ROUNDDOWN($B35,10)>=ROUNDDOWN(СписокЗанять[ЧАС ПОЧАТКУ],10))*($B35<=СписокЗанять[ЧАС ЗАВЕРШЕННЯ]),СписокЗанять[УНІКАЛЬНІ]),СписокЗанять[УНІКАЛЬНІ],0),2),0)","v":0},{"$f":"IFERROR(INDEX(СписокЗанять[],MATCH(SUMPRODUCT((СписокЗанять[ДЕНЬ]=РозкладЗанять[[#Headers],[ВІВТОРОК]])*(ROUNDDOWN($B35,10)>=ROUNDDOWN(СписокЗанять[ЧАС ПОЧАТКУ],10))*($B35<=СписокЗанять[ЧАС ЗАВЕРШЕННЯ]),СписокЗанять[УНІКАЛЬНІ]),СписокЗанять[УНІКАЛЬНІ],0),2),0)","v":0},{"$f":"IFERROR(INDEX(СписокЗанять[],MATCH(SUMPRODUCT((СписокЗанять[ДЕНЬ]=РозкладЗанять[[#Headers],[СЕРЕДА]])*(ROUNDDOWN($B35,10)>=ROUNDDOWN(СписокЗанять[ЧАС ПОЧАТКУ],10))*($B35<=СписокЗанять[ЧАС ЗАВЕРШЕННЯ]),СписокЗанять[УНІКАЛЬНІ]),СписокЗанять[УНІКАЛЬНІ],0),2),0)","v":0},{"$f":"IFERROR(INDEX(СписокЗанять[],MATCH(SUMPRODUCT((СписокЗанять[ДЕНЬ]=РозкладЗанять[[#Headers],[ЧЕТВЕР]])*(ROUNDDOWN($B35,10)>=ROUNDDOWN(СписокЗанять[ЧАС ПОЧАТКУ],10))*($B35<=СписокЗанять[ЧАС ЗАВЕРШЕННЯ]),СписокЗанять[УНІКАЛЬНІ]),СписокЗанять[УНІКАЛЬНІ],0),2),0)","v":0},{"$f":"IFERROR(INDEX(СписокЗанять[],MATCH(SUMPRODUCT((СписокЗанять[ДЕНЬ]=РозкладЗанять[[#Headers],[П’ЯТНИЦЯ]])*(ROUNDDOWN($B35,10)>=ROUNDDOWN(СписокЗанять[ЧАС ПОЧАТКУ],10))*($B35<=СписокЗанять[ЧАС ЗАВЕРШЕННЯ]),СписокЗанять[УНІКАЛЬНІ]),СписокЗанять[УНІКАЛЬНІ],0),2),0)","v":0},{"$f":"IFERROR(INDEX(СписокЗанять[],MATCH(SUMPRODUCT((СписокЗанять[ДЕНЬ]=РозкладЗанять[[#Headers],[СУБОТА]])*(ROUNDDOWN($B35,10)>=ROUNDDOWN(СписокЗанять[ЧАС ПОЧАТКУ],10))*($B35<=СписокЗанять[ЧАС ЗАВЕРШЕННЯ]),СписокЗанять[УНІКАЛЬНІ]),СписокЗанять[УНІКАЛЬНІ],0),2),0)","v":0}]
[null,"16:00:00",{"$f":"IFERROR(INDEX(СписокЗанять[],MATCH(SUMPRODUCT((СписокЗанять[ДЕНЬ]=РозкладЗанять[[#Headers],[НЕДІЛЯ]])*(ROUNDDOWN($B36,10)>=ROUNDDOWN(СписокЗанять[ЧАС ПОЧАТКУ],10))*($B36<=СписокЗанять[ЧАС ЗАВЕРШЕННЯ]),СписокЗанять[УНІКАЛЬНІ]),СписокЗанять[УНІКАЛЬНІ],0),2),0)","v":0},{"$f":"IFERROR(INDEX(СписокЗанять[],MATCH(SUMPRODUCT((СписокЗанять[ДЕНЬ]=РозкладЗанять[[#Headers],[ПОНЕДІЛОК]])*(ROUNDDOWN($B36,10)>=ROUNDDOWN(СписокЗанять[ЧАС ПОЧАТКУ],10))*($B36<=СписокЗанять[ЧАС ЗАВЕРШЕННЯ]),СписокЗанять[УНІКАЛЬНІ]),СписокЗанять[УНІКАЛЬНІ],0),2),0)","v":"ОР"},{"$f":"IFERROR(INDEX(СписокЗанять[],MATCH(SUMPRODUCT((СписокЗанять[ДЕНЬ]=РозкладЗанять[[#Headers],[ВІВТОРОК]])*(ROUNDDOWN($B36,10)>=ROUNDDOWN(СписокЗанять[ЧАС ПОЧАТКУ],10))*($B36<=СписокЗанять[ЧАС ЗАВЕРШЕННЯ]),СписокЗанять[УНІКАЛЬНІ]),СписокЗанять[УНІКАЛЬНІ],0),2),0)","v":0},{"$f":"IFERROR(INDEX(СписокЗанять[],MATCH(SUMPRODUCT((СписокЗанять[ДЕНЬ]=РозкладЗанять[[#Headers],[СЕРЕДА]])*(ROUNDDOWN($B36,10)>=ROUNDDOWN(СписокЗанять[ЧАС ПОЧАТКУ],10))*($B36<=СписокЗанять[ЧАС ЗАВЕРШЕННЯ]),СписокЗанять[УНІКАЛЬНІ]),СписокЗанять[УНІКАЛЬНІ],0),2),0)","v":0},{"$f":"IFERROR(INDEX(СписокЗанять[],MATCH(SUMPRODUCT((СписокЗанять[ДЕНЬ]=РозкладЗанять[[#Headers],[ЧЕТВЕР]])*(ROUNDDOWN($B36,10)>=ROUNDDOWN(СписокЗанять[ЧАС ПОЧАТКУ],10))*($B36<=СписокЗанять[ЧАС ЗАВЕРШЕННЯ]),СписокЗанять[УНІКАЛЬНІ]),СписокЗанять[УНІКАЛЬНІ],0),2),0)","v":0},{"$f":"IFERROR(INDEX(СписокЗанять[],MATCH(SUMPRODUCT((СписокЗанять[ДЕНЬ]=РозкладЗанять[[#Headers],[П’ЯТНИЦЯ]])*(ROUNDDOWN($B36,10)>=ROUNDDOWN(СписокЗанять[ЧАС ПОЧАТКУ],10))*($B36<=СписокЗанять[ЧАС ЗАВЕРШЕННЯ]),СписокЗанять[УНІКАЛЬНІ]),СписокЗанять[УНІКАЛЬНІ],0),2),0)","v":0},{"$f":"IFERROR(INDEX(СписокЗанять[],MATCH(SUMPRODUCT((СписокЗанять[ДЕНЬ]=РозкладЗанять[[#Headers],[СУБОТА]])*(ROUNDDOWN($B36,10)>=ROUNDDOWN(СписокЗанять[ЧАС ПОЧАТКУ],10))*($B36<=СписокЗанять[ЧАС ЗАВЕРШЕННЯ]),СписокЗанять[УНІКАЛЬНІ]),СписокЗанять[УНІКАЛЬНІ],0),2),0)","v":0}]
[null,"16:15:00",{"$f":"IFERROR(INDEX(СписокЗанять[],MATCH(SUMPRODUCT((СписокЗанять[ДЕНЬ]=РозкладЗанять[[#Headers],[НЕДІЛЯ]])*(ROUNDDOWN($B37,10)>=ROUNDDOWN(СписокЗанять[ЧАС ПОЧАТКУ],10))*($B37<=СписокЗанять[ЧАС ЗАВЕРШЕННЯ]),СписокЗанять[УНІКАЛЬНІ]),СписокЗанять[УНІКАЛЬНІ],0),2),0)","v":0},{"$f":"IFERROR(INDEX(СписокЗанять[],MATCH(SUMPRODUCT((СписокЗанять[ДЕНЬ]=РозкладЗанять[[#Headers],[ПОНЕДІЛОК]])*(ROUNDDOWN($B37,10)>=ROUNDDOWN(СписокЗанять[ЧАС ПОЧАТКУ],10))*($B37<=СписокЗанять[ЧАС ЗАВЕРШЕННЯ]),СписокЗанять[УНІКАЛЬНІ]),СписокЗанять[УНІКАЛЬНІ],0),2),0)","v":"ОР"},{"$f":"IFERROR(INDEX(СписокЗанять[],MATCH(SUMPRODUCT((СписокЗанять[ДЕНЬ]=РозкладЗанять[[#Headers],[ВІВТОРОК]])*(ROUNDDOWN($B37,10)>=ROUNDDOWN(СписокЗанять[ЧАС ПОЧАТКУ],10))*($B37<=СписокЗанять[ЧАС ЗАВЕРШЕННЯ]),СписокЗанять[УНІКАЛЬНІ]),СписокЗанять[УНІКАЛЬНІ],0),2),0)","v":0},{"$f":"IFERROR(INDEX(СписокЗанять[],MATCH(SUMPRODUCT((СписокЗанять[ДЕНЬ]=РозкладЗанять[[#Headers],[СЕРЕДА]])*(ROUNDDOWN($B37,10)>=ROUNDDOWN(СписокЗанять[ЧАС ПОЧАТКУ],10))*($B37<=СписокЗанять[ЧАС ЗАВЕРШЕННЯ]),СписокЗанять[УНІКАЛЬНІ]),СписокЗанять[УНІКАЛЬНІ],0),2),0)","v":0},{"$f":"IFERROR(INDEX(СписокЗанять[],MATCH(SUMPRODUCT((СписокЗанять[ДЕНЬ]=РозкладЗанять[[#Headers],[ЧЕТВЕР]])*(ROUNDDOWN($B37,10)>=ROUNDDOWN(СписокЗанять[ЧАС ПОЧАТКУ],10))*($B37<=СписокЗанять[ЧАС ЗАВЕРШЕННЯ]),СписокЗанять[УНІКАЛЬНІ]),СписокЗанять[УНІКАЛЬНІ],0),2),0)","v":0},{"$f":"IFERROR(INDEX(СписокЗанять[],MATCH(SUMPRODUCT((СписокЗанять[ДЕНЬ]=РозкладЗанять[[#Headers],[П’ЯТНИЦЯ]])*(ROUNDDOWN($B37,10)>=ROUNDDOWN(СписокЗанять[ЧАС ПОЧАТКУ],10))*($B37<=СписокЗанять[ЧАС ЗАВЕРШЕННЯ]),СписокЗанять[УНІКАЛЬНІ]),СписокЗанять[УНІКАЛЬНІ],0),2),0)","v":0},{"$f":"IFERROR(INDEX(СписокЗанять[],MATCH(SUMPRODUCT((СписокЗанять[ДЕНЬ]=РозкладЗанять[[#Headers],[СУБОТА]])*(ROUNDDOWN($B37,10)>=ROUNDDOWN(СписокЗанять[ЧАС ПОЧАТКУ],10))*($B37<=СписокЗанять[ЧАС ЗАВЕРШЕННЯ]),СписокЗанять[УНІКАЛЬНІ]),СписокЗанять[УНІКАЛЬНІ],0),2),0)","v":0}]
[null,"16:30:00",{"$f":"IFERROR(INDEX(СписокЗанять[],MATCH(SUMPRODUCT((СписокЗанять[ДЕНЬ]=РозкладЗанять[[#Headers],[НЕДІЛЯ]])*(ROUNDDOWN($B38,10)>=ROUNDDOWN(СписокЗанять[ЧАС ПОЧАТКУ],10))*($B38<=СписокЗанять[ЧАС ЗАВЕРШЕННЯ]),СписокЗанять[УНІКАЛЬНІ]),СписокЗанять[УНІКАЛЬНІ],0),2),0)","v":0},{"$f":"IFERROR(INDEX(СписокЗанять[],MATCH(SUMPRODUCT((СписокЗанять[ДЕНЬ]=РозкладЗанять[[#Headers],[ПОНЕДІЛОК]])*(ROUNDDOWN($B38,10)>=ROUNDDOWN(СписокЗанять[ЧАС ПОЧАТКУ],10))*($B38<=СписокЗанять[ЧАС ЗАВЕРШЕННЯ]),СписокЗанять[УНІКАЛЬНІ]),СписокЗанять[УНІКАЛЬНІ],0),2),0)","v":"ОР"},{"$f":"IFERROR(INDEX(СписокЗанять[],MATCH(SUMPRODUCT((СписокЗанять[ДЕНЬ]=РозкладЗанять[[#Headers],[ВІВТОРОК]])*(ROUNDDOWN($B38,10)>=ROUNDDOWN(СписокЗанять[ЧАС ПОЧАТКУ],10))*($B38<=СписокЗанять[ЧАС ЗАВЕРШЕННЯ]),СписокЗанять[УНІКАЛЬНІ]),СписокЗанять[УНІКАЛЬНІ],0),2),0)","v":0},{"$f":"IFERROR(INDEX(СписокЗанять[],MATCH(SUMPRODUCT((СписокЗанять[ДЕНЬ]=РозкладЗанять[[#Headers],[СЕРЕДА]])*(ROUNDDOWN($B38,10)>=ROUNDDOWN(СписокЗанять[ЧАС ПОЧАТКУ],10))*($B38<=СписокЗанять[ЧАС ЗАВЕРШЕННЯ]),СписокЗанять[УНІКАЛЬНІ]),СписокЗанять[УНІКАЛЬНІ],0),2),0)","v":0},{"$f":"IFERROR(INDEX(СписокЗанять[],MATCH(SUMPRODUCT((СписокЗанять[ДЕНЬ]=РозкладЗанять[[#Headers],[ЧЕТВЕР]])*(ROUNDDOWN($B38,10)>=ROUNDDOWN(СписокЗанять[ЧАС ПОЧАТКУ],10))*($B38<=СписокЗанять[ЧАС ЗАВЕРШЕННЯ]),СписокЗанять[УНІКАЛЬНІ]),СписокЗанять[УНІКАЛЬНІ],0),2),0)","v":0},{"$f":"IFERROR(INDEX(СписокЗанять[],MATCH(SUMPRODUCT((СписокЗанять[ДЕНЬ]=РозкладЗанять[[#Headers],[П’ЯТНИЦЯ]])*(ROUNDDOWN($B38,10)>=ROUNDDOWN(СписокЗанять[ЧАС ПОЧАТКУ],10))*($B38<=СписокЗанять[ЧАС ЗАВЕРШЕННЯ]),СписокЗанять[УНІКАЛЬНІ]),СписокЗанять[УНІКАЛЬНІ],0),2),0)","v":0},{"$f":"IFERROR(INDEX(СписокЗанять[],MATCH(SUMPRODUCT((СписокЗанять[ДЕНЬ]=РозкладЗанять[[#Headers],[СУБОТА]])*(ROUNDDOWN($B38,10)>=ROUNDDOWN(СписокЗанять[ЧАС ПОЧАТКУ],10))*($B38<=СписокЗанять[ЧАС ЗАВЕРШЕННЯ]),СписокЗанять[УНІКАЛЬНІ]),СписокЗанять[УНІКАЛЬНІ],0),2),0)","v":0}]
[null,"16:45:00",{"$f":"IFERROR(INDEX(СписокЗанять[],MATCH(SUMPRODUCT((СписокЗанять[ДЕНЬ]=РозкладЗанять[[#Headers],[НЕДІЛЯ]])*(ROUNDDOWN($B39,10)>=ROUNDDOWN(СписокЗанять[ЧАС ПОЧАТКУ],10))*($B39<=СписокЗанять[ЧАС ЗАВЕРШЕННЯ]),СписокЗанять[УНІКАЛЬНІ]),СписокЗанять[УНІКАЛЬНІ],0),2),0)","v":0},{"$f":"IFERROR(INDEX(СписокЗанять[],MATCH(SUMPRODUCT((СписокЗанять[ДЕНЬ]=РозкладЗанять[[#Headers],[ПОНЕДІЛОК]])*(ROUNDDOWN($B39,10)>=ROUNDDOWN(СписокЗанять[ЧАС ПОЧАТКУ],10))*($B39<=СписокЗанять[ЧАС ЗАВЕРШЕННЯ]),СписокЗанять[УНІКАЛЬНІ]),СписокЗанять[УНІКАЛЬНІ],0),2),0)","v":"ОР"},{"$f":"IFERROR(INDEX(СписокЗанять[],MATCH(SUMPRODUCT((СписокЗанять[ДЕНЬ]=РозкладЗанять[[#Headers],[ВІВТОРОК]])*(ROUNDDOWN($B39,10)>=ROUNDDOWN(СписокЗанять[ЧАС ПОЧАТКУ],10))*($B39<=СписокЗанять[ЧАС ЗАВЕРШЕННЯ]),СписокЗанять[УНІКАЛЬНІ]),СписокЗанять[УНІКАЛЬНІ],0),2),0)","v":0},{"$f":"IFERROR(INDEX(СписокЗанять[],MATCH(SUMPRODUCT((СписокЗанять[ДЕНЬ]=РозкладЗанять[[#Headers],[СЕРЕДА]])*(ROUNDDOWN($B39,10)>=ROUNDDOWN(СписокЗанять[ЧАС ПОЧАТКУ],10))*($B39<=СписокЗанять[ЧАС ЗАВЕРШЕННЯ]),СписокЗанять[УНІКАЛЬНІ]),СписокЗанять[УНІКАЛЬНІ],0),2),0)","v":0},{"$f":"IFERROR(INDEX(СписокЗанять[],MATCH(SUMPRODUCT((СписокЗанять[ДЕНЬ]=РозкладЗанять[[#Headers],[ЧЕТВЕР]])*(ROUNDDOWN($B39,10)>=ROUNDDOWN(СписокЗанять[ЧАС ПОЧАТКУ],10))*($B39<=СписокЗанять[ЧАС ЗАВЕРШЕННЯ]),СписокЗанять[УНІКАЛЬНІ]),СписокЗанять[УНІКАЛЬНІ],0),2),0)","v":0},{"$f":"IFERROR(INDEX(СписокЗанять[],MATCH(SUMPRODUCT((СписокЗанять[ДЕНЬ]=РозкладЗанять[[#Headers],[П’ЯТНИЦЯ]])*(ROUNDDOWN($B39,10)>=ROUNDDOWN(СписокЗанять[ЧАС ПОЧАТКУ],10))*($B39<=СписокЗанять[ЧАС ЗАВЕРШЕННЯ]),СписокЗанять[УНІКАЛЬНІ]),СписокЗанять[УНІКАЛЬНІ],0),2),0)","v":0},{"$f":"IFERROR(INDEX(СписокЗанять[],MATCH(SUMPRODUCT((СписокЗанять[ДЕНЬ]=РозкладЗанять[[#Headers],[СУБОТА]])*(ROUNDDOWN($B39,10)>=ROUNDDOWN(СписокЗанять[ЧАС ПОЧАТКУ],10))*($B39<=СписокЗанять[ЧАС ЗАВЕРШЕННЯ]),СписокЗанять[УНІКАЛЬНІ]),СписокЗанять[УНІКАЛЬНІ],0),2),0)","v":0}]
[null,"17:00:00",{"$f":"IFERROR(INDEX(СписокЗанять[],MATCH(SUMPRODUCT((СписокЗанять[ДЕНЬ]=РозкладЗанять[[#Headers],[НЕДІЛЯ]])*(ROUNDDOWN($B40,10)>=ROUNDDOWN(СписокЗанять[ЧАС ПОЧАТКУ],10))*($B40<=СписокЗанять[ЧАС ЗАВЕРШЕННЯ]),СписокЗанять[УНІКАЛЬНІ]),СписокЗанять[УНІКАЛЬНІ],0),2),0)","v":0},{"$f":"IFERROR(INDEX(СписокЗанять[],MATCH(SUMPRODUCT((СписокЗанять[ДЕНЬ]=РозкладЗанять[[#Headers],[ПОНЕДІЛОК]])*(ROUNDDOWN($B40,10)>=ROUNDDOWN(СписокЗанять[ЧАС ПОЧАТКУ],10))*($B40<=СписокЗанять[ЧАС ЗАВЕРШЕННЯ]),СписокЗанять[УНІКАЛЬНІ]),СписокЗанять[УНІКАЛЬНІ],0),2),0)","v":"ОР"},{"$f":"IFERROR(INDEX(СписокЗанять[],MATCH(SUMPRODUCT((СписокЗанять[ДЕНЬ]=РозкладЗанять[[#Headers],[ВІВТОРОК]])*(ROUNDDOWN($B40,10)>=ROUNDDOWN(СписокЗанять[ЧАС ПОЧАТКУ],10))*($B40<=СписокЗанять[ЧАС ЗАВЕРШЕННЯ]),СписокЗанять[УНІКАЛЬНІ]),СписокЗанять[УНІКАЛЬНІ],0),2),0)","v":0},{"$f":"IFERROR(INDEX(СписокЗанять[],MATCH(SUMPRODUCT((СписокЗанять[ДЕНЬ]=РозкладЗанять[[#Headers],[СЕРЕДА]])*(ROUNDDOWN($B40,10)>=ROUNDDOWN(СписокЗанять[ЧАС ПОЧАТКУ],10))*($B40<=СписокЗанять[ЧАС ЗАВЕРШЕННЯ]),СписокЗанять[УНІКАЛЬНІ]),СписокЗанять[УНІКАЛЬНІ],0),2),0)","v":0},{"$f":"IFERROR(INDEX(СписокЗанять[],MATCH(SUMPRODUCT((СписокЗанять[ДЕНЬ]=РозкладЗанять[[#Headers],[ЧЕТВЕР]])*(ROUNDDOWN($B40,10)>=ROUNDDOWN(СписокЗанять[ЧАС ПОЧАТКУ],10))*($B40<=СписокЗанять[ЧАС ЗАВЕРШЕННЯ]),СписокЗанять[УНІКАЛЬНІ]),СписокЗанять[УНІКАЛЬНІ],0),2),0)","v":0},{"$f":"IFERROR(INDEX(СписокЗанять[],MATCH(SUMPRODUCT((СписокЗанять[ДЕНЬ]=РозкладЗанять[[#Headers],[П’ЯТНИЦЯ]])*(ROUNDDOWN($B40,10)>=ROUNDDOWN(СписокЗанять[ЧАС ПОЧАТКУ],10))*($B40<=СписокЗанять[ЧАС ЗАВЕРШЕННЯ]),СписокЗанять[УНІКАЛЬНІ]),СписокЗанять[УНІКАЛЬНІ],0),2),0)","v":0},{"$f":"IFERROR(INDEX(СписокЗанять[],MATCH(SUMPRODUCT((СписокЗанять[ДЕНЬ]=РозкладЗанять[[#Headers],[СУБОТА]])*(ROUNDDOWN($B40,10)>=ROUNDDOWN(СписокЗанять[ЧАС ПОЧАТКУ],10))*($B40<=СписокЗанять[ЧАС ЗАВЕРШЕННЯ]),СписокЗанять[УНІКАЛЬНІ]),СписокЗанять[УНІКАЛЬНІ],0),2),0)","v":0}]
[null,"17:15:00",{"$f":"IFERROR(INDEX(СписокЗанять[],MATCH(SUMPRODUCT((СписокЗанять[ДЕНЬ]=РозкладЗанять[[#Headers],[НЕДІЛЯ]])*(ROUNDDOWN($B41,10)>=ROUNDDOWN(СписокЗанять[ЧАС ПОЧАТКУ],10))*($B41<=СписокЗанять[ЧАС ЗАВЕРШЕННЯ]),СписокЗанять[УНІКАЛЬНІ]),СписокЗанять[УНІКАЛЬНІ],0),2),0)","v":0},{"$f":"IFERROR(INDEX(СписокЗанять[],MATCH(SUMPRODUCT((СписокЗанять[ДЕНЬ]=РозкладЗанять[[#Headers],[ПОНЕДІЛОК]])*(ROUNDDOWN($B41,10)>=ROUNDDOWN(СписокЗанять[ЧАС ПОЧАТКУ],10))*($B41<=СписокЗанять[ЧАС ЗАВЕРШЕННЯ]),СписокЗанять[УНІКАЛЬНІ]),СписокЗанять[УНІКАЛЬНІ],0),2),0)","v":0},{"$f":"IFERROR(INDEX(СписокЗанять[],MATCH(SUMPRODUCT((СписокЗанять[ДЕНЬ]=РозкладЗанять[[#Headers],[ВІВТОРОК]])*(ROUNDDOWN($B41,10)>=ROUNDDOWN(СписокЗанять[ЧАС ПОЧАТКУ],10))*($B41<=СписокЗанять[ЧАС ЗАВЕРШЕННЯ]),СписокЗанять[УНІКАЛЬНІ]),СписокЗанять[УНІКАЛЬНІ],0),2),0)","v":0},{"$f":"IFERROR(INDEX(СписокЗанять[],MATCH(SUMPRODUCT((СписокЗанять[ДЕНЬ]=РозкладЗанять[[#Headers],[СЕРЕДА]])*(ROUNDDOWN($B41,10)>=ROUNDDOWN(СписокЗанять[ЧАС ПОЧАТКУ],10))*($B41<=СписокЗанять[ЧАС ЗАВЕРШЕННЯ]),СписокЗанять[УНІКАЛЬНІ]),СписокЗанять[УНІКАЛЬНІ],0),2),0)","v":0},{"$f":"IFERROR(INDEX(СписокЗанять[],MATCH(SUMPRODUCT((СписокЗанять[ДЕНЬ]=РозкладЗанять[[#Headers],[ЧЕТВЕР]])*(ROUNDDOWN($B41,10)>=ROUNDDOWN(СписокЗанять[ЧАС ПОЧАТКУ],10))*($B41<=СписокЗанять[ЧАС ЗАВЕРШЕННЯ]),СписокЗанять[УНІКАЛЬНІ]),СписокЗанять[УНІКАЛЬНІ],0),2),0)","v":0},{"$f":"IFERROR(INDEX(СписокЗанять[],MATCH(SUMPRODUCT((СписокЗанять[ДЕНЬ]=РозкладЗанять[[#Headers],[П’ЯТНИЦЯ]])*(ROUNDDOWN($B41,10)>=ROUNDDOWN(СписокЗанять[ЧАС ПОЧАТКУ],10))*($B41<=СписокЗанять[ЧАС ЗАВЕРШЕННЯ]),СписокЗанять[УНІКАЛЬНІ]),СписокЗанять[УНІКАЛЬНІ],0),2),0)","v":0},{"$f":"IFERROR(INDEX(СписокЗанять[],MATCH(SUMPRODUCT((СписокЗанять[ДЕНЬ]=РозкладЗанять[[#Headers],[СУБОТА]])*(ROUNDDOWN($B41,10)>=ROUNDDOWN(СписокЗанять[ЧАС ПОЧАТКУ],10))*($B41<=СписокЗанять[ЧАС ЗАВЕРШЕННЯ]),СписокЗанять[УНІКАЛЬНІ]),СписокЗанять[УНІКАЛЬНІ],0),2),0)","v":0}]
[null,"17:30:00",{"$f":"IFERROR(INDEX(СписокЗанять[],MATCH(SUMPRODUCT((СписокЗанять[ДЕНЬ]=РозкладЗанять[[#Headers],[НЕДІЛЯ]])*(ROUNDDOWN($B42,10)>=ROUNDDOWN(СписокЗанять[ЧАС ПОЧАТКУ],10))*($B42<=СписокЗанять[ЧАС ЗАВЕРШЕННЯ]),СписокЗанять[УНІКАЛЬНІ]),СписокЗанять[УНІКАЛЬНІ],0),2),0)","v":0},{"$f":"IFERROR(INDEX(СписокЗанять[],MATCH(SUMPRODUCT((СписокЗанять[ДЕНЬ]=РозкладЗанять[[#Headers],[ПОНЕДІЛОК]])*(ROUNDDOWN($B42,10)>=ROUNDDOWN(СписокЗанять[ЧАС ПОЧАТКУ],10))*($B42<=СписокЗанять[ЧАС ЗАВЕРШЕННЯ]),СписокЗанять[УНІКАЛЬНІ]),СписокЗанять[УНІКАЛЬНІ],0),2),0)","v":0},{"$f":"IFERROR(INDEX(СписокЗанять[],MATCH(SUMPRODUCT((СписокЗанять[ДЕНЬ]=РозкладЗанять[[#Headers],[ВІВТОРОК]])*(ROUNDDOWN($B42,10)>=ROUNDDOWN(СписокЗанять[ЧАС ПОЧАТКУ],10))*($B42<=СписокЗанять[ЧАС ЗАВЕРШЕННЯ]),СписокЗанять[УНІКАЛЬНІ]),СписокЗанять[УНІКАЛЬНІ],0),2),0)","v":0},{"$f":"IFERROR(INDEX(СписокЗанять[],MATCH(SUMPRODUCT((СписокЗанять[ДЕНЬ]=РозкладЗанять[[#Headers],[СЕРЕДА]])*(ROUNDDOWN($B42,10)>=ROUNDDOWN(СписокЗанять[ЧАС ПОЧАТКУ],10))*($B42<=СписокЗанять[ЧАС ЗАВЕРШЕННЯ]),СписокЗанять[УНІКАЛЬНІ]),СписокЗанять[УНІКАЛЬНІ],0),2),0)","v":0},{"$f":"IFERROR(INDEX(СписокЗанять[],MATCH(SUMPRODUCT((СписокЗанять[ДЕНЬ]=РозкладЗанять[[#Headers],[ЧЕТВЕР]])*(ROUNDDOWN($B42,10)>=ROUNDDOWN(СписокЗанять[ЧАС ПОЧАТКУ],10))*($B42<=СписокЗанять[ЧАС ЗАВЕРШЕННЯ]),СписокЗанять[УНІКАЛЬНІ]),СписокЗанять[УНІКАЛЬНІ],0),2),0)","v":0},{"$f":"IFERROR(INDEX(СписокЗанять[],MATCH(SUMPRODUCT((СписокЗанять[ДЕНЬ]=РозкладЗанять[[#Headers],[П’ЯТНИЦЯ]])*(ROUNDDOWN($B42,10)>=ROUNDDOWN(СписокЗанять[ЧАС ПОЧАТКУ],10))*($B42<=СписокЗанять[ЧАС ЗАВЕРШЕННЯ]),СписокЗанять[УНІКАЛЬНІ]),СписокЗанять[УНІКАЛЬНІ],0),2),0)","v":0},{"$f":"IFERROR(INDEX(СписокЗанять[],MATCH(SUMPRODUCT((СписокЗанять[ДЕНЬ]=РозкладЗанять[[#Headers],[СУБОТА]])*(ROUNDDOWN($B42,10)>=ROUNDDOWN(СписокЗанять[ЧАС ПОЧАТКУ],10))*($B42<=СписокЗанять[ЧАС ЗАВЕРШЕННЯ]),СписокЗанять[УНІКАЛЬНІ]),СписокЗанять[УНІКАЛЬНІ],0),2),0)","v":0}]
[null,"17:45:00",{"$f":"IFERROR(INDEX(СписокЗанять[],MATCH(SUMPRODUCT((СписокЗанять[ДЕНЬ]=РозкладЗанять[[#Headers],[НЕДІЛЯ]])*(ROUNDDOWN($B43,10)>=ROUNDDOWN(СписокЗанять[ЧАС ПОЧАТКУ],10))*($B43<=СписокЗанять[ЧАС ЗАВЕРШЕННЯ]),СписокЗанять[УНІКАЛЬНІ]),СписокЗанять[УНІКАЛЬНІ],0),2),0)","v":0},{"$f":"IFERROR(INDEX(СписокЗанять[],MATCH(SUMPRODUCT((СписокЗанять[ДЕНЬ]=РозкладЗанять[[#Headers],[ПОНЕДІЛОК]])*(ROUNDDOWN($B43,10)>=ROUNDDOWN(СписокЗанять[ЧАС ПОЧАТКУ],10))*($B43<=СписокЗанять[ЧАС ЗАВЕРШЕННЯ]),СписокЗанять[УНІКАЛЬНІ]),СписокЗанять[УНІКАЛЬНІ],0),2),0)","v":0},{"$f":"IFERROR(INDEX(СписокЗанять[],MATCH(SUMPRODUCT((СписокЗанять[ДЕНЬ]=РозкладЗанять[[#Headers],[ВІВТОРОК]])*(ROUNDDOWN($B43,10)>=ROUNDDOWN(СписокЗанять[ЧАС ПОЧАТКУ],10))*($B43<=СписокЗанять[ЧАС ЗАВЕРШЕННЯ]),СписокЗанять[УНІКАЛЬНІ]),СписокЗанять[УНІКАЛЬНІ],0),2),0)","v":0},{"$f":"IFERROR(INDEX(СписокЗанять[],MATCH(SUMPRODUCT((СписокЗанять[ДЕНЬ]=РозкладЗанять[[#Headers],[СЕРЕДА]])*(ROUNDDOWN($B43,10)>=ROUNDDOWN(СписокЗанять[ЧАС ПОЧАТКУ],10))*($B43<=СписокЗанять[ЧАС ЗАВЕРШЕННЯ]),СписокЗанять[УНІКАЛЬНІ]),СписокЗанять[УНІКАЛЬНІ],0),2),0)","v":0},{"$f":"IFERROR(INDEX(СписокЗанять[],MATCH(SUMPRODUCT((СписокЗанять[ДЕНЬ]=РозкладЗанять[[#Headers],[ЧЕТВЕР]])*(ROUNDDOWN($B43,10)>=ROUNDDOWN(СписокЗанять[ЧАС ПОЧАТКУ],10))*($B43<=СписокЗанять[ЧАС ЗАВЕРШЕННЯ]),СписокЗанять[УНІКАЛЬНІ]),СписокЗанять[УНІКАЛЬНІ],0),2),0)","v":0},{"$f":"IFERROR(INDEX(СписокЗанять[],MATCH(SUMPRODUCT((СписокЗанять[ДЕНЬ]=РозкладЗанять[[#Headers],[П’ЯТНИЦЯ]])*(ROUNDDOWN($B43,10)>=ROUNDDOWN(СписокЗанять[ЧАС ПОЧАТКУ],10))*($B43<=СписокЗанять[ЧАС ЗАВЕРШЕННЯ]),СписокЗанять[УНІКАЛЬНІ]),СписокЗанять[УНІКАЛЬНІ],0),2),0)","v":0},{"$f":"IFERROR(INDEX(СписокЗанять[],MATCH(SUMPRODUCT((СписокЗанять[ДЕНЬ]=РозкладЗанять[[#Headers],[СУБОТА]])*(ROUNDDOWN($B43,10)>=ROUNDDOWN(СписокЗанять[ЧАС ПОЧАТКУ],10))*($B43<=СписокЗанять[ЧАС ЗАВЕРШЕННЯ]),СписокЗанять[УНІКАЛЬНІ]),СписокЗанять[УНІКАЛЬНІ],0),2),0)","v":0}]
[null,"18:00:00",{"$f":"IFERROR(INDEX(СписокЗанять[],MATCH(SUMPRODUCT((СписокЗанять[ДЕНЬ]=РозкладЗанять[[#Headers],[НЕДІЛЯ]])*(ROUNDDOWN($B44,10)>=ROUNDDOWN(СписокЗанять[ЧАС ПОЧАТКУ],10))*($B44<=СписокЗанять[ЧАС ЗАВЕРШЕННЯ]),СписокЗанять[УНІКАЛЬНІ]),СписокЗанять[УНІКАЛЬНІ],0),2),0)","v":0},{"$f":"IFERROR(INDEX(СписокЗанять[],MATCH(SUMPRODUCT((СписокЗанять[ДЕНЬ]=РозкладЗанять[[#Headers],[ПОНЕДІЛОК]])*(ROUNDDOWN($B44,10)>=ROUNDDOWN(СписокЗанять[ЧАС ПОЧАТКУ],10))*($B44<=СписокЗанять[ЧАС ЗАВЕРШЕННЯ]),СписокЗанять[УНІКАЛЬНІ]),СписокЗанять[УНІКАЛЬНІ],0),2),0)","v":0},{"$f":"IFERROR(INDEX(СписокЗанять[],MATCH(SUMPRODUCT((СписокЗанять[ДЕНЬ]=РозкладЗанять[[#Headers],[ВІВТОРОК]])*(ROUNDDOWN($B44,10)>=ROUNDDOWN(СписокЗанять[ЧАС ПОЧАТКУ],10))*($B44<=СписокЗанять[ЧАС ЗАВЕРШЕННЯ]),СписокЗанять[УНІКАЛЬНІ]),СписокЗанять[УНІКАЛЬНІ],0),2),0)","v":0},{"$f":"IFERROR(INDEX(СписокЗанять[],MATCH(SUMPRODUCT((СписокЗанять[ДЕНЬ]=РозкладЗанять[[#Headers],[СЕРЕДА]])*(ROUNDDOWN($B44,10)>=ROUNDDOWN(СписокЗанять[ЧАС ПОЧАТКУ],10))*($B44<=СписокЗанять[ЧАС ЗАВЕРШЕННЯ]),СписокЗанять[УНІКАЛЬНІ]),СписокЗанять[УНІКАЛЬНІ],0),2),0)","v":0},{"$f":"IFERROR(INDEX(СписокЗанять[],MATCH(SUMPRODUCT((СписокЗанять[ДЕНЬ]=РозкладЗанять[[#Headers],[ЧЕТВЕР]])*(ROUNDDOWN($B44,10)>=ROUNDDOWN(СписокЗанять[ЧАС ПОЧАТКУ],10))*($B44<=СписокЗанять[ЧАС ЗАВЕРШЕННЯ]),СписокЗанять[УНІКАЛЬНІ]),СписокЗанять[УНІКАЛЬНІ],0),2),0)","v":0},{"$f":"IFERROR(INDEX(СписокЗанять[],MATCH(SUMPRODUCT((СписокЗанять[ДЕНЬ]=РозкладЗанять[[#Headers],[П’ЯТНИЦЯ]])*(ROUNDDOWN($B44,10)>=ROUNDDOWN(СписокЗанять[ЧАС ПОЧАТКУ],10))*($B44<=СписокЗанять[ЧАС ЗАВЕРШЕННЯ]),СписокЗанять[УНІКАЛЬНІ]),СписокЗанять[УНІКАЛЬНІ],0),2),0)","v":0},{"$f":"IFERROR(INDEX(СписокЗанять[],MATCH(SUMPRODUCT((СписокЗанять[ДЕНЬ]=РозкладЗанять[[#Headers],[СУБОТА]])*(ROUNDDOWN($B44,10)>=ROUNDDOWN(СписокЗанять[ЧАС ПОЧАТКУ],10))*($B44<=СписокЗанять[ЧАС ЗАВЕРШЕННЯ]),СписокЗанять[УНІКАЛЬНІ]),СписокЗанять[УНІКАЛЬНІ],0),2),0)","v":0}]
[null,"18:15:00",{"$f":"IFERROR(INDEX(СписокЗанять[],MATCH(SUMPRODUCT((СписокЗанять[ДЕНЬ]=РозкладЗанять[[#Headers],[НЕДІЛЯ]])*(ROUNDDOWN($B45,10)>=ROUNDDOWN(СписокЗанять[ЧАС ПОЧАТКУ],10))*($B45<=СписокЗанять[ЧАС ЗАВЕРШЕННЯ]),СписокЗанять[УНІКАЛЬНІ]),СписокЗанять[УНІКАЛЬНІ],0),2),0)","v":0},{"$f":"IFERROR(INDEX(СписокЗанять[],MATCH(SUMPRODUCT((СписокЗанять[ДЕНЬ]=РозкладЗанять[[#Headers],[ПОНЕДІЛОК]])*(ROUNDDOWN($B45,10)>=ROUNDDOWN(СписокЗанять[ЧАС ПОЧАТКУ],10))*($B45<=СписокЗанять[ЧАС ЗАВЕРШЕННЯ]),СписокЗанять[УНІКАЛЬНІ]),СписокЗанять[УНІКАЛЬНІ],0),2),0)","v":0},{"$f":"IFERROR(INDEX(СписокЗанять[],MATCH(SUMPRODUCT((СписокЗанять[ДЕНЬ]=РозкладЗанять[[#Headers],[ВІВТОРОК]])*(ROUNDDOWN($B45,10)>=ROUNDDOWN(СписокЗанять[ЧАС ПОЧАТКУ],10))*($B45<=СписокЗанять[ЧАС ЗАВЕРШЕННЯ]),СписокЗанять[УНІКАЛЬНІ]),СписокЗанять[УНІКАЛЬНІ],0),2),0)","v":0},{"$f":"IFERROR(INDEX(СписокЗанять[],MATCH(SUMPRODUCT((СписокЗанять[ДЕНЬ]=РозкладЗанять[[#Headers],[СЕРЕДА]])*(ROUNDDOWN($B45,10)>=ROUNDDOWN(СписокЗанять[ЧАС ПОЧАТКУ],10))*($B45<=СписокЗанять[ЧАС ЗАВЕРШЕННЯ]),СписокЗанять[УНІКАЛЬНІ]),СписокЗанять[УНІКАЛЬНІ],0),2),0)","v":0},{"$f":"IFERROR(INDEX(СписокЗанять[],MATCH(SUMPRODUCT((СписокЗанять[ДЕНЬ]=РозкладЗанять[[#Headers],[ЧЕТВЕР]])*(ROUNDDOWN($B45,10)>=ROUNDDOWN(СписокЗанять[ЧАС ПОЧАТКУ],10))*($B45<=СписокЗанять[ЧАС ЗАВЕРШЕННЯ]),СписокЗанять[УНІКАЛЬНІ]),СписокЗанять[УНІКАЛЬНІ],0),2),0)","v":0},{"$f":"IFERROR(INDEX(СписокЗанять[],MATCH(SUMPRODUCT((СписокЗанять[ДЕНЬ]=РозкладЗанять[[#Headers],[П’ЯТНИЦЯ]])*(ROUNDDOWN($B45,10)>=ROUNDDOWN(СписокЗанять[ЧАС ПОЧАТКУ],10))*($B45<=СписокЗанять[ЧАС ЗАВЕРШЕННЯ]),СписокЗанять[УНІКАЛЬНІ]),СписокЗанять[УНІКАЛЬНІ],0),2),0)","v":0},{"$f":"IFERROR(INDEX(СписокЗанять[],MATCH(SUMPRODUCT((СписокЗанять[ДЕНЬ]=РозкладЗанять[[#Headers],[СУБОТА]])*(ROUNDDOWN($B45,10)>=ROUNDDOWN(СписокЗанять[ЧАС ПОЧАТКУ],10))*($B45<=СписокЗанять[ЧАС ЗАВЕРШЕННЯ]),СписокЗанять[УНІКАЛЬНІ]),СписокЗанять[УНІКАЛЬНІ],0),2),0)","v":0}]
[null,"18:30:00",{"$f":"IFERROR(INDEX(СписокЗанять[],MATCH(SUMPRODUCT((СписокЗанять[ДЕНЬ]=РозкладЗанять[[#Headers],[НЕДІЛЯ]])*(ROUNDDOWN($B46,10)>=ROUNDDOWN(СписокЗанять[ЧАС ПОЧАТКУ],10))*($B46<=СписокЗанять[ЧАС ЗАВЕРШЕННЯ]),СписокЗанять[УНІКАЛЬНІ]),СписокЗанять[УНІКАЛЬНІ],0),2),0)","v":0},{"$f":"IFERROR(INDEX(СписокЗанять[],MATCH(SUMPRODUCT((СписокЗанять[ДЕНЬ]=РозкладЗанять[[#Headers],[ПОНЕДІЛОК]])*(ROUNDDOWN($B46,10)>=ROUNDDOWN(СписокЗанять[ЧАС ПОЧАТКУ],10))*($B46<=СписокЗанять[ЧАС ЗАВЕРШЕННЯ]),СписокЗанять[УНІКАЛЬНІ]),СписокЗанять[УНІКАЛЬНІ],0),2),0)","v":0},{"$f":"IFERROR(INDEX(СписокЗанять[],MATCH(SUMPRODUCT((СписокЗанять[ДЕНЬ]=РозкладЗанять[[#Headers],[ВІВТОРОК]])*(ROUNDDOWN($B46,10)>=ROUNDDOWN(СписокЗанять[ЧАС ПОЧАТКУ],10))*($B46<=СписокЗанять[ЧАС ЗАВЕРШЕННЯ]),СписокЗанять[УНІКАЛЬНІ]),СписокЗанять[УНІКАЛЬНІ],0),2),0)","v":0},{"$f":"IFERROR(INDEX(СписокЗанять[],MATCH(SUMPRODUCT((СписокЗанять[ДЕНЬ]=РозкладЗанять[[#Headers],[СЕРЕДА]])*(ROUNDDOWN($B46,10)>=ROUNDDOWN(СписокЗанять[ЧАС ПОЧАТКУ],10))*($B46<=СписокЗанять[ЧАС ЗАВЕРШЕННЯ]),СписокЗанять[УНІКАЛЬНІ]),СписокЗанять[УНІКАЛЬНІ],0),2),0)","v":0},{"$f":"IFERROR(INDEX(СписокЗанять[],MATCH(SUMPRODUCT((СписокЗанять[ДЕНЬ]=РозкладЗанять[[#Headers],[ЧЕТВЕР]])*(ROUNDDOWN($B46,10)>=ROUNDDOWN(СписокЗанять[ЧАС ПОЧАТКУ],10))*($B46<=СписокЗанять[ЧАС ЗАВЕРШЕННЯ]),СписокЗанять[УНІКАЛЬНІ]),СписокЗанять[УНІКАЛЬНІ],0),2),0)","v":0},{"$f":"IFERROR(INDEX(СписокЗанять[],MATCH(SUMPRODUCT((СписокЗанять[ДЕНЬ]=РозкладЗанять[[#Headers],[П’ЯТНИЦЯ]])*(ROUNDDOWN($B46,10)>=ROUNDDOWN(СписокЗанять[ЧАС ПОЧАТКУ],10))*($B46<=СписокЗанять[ЧАС ЗАВЕРШЕННЯ]),СписокЗанять[УНІКАЛЬНІ]),СписокЗанять[УНІКАЛЬНІ],0),2),0)","v":0},{"$f":"IFERROR(INDEX(СписокЗанять[],MATCH(SUMPRODUCT((СписокЗанять[ДЕНЬ]=РозкладЗанять[[#Headers],[СУБОТА]])*(ROUNDDOWN($B46,10)>=ROUNDDOWN(СписокЗанять[ЧАС ПОЧАТКУ],10))*($B46<=СписокЗанять[ЧАС ЗАВЕРШЕННЯ]),СписокЗанять[УНІКАЛЬНІ]),СписокЗанять[УНІКАЛЬНІ],0),2),0)","v":0}]
[null,"18:45:00",{"$f":"IFERROR(INDEX(СписокЗанять[],MATCH(SUMPRODUCT((СписокЗанять[ДЕНЬ]=РозкладЗанять[[#Headers],[НЕДІЛЯ]])*(ROUNDDOWN($B47,10)>=ROUNDDOWN(СписокЗанять[ЧАС ПОЧАТКУ],10))*($B47<=СписокЗанять[ЧАС ЗАВЕРШЕННЯ]),СписокЗанять[УНІКАЛЬНІ]),СписокЗанять[УНІКАЛЬНІ],0),2),0)","v":0},{"$f":"IFERROR(INDEX(СписокЗанять[],MATCH(SUMPRODUCT((СписокЗанять[ДЕНЬ]=РозкладЗанять[[#Headers],[ПОНЕДІЛОК]])*(ROUNDDOWN($B47,10)>=ROUNDDOWN(СписокЗанять[ЧАС ПОЧАТКУ],10))*($B47<=СписокЗанять[ЧАС ЗАВЕРШЕННЯ]),СписокЗанять[УНІКАЛЬНІ]),СписокЗанять[УНІКАЛЬНІ],0),2),0)","v":0},{"$f":"IFERROR(INDEX(СписокЗанять[],MATCH(SUMPRODUCT((СписокЗанять[ДЕНЬ]=РозкладЗанять[[#Headers],[ВІВТОРОК]])*(ROUNDDOWN($B47,10)>=ROUNDDOWN(СписокЗанять[ЧАС ПОЧАТКУ],10))*($B47<=СписокЗанять[ЧАС ЗАВЕРШЕННЯ]),СписокЗанять[УНІКАЛЬНІ]),СписокЗанять[УНІКАЛЬНІ],0),2),0)","v":0},{"$f":"IFERROR(INDEX(СписокЗанять[],MATCH(SUMPRODUCT((СписокЗанять[ДЕНЬ]=РозкладЗанять[[#Headers],[СЕРЕДА]])*(ROUNDDOWN($B47,10)>=ROUNDDOWN(СписокЗанять[ЧАС ПОЧАТКУ],10))*($B47<=СписокЗанять[ЧАС ЗАВЕРШЕННЯ]),СписокЗанять[УНІКАЛЬНІ]),СписокЗанять[УНІКАЛЬНІ],0),2),0)","v":0},{"$f":"IFERROR(INDEX(СписокЗанять[],MATCH(SUMPRODUCT((СписокЗанять[ДЕНЬ]=РозкладЗанять[[#Headers],[ЧЕТВЕР]])*(ROUNDDOWN($B47,10)>=ROUNDDOWN(СписокЗанять[ЧАС ПОЧАТКУ],10))*($B47<=СписокЗанять[ЧАС ЗАВЕРШЕННЯ]),СписокЗанять[УНІКАЛЬНІ]),СписокЗанять[УНІКАЛЬНІ],0),2),0)","v":0},{"$f":"IFERROR(INDEX(СписокЗанять[],MATCH(SUMPRODUCT((СписокЗанять[ДЕНЬ]=РозкладЗанять[[#Headers],[П’ЯТНИЦЯ]])*(ROUNDDOWN($B47,10)>=ROUNDDOWN(СписокЗанять[ЧАС ПОЧАТКУ],10))*($B47<=СписокЗанять[ЧАС ЗАВЕРШЕННЯ]),СписокЗанять[УНІКАЛЬНІ]),СписокЗанять[УНІКАЛЬНІ],0),2),0)","v":0},{"$f":"IFERROR(INDEX(СписокЗанять[],MATCH(SUMPRODUCT((СписокЗанять[ДЕНЬ]=РозкладЗанять[[#Headers],[СУБОТА]])*(ROUNDDOWN($B47,10)>=ROUNDDOWN(СписокЗанять[ЧАС ПОЧАТКУ],10))*($B47<=СписокЗанять[ЧАС ЗАВЕРШЕННЯ]),СписокЗанять[УНІКАЛЬНІ]),СписокЗанять[УНІКАЛЬНІ],0),2),0)","v":0}]
[null,"19:00:00",{"$f":"IFERROR(INDEX(СписокЗанять[],MATCH(SUMPRODUCT((СписокЗанять[ДЕНЬ]=РозкладЗанять[[#Headers],[НЕДІЛЯ]])*(ROUNDDOWN($B48,10)>=ROUNDDOWN(СписокЗанять[ЧАС ПОЧАТКУ],10))*($B48<=СписокЗанять[ЧАС ЗАВЕРШЕННЯ]),СписокЗанять[УНІКАЛЬНІ]),СписокЗанять[УНІКАЛЬНІ],0),2),0)","v":0},{"$f":"IFERROR(INDEX(СписокЗанять[],MATCH(SUMPRODUCT((СписокЗанять[ДЕНЬ]=РозкладЗанять[[#Headers],[ПОНЕДІЛОК]])*(ROUNDDOWN($B48,10)>=ROUNDDOWN(СписокЗанять[ЧАС ПОЧАТКУ],10))*($B48<=СписокЗанять[ЧАС ЗАВЕРШЕННЯ]),СписокЗанять[УНІКАЛЬНІ]),СписокЗанять[УНІКАЛЬНІ],0),2),0)","v":0},{"$f":"IFERROR(INDEX(СписокЗанять[],MATCH(SUMPRODUCT((СписокЗанять[ДЕНЬ]=РозкладЗанять[[#Headers],[ВІВТОРОК]])*(ROUNDDOWN($B48,10)>=ROUNDDOWN(СписокЗанять[ЧАС ПОЧАТКУ],10))*($B48<=СписокЗанять[ЧАС ЗАВЕРШЕННЯ]),СписокЗанять[УНІКАЛЬНІ]),СписокЗанять[УНІКАЛЬНІ],0),2),0)","v":0},{"$f":"IFERROR(INDEX(СписокЗанять[],MATCH(SUMPRODUCT((СписокЗанять[ДЕНЬ]=РозкладЗанять[[#Headers],[СЕРЕДА]])*(ROUNDDOWN($B48,10)>=ROUNDDOWN(СписокЗанять[ЧАС ПОЧАТКУ],10))*($B48<=СписокЗанять[ЧАС ЗАВЕРШЕННЯ]),СписокЗанять[УНІКАЛЬНІ]),СписокЗанять[УНІКАЛЬНІ],0),2),0)","v":0},{"$f":"IFERROR(INDEX(СписокЗанять[],MATCH(SUMPRODUCT((СписокЗанять[ДЕНЬ]=РозкладЗанять[[#Headers],[ЧЕТВЕР]])*(ROUNDDOWN($B48,10)>=ROUNDDOWN(СписокЗанять[ЧАС ПОЧАТКУ],10))*($B48<=СписокЗанять[ЧАС ЗАВЕРШЕННЯ]),СписокЗанять[УНІКАЛЬНІ]),СписокЗанять[УНІКАЛЬНІ],0),2),0)","v":0},{"$f":"IFERROR(INDEX(СписокЗанять[],MATCH(SUMPRODUCT((СписокЗанять[ДЕНЬ]=РозкладЗанять[[#Headers],[П’ЯТНИЦЯ]])*(ROUNDDOWN($B48,10)>=ROUNDDOWN(СписокЗанять[ЧАС ПОЧАТКУ],10))*($B48<=СписокЗанять[ЧАС ЗАВЕРШЕННЯ]),СписокЗанять[УНІКАЛЬНІ]),СписокЗанять[УНІКАЛЬНІ],0),2),0)","v":0},{"$f":"IFERROR(INDEX(СписокЗанять[],MATCH(SUMPRODUCT((СписокЗанять[ДЕНЬ]=РозкладЗанять[[#Headers],[СУБОТА]])*(ROUNDDOWN($B48,10)>=ROUNDDOWN(СписокЗанять[ЧАС ПОЧАТКУ],10))*($B48<=СписокЗанять[ЧАС ЗАВЕРШЕННЯ]),СписокЗанять[УНІКАЛЬНІ]),СписокЗанять[УНІКАЛЬНІ],0),2),0)","v":0}]
[null,"19:15:00",{"$f":"IFERROR(INDEX(СписокЗанять[],MATCH(SUMPRODUCT((СписокЗанять[ДЕНЬ]=РозкладЗанять[[#Headers],[НЕДІЛЯ]])*(ROUNDDOWN($B49,10)>=ROUNDDOWN(СписокЗанять[ЧАС ПОЧАТКУ],10))*($B49<=СписокЗанять[ЧАС ЗАВЕРШЕННЯ]),СписокЗанять[УНІКАЛЬНІ]),СписокЗанять[УНІКАЛЬНІ],0),2),0)","v":0},{"$f":"IFERROR(INDEX(СписокЗанять[],MATCH(SUMPRODUCT((СписокЗанять[ДЕНЬ]=РозкладЗанять[[#Headers],[ПОНЕДІЛОК]])*(ROUNDDOWN($B49,10)>=ROUNDDOWN(СписокЗанять[ЧАС ПОЧАТКУ],10))*($B49<=СписокЗанять[ЧАС ЗАВЕРШЕННЯ]),СписокЗанять[УНІКАЛЬНІ]),СписокЗанять[УНІКАЛЬНІ],0),2),0)","v":0},{"$f":"IFERROR(INDEX(СписокЗанять[],MATCH(SUMPRODUCT((СписокЗанять[ДЕНЬ]=РозкладЗанять[[#Headers],[ВІВТОРОК]])*(ROUNDDOWN($B49,10)>=ROUNDDOWN(СписокЗанять[ЧАС ПОЧАТКУ],10))*($B49<=СписокЗанять[ЧАС ЗАВЕРШЕННЯ]),СписокЗанять[УНІКАЛЬНІ]),СписокЗанять[УНІКАЛЬНІ],0),2),0)","v":0},{"$f":"IFERROR(INDEX(СписокЗанять[],MATCH(SUMPRODUCT((СписокЗанять[ДЕНЬ]=РозкладЗанять[[#Headers],[СЕРЕДА]])*(ROUNDDOWN($B49,10)>=ROUNDDOWN(СписокЗанять[ЧАС ПОЧАТКУ],10))*($B49<=СписокЗанять[ЧАС ЗАВЕРШЕННЯ]),СписокЗанять[УНІКАЛЬНІ]),СписокЗанять[УНІКАЛЬНІ],0),2),0)","v":0},{"$f":"IFERROR(INDEX(СписокЗанять[],MATCH(SUMPRODUCT((СписокЗанять[ДЕНЬ]=РозкладЗанять[[#Headers],[ЧЕТВЕР]])*(ROUNDDOWN($B49,10)>=ROUNDDOWN(СписокЗанять[ЧАС ПОЧАТКУ],10))*($B49<=СписокЗанять[ЧАС ЗАВЕРШЕННЯ]),СписокЗанять[УНІКАЛЬНІ]),СписокЗанять[УНІКАЛЬНІ],0),2),0)","v":0},{"$f":"IFERROR(INDEX(СписокЗанять[],MATCH(SUMPRODUCT((СписокЗанять[ДЕНЬ]=РозкладЗанять[[#Headers],[П’ЯТНИЦЯ]])*(ROUNDDOWN($B49,10)>=ROUNDDOWN(СписокЗанять[ЧАС ПОЧАТКУ],10))*($B49<=СписокЗанять[ЧАС ЗАВЕРШЕННЯ]),СписокЗанять[УНІКАЛЬНІ]),СписокЗанять[УНІКАЛЬНІ],0),2),0)","v":0},{"$f":"IFERROR(INDEX(СписокЗанять[],MATCH(SUMPRODUCT((СписокЗанять[ДЕНЬ]=РозкладЗанять[[#Headers],[СУБОТА]])*(ROUNDDOWN($B49,10)>=ROUNDDOWN(СписокЗанять[ЧАС ПОЧАТКУ],10))*($B49<=СписокЗанять[ЧАС ЗАВЕРШЕННЯ]),СписокЗанять[УНІКАЛЬНІ]),СписокЗанять[УНІКАЛЬНІ],0),2),0)","v":0}]
[null,"19:30:00",{"$f":"IFERROR(INDEX(СписокЗанять[],MATCH(SUMPRODUCT((СписокЗанять[ДЕНЬ]=РозкладЗанять[[#Headers],[НЕДІЛЯ]])*(ROUNDDOWN($B50,10)>=ROUNDDOWN(СписокЗанять[ЧАС ПОЧАТКУ],10))*($B50<=СписокЗанять[ЧАС ЗАВЕРШЕННЯ]),СписокЗанять[УНІКАЛЬНІ]),СписокЗанять[УНІКАЛЬНІ],0),2),0)","v":0},{"$f":"IFERROR(INDEX(СписокЗанять[],MATCH(SUMPRODUCT((СписокЗанять[ДЕНЬ]=РозкладЗанять[[#Headers],[ПОНЕДІЛОК]])*(ROUNDDOWN($B50,10)>=ROUNDDOWN(СписокЗанять[ЧАС ПОЧАТКУ],10))*($B50<=СписокЗанять[ЧАС ЗАВЕРШЕННЯ]),СписокЗанять[УНІКАЛЬНІ]),СписокЗанять[УНІКАЛЬНІ],0),2),0)","v":0},{"$f":"IFERROR(INDEX(СписокЗанять[],MATCH(SUMPRODUCT((СписокЗанять[ДЕНЬ]=РозкладЗанять[[#Headers],[ВІВТОРОК]])*(ROUNDDOWN($B50,10)>=ROUNDDOWN(СписокЗанять[ЧАС ПОЧАТКУ],10))*($B50<=СписокЗанять[ЧАС ЗАВЕРШЕННЯ]),СписокЗанять[УНІКАЛЬНІ]),СписокЗанять[УНІКАЛЬНІ],0),2),0)","v":0},{"$f":"IFERROR(INDEX(СписокЗанять[],MATCH(SUMPRODUCT((СписокЗанять[ДЕНЬ]=РозкладЗанять[[#Headers],[СЕРЕДА]])*(ROUNDDOWN($B50,10)>=ROUNDDOWN(СписокЗанять[ЧАС ПОЧАТКУ],10))*($B50<=СписокЗанять[ЧАС ЗАВЕРШЕННЯ]),СписокЗанять[УНІКАЛЬНІ]),СписокЗанять[УНІКАЛЬНІ],0),2),0)","v":0},{"$f":"IFERROR(INDEX(СписокЗанять[],MATCH(SUMPRODUCT((СписокЗанять[ДЕНЬ]=РозкладЗанять[[#Headers],[ЧЕТВЕР]])*(ROUNDDOWN($B50,10)>=ROUNDDOWN(СписокЗанять[ЧАС ПОЧАТКУ],10))*($B50<=СписокЗанять[ЧАС ЗАВЕРШЕННЯ]),СписокЗанять[УНІКАЛЬНІ]),СписокЗанять[УНІКАЛЬНІ],0),2),0)","v":0},{"$f":"IFERROR(INDEX(СписокЗанять[],MATCH(SUMPRODUCT((СписокЗанять[ДЕНЬ]=РозкладЗанять[[#Headers],[П’ЯТНИЦЯ]])*(ROUNDDOWN($B50,10)>=ROUNDDOWN(СписокЗанять[ЧАС ПОЧАТКУ],10))*($B50<=СписокЗанять[ЧАС ЗАВЕРШЕННЯ]),СписокЗанять[УНІКАЛЬНІ]),СписокЗанять[УНІКАЛЬНІ],0),2),0)","v":0},{"$f":"IFERROR(INDEX(СписокЗанять[],MATCH(SUMPRODUCT((СписокЗанять[ДЕНЬ]=РозкладЗанять[[#Headers],[СУБОТА]])*(ROUNDDOWN($B50,10)>=ROUNDDOWN(СписокЗанять[ЧАС ПОЧАТКУ],10))*($B50<=СписокЗанять[ЧАС ЗАВЕРШЕННЯ]),СписокЗанять[УНІКАЛЬНІ]),СписокЗанять[УНІКАЛЬНІ],0),2),0)","v":0}]
[null,"19:45:00",{"$f":"IFERROR(INDEX(СписокЗанять[],MATCH(SUMPRODUCT((СписокЗанять[ДЕНЬ]=РозкладЗанять[[#Headers],[НЕДІЛЯ]])*(ROUNDDOWN($B51,10)>=ROUNDDOWN(СписокЗанять[ЧАС ПОЧАТКУ],10))*($B51<=СписокЗанять[ЧАС ЗАВЕРШЕННЯ]),СписокЗанять[УНІКАЛЬНІ]),СписокЗанять[УНІКАЛЬНІ],0),2),0)","v":0},{"$f":"IFERROR(INDEX(СписокЗанять[],MATCH(SUMPRODUCT((СписокЗанять[ДЕНЬ]=РозкладЗанять[[#Headers],[ПОНЕДІЛОК]])*(ROUNDDOWN($B51,10)>=ROUNDDOWN(СписокЗанять[ЧАС ПОЧАТКУ],10))*($B51<=СписокЗанять[ЧАС ЗАВЕРШЕННЯ]),СписокЗанять[УНІКАЛЬНІ]),СписокЗанять[УНІКАЛЬНІ],0),2),0)","v":0},{"$f":"IFERROR(INDEX(СписокЗанять[],MATCH(SUMPRODUCT((СписокЗанять[ДЕНЬ]=РозкладЗанять[[#Headers],[ВІВТОРОК]])*(ROUNDDOWN($B51,10)>=ROUNDDOWN(СписокЗанять[ЧАС ПОЧАТКУ],10))*($B51<=СписокЗанять[ЧАС ЗАВЕРШЕННЯ]),СписокЗанять[УНІКАЛЬНІ]),СписокЗанять[УНІКАЛЬНІ],0),2),0)","v":0},{"$f":"IFERROR(INDEX(СписокЗанять[],MATCH(SUMPRODUCT((СписокЗанять[ДЕНЬ]=РозкладЗанять[[#Headers],[СЕРЕДА]])*(ROUNDDOWN($B51,10)>=ROUNDDOWN(СписокЗанять[ЧАС ПОЧАТКУ],10))*($B51<=СписокЗанять[ЧАС ЗАВЕРШЕННЯ]),СписокЗанять[УНІКАЛЬНІ]),СписокЗанять[УНІКАЛЬНІ],0),2),0)","v":0},{"$f":"IFERROR(INDEX(СписокЗанять[],MATCH(SUMPRODUCT((СписокЗанять[ДЕНЬ]=РозкладЗанять[[#Headers],[ЧЕТВЕР]])*(ROUNDDOWN($B51,10)>=ROUNDDOWN(СписокЗанять[ЧАС ПОЧАТКУ],10))*($B51<=СписокЗанять[ЧАС ЗАВЕРШЕННЯ]),СписокЗанять[УНІКАЛЬНІ]),СписокЗанять[УНІКАЛЬНІ],0),2),0)","v":0},{"$f":"IFERROR(INDEX(СписокЗанять[],MATCH(SUMPRODUCT((СписокЗанять[ДЕНЬ]=РозкладЗанять[[#Headers],[П’ЯТНИЦЯ]])*(ROUNDDOWN($B51,10)>=ROUNDDOWN(СписокЗанять[ЧАС ПОЧАТКУ],10))*($B51<=СписокЗанять[ЧАС ЗАВЕРШЕННЯ]),СписокЗанять[УНІКАЛЬНІ]),СписокЗанять[УНІКАЛЬНІ],0),2),0)","v":0},{"$f":"IFERROR(INDEX(СписокЗанять[],MATCH(SUMPRODUCT((СписокЗанять[ДЕНЬ]=РозкладЗанять[[#Headers],[СУБОТА]])*(ROUNDDOWN($B51,10)>=ROUNDDOWN(СписокЗанять[ЧАС ПОЧАТКУ],10))*($B51<=СписокЗанять[ЧАС ЗАВЕРШЕННЯ]),СписокЗанять[УНІКАЛЬНІ]),СписокЗанять[УНІКАЛЬНІ],0),2),0)","v":0}]
[null,"20:00:00",{"$f":"IFERROR(INDEX(СписокЗанять[],MATCH(SUMPRODUCT((СписокЗанять[ДЕНЬ]=РозкладЗанять[[#Headers],[НЕДІЛЯ]])*(ROUNDDOWN($B52,10)>=ROUNDDOWN(СписокЗанять[ЧАС ПОЧАТКУ],10))*($B52<=СписокЗанять[ЧАС ЗАВЕРШЕННЯ]),СписокЗанять[УНІКАЛЬНІ]),СписокЗанять[УНІКАЛЬНІ],0),2),0)","v":0},{"$f":"IFERROR(INDEX(СписокЗанять[],MATCH(SUMPRODUCT((СписокЗанять[ДЕНЬ]=РозкладЗанять[[#Headers],[ПОНЕДІЛОК]])*(ROUNDDOWN($B52,10)>=ROUNDDOWN(СписокЗанять[ЧАС ПОЧАТКУ],10))*($B52<=СписокЗанять[ЧАС ЗАВЕРШЕННЯ]),СписокЗанять[УНІКАЛЬНІ]),СписокЗанять[УНІКАЛЬНІ],0),2),0)","v":0},{"$f":"IFERROR(INDEX(СписокЗанять[],MATCH(SUMPRODUCT((СписокЗанять[ДЕНЬ]=РозкладЗанять[[#Headers],[ВІВТОРОК]])*(ROUNDDOWN($B52,10)>=ROUNDDOWN(СписокЗанять[ЧАС ПОЧАТКУ],10))*($B52<=СписокЗанять[ЧАС ЗАВЕРШЕННЯ]),СписокЗанять[УНІКАЛЬНІ]),СписокЗанять[УНІКАЛЬНІ],0),2),0)","v":0},{"$f":"IFERROR(INDEX(СписокЗанять[],MATCH(SUMPRODUCT((СписокЗанять[ДЕНЬ]=РозкладЗанять[[#Headers],[СЕРЕДА]])*(ROUNDDOWN($B52,10)>=ROUNDDOWN(СписокЗанять[ЧАС ПОЧАТКУ],10))*($B52<=СписокЗанять[ЧАС ЗАВЕРШЕННЯ]),СписокЗанять[УНІКАЛЬНІ]),СписокЗанять[УНІКАЛЬНІ],0),2),0)","v":0},{"$f":"IFERROR(INDEX(СписокЗанять[],MATCH(SUMPRODUCT((СписокЗанять[ДЕНЬ]=РозкладЗанять[[#Headers],[ЧЕТВЕР]])*(ROUNDDOWN($B52,10)>=ROUNDDOWN(СписокЗанять[ЧАС ПОЧАТКУ],10))*($B52<=СписокЗанять[ЧАС ЗАВЕРШЕННЯ]),СписокЗанять[УНІКАЛЬНІ]),СписокЗанять[УНІКАЛЬНІ],0),2),0)","v":0},{"$f":"IFERROR(INDEX(СписокЗанять[],MATCH(SUMPRODUCT((СписокЗанять[ДЕНЬ]=РозкладЗанять[[#Headers],[П’ЯТНИЦЯ]])*(ROUNDDOWN($B52,10)>=ROUNDDOWN(СписокЗанять[ЧАС ПОЧАТКУ],10))*($B52<=СписокЗанять[ЧАС ЗАВЕРШЕННЯ]),СписокЗанять[УНІКАЛЬНІ]),СписокЗанять[УНІКАЛЬНІ],0),2),0)","v":0},{"$f":"IFERROR(INDEX(СписокЗанять[],MATCH(SUMPRODUCT((СписокЗанять[ДЕНЬ]=РозкладЗанять[[#Headers],[СУБОТА]])*(ROUNDDOWN($B52,10)>=ROUNDDOWN(СписокЗанять[ЧАС ПОЧАТКУ],10))*($B52<=СписокЗанять[ЧАС ЗАВЕРШЕННЯ]),СписокЗанять[УНІКАЛЬНІ]),СписокЗанять[УНІКАЛЬНІ],0),2),0)","v":0}]
[null,"20:15:00",{"$f":"IFERROR(INDEX(СписокЗанять[],MATCH(SUMPRODUCT((СписокЗанять[ДЕНЬ]=РозкладЗанять[[#Headers],[НЕДІЛЯ]])*(ROUNDDOWN($B53,10)>=ROUNDDOWN(СписокЗанять[ЧАС ПОЧАТКУ],10))*($B53<=СписокЗанять[ЧАС ЗАВЕРШЕННЯ]),СписокЗанять[УНІКАЛЬНІ]),СписокЗанять[УНІКАЛЬНІ],0),2),0)","v":0},{"$f":"IFERROR(INDEX(СписокЗанять[],MATCH(SUMPRODUCT((СписокЗанять[ДЕНЬ]=РозкладЗанять[[#Headers],[ПОНЕДІЛОК]])*(ROUNDDOWN($B53,10)>=ROUNDDOWN(СписокЗанять[ЧАС ПОЧАТКУ],10))*($B53<=СписокЗанять[ЧАС ЗАВЕРШЕННЯ]),СписокЗанять[УНІКАЛЬНІ]),СписокЗанять[УНІКАЛЬНІ],0),2),0)","v":0},{"$f":"IFERROR(INDEX(СписокЗанять[],MATCH(SUMPRODUCT((СписокЗанять[ДЕНЬ]=РозкладЗанять[[#Headers],[ВІВТОРОК]])*(ROUNDDOWN($B53,10)>=ROUNDDOWN(СписокЗанять[ЧАС ПОЧАТКУ],10))*($B53<=СписокЗанять[ЧАС ЗАВЕРШЕННЯ]),СписокЗанять[УНІКАЛЬНІ]),СписокЗанять[УНІКАЛЬНІ],0),2),0)","v":0},{"$f":"IFERROR(INDEX(СписокЗанять[],MATCH(SUMPRODUCT((СписокЗанять[ДЕНЬ]=РозкладЗанять[[#Headers],[СЕРЕДА]])*(ROUNDDOWN($B53,10)>=ROUNDDOWN(СписокЗанять[ЧАС ПОЧАТКУ],10))*($B53<=СписокЗанять[ЧАС ЗАВЕРШЕННЯ]),СписокЗанять[УНІКАЛЬНІ]),СписокЗанять[УНІКАЛЬНІ],0),2),0)","v":0},{"$f":"IFERROR(INDEX(СписокЗанять[],MATCH(SUMPRODUCT((СписокЗанять[ДЕНЬ]=РозкладЗанять[[#Headers],[ЧЕТВЕР]])*(ROUNDDOWN($B53,10)>=ROUNDDOWN(СписокЗанять[ЧАС ПОЧАТКУ],10))*($B53<=СписокЗанять[ЧАС ЗАВЕРШЕННЯ]),СписокЗанять[УНІКАЛЬНІ]),СписокЗанять[УНІКАЛЬНІ],0),2),0)","v":0},{"$f":"IFERROR(INDEX(СписокЗанять[],MATCH(SUMPRODUCT((СписокЗанять[ДЕНЬ]=РозкладЗанять[[#Headers],[П’ЯТНИЦЯ]])*(ROUNDDOWN($B53,10)>=ROUNDDOWN(СписокЗанять[ЧАС ПОЧАТКУ],10))*($B53<=СписокЗанять[ЧАС ЗАВЕРШЕННЯ]),СписокЗанять[УНІКАЛЬНІ]),СписокЗанять[УНІКАЛЬНІ],0),2),0)","v":0},{"$f":"IFERROR(INDEX(СписокЗанять[],MATCH(SUMPRODUCT((СписокЗанять[ДЕНЬ]=РозкладЗанять[[#Headers],[СУБОТА]])*(ROUNDDOWN($B53,10)>=ROUNDDOWN(СписокЗанять[ЧАС ПОЧАТКУ],10))*($B53<=СписокЗанять[ЧАС ЗАВЕРШЕННЯ]),СписокЗанять[УНІКАЛЬНІ]),СписокЗанять[УНІКАЛЬНІ],0),2),0)","v":0}]
[null,"20:30:00",{"$f":"IFERROR(INDEX(СписокЗанять[],MATCH(SUMPRODUCT((СписокЗанять[ДЕНЬ]=РозкладЗанять[[#Headers],[НЕДІЛЯ]])*(ROUNDDOWN($B54,10)>=ROUNDDOWN(СписокЗанять[ЧАС ПОЧАТКУ],10))*($B54<=СписокЗанять[ЧАС ЗАВЕРШЕННЯ]),СписокЗанять[УНІКАЛЬНІ]),СписокЗанять[УНІКАЛЬНІ],0),2),0)","v":0},{"$f":"IFERROR(INDEX(СписокЗанять[],MATCH(SUMPRODUCT((СписокЗанять[ДЕНЬ]=РозкладЗанять[[#Headers],[ПОНЕДІЛОК]])*(ROUNDDOWN($B54,10)>=ROUNDDOWN(СписокЗанять[ЧАС ПОЧАТКУ],10))*($B54<=СписокЗанять[ЧАС ЗАВЕРШЕННЯ]),СписокЗанять[УНІКАЛЬНІ]),СписокЗанять[УНІКАЛЬНІ],0),2),0)","v":0},{"$f":"IFERROR(INDEX(СписокЗанять[],MATCH(SUMPRODUCT((СписокЗанять[ДЕНЬ]=РозкладЗанять[[#Headers],[ВІВТОРОК]])*(ROUNDDOWN($B54,10)>=ROUNDDOWN(СписокЗанять[ЧАС ПОЧАТКУ],10))*($B54<=СписокЗанять[ЧАС ЗАВЕРШЕННЯ]),СписокЗанять[УНІКАЛЬНІ]),СписокЗанять[УНІКАЛЬНІ],0),2),0)","v":0},{"$f":"IFERROR(INDEX(СписокЗанять[],MATCH(SUMPRODUCT((СписокЗанять[ДЕНЬ]=РозкладЗанять[[#Headers],[СЕРЕДА]])*(ROUNDDOWN($B54,10)>=ROUNDDOWN(СписокЗанять[ЧАС ПОЧАТКУ],10))*($B54<=СписокЗанять[ЧАС ЗАВЕРШЕННЯ]),СписокЗанять[УНІКАЛЬНІ]),СписокЗанять[УНІКАЛЬНІ],0),2),0)","v":0},{"$f":"IFERROR(INDEX(СписокЗанять[],MATCH(SUMPRODUCT((СписокЗанять[ДЕНЬ]=РозкладЗанять[[#Headers],[ЧЕТВЕР]])*(ROUNDDOWN($B54,10)>=ROUNDDOWN(СписокЗанять[ЧАС ПОЧАТКУ],10))*($B54<=СписокЗанять[ЧАС ЗАВЕРШЕННЯ]),СписокЗанять[УНІКАЛЬНІ]),СписокЗанять[УНІКАЛЬНІ],0),2),0)","v":0},{"$f":"IFERROR(INDEX(СписокЗанять[],MATCH(SUMPRODUCT((СписокЗанять[ДЕНЬ]=РозкладЗанять[[#Headers],[П’ЯТНИЦЯ]])*(ROUNDDOWN($B54,10)>=ROUNDDOWN(СписокЗанять[ЧАС ПОЧАТКУ],10))*($B54<=СписокЗанять[ЧАС ЗАВЕРШЕННЯ]),СписокЗанять[УНІКАЛЬНІ]),СписокЗанять[УНІКАЛЬНІ],0),2),0)","v":0},{"$f":"IFERROR(INDEX(СписокЗанять[],MATCH(SUMPRODUCT((СписокЗанять[ДЕНЬ]=РозкладЗанять[[#Headers],[СУБОТА]])*(ROUNDDOWN($B54,10)>=ROUNDDOWN(СписокЗанять[ЧАС ПОЧАТКУ],10))*($B54<=СписокЗанять[ЧАС ЗАВЕРШЕННЯ]),СписокЗанять[УНІКАЛЬНІ]),СписокЗанять[УНІКАЛЬНІ],0),2),0)","v":0}]
[null,"20:45:00",{"$f":"IFERROR(INDEX(СписокЗанять[],MATCH(SUMPRODUCT((СписокЗанять[ДЕНЬ]=РозкладЗанять[[#Headers],[НЕДІЛЯ]])*(ROUNDDOWN($B55,10)>=ROUNDDOWN(СписокЗанять[ЧАС ПОЧАТКУ],10))*($B55<=СписокЗанять[ЧАС ЗАВЕРШЕННЯ]),СписокЗанять[УНІКАЛЬНІ]),СписокЗанять[УНІКАЛЬНІ],0),2),0)","v":0},{"$f":"IFERROR(INDEX(СписокЗанять[],MATCH(SUMPRODUCT((СписокЗанять[ДЕНЬ]=РозкладЗанять[[#Headers],[ПОНЕДІЛОК]])*(ROUNDDOWN($B55,10)>=ROUNDDOWN(СписокЗанять[ЧАС ПОЧАТКУ],10))*($B55<=СписокЗанять[ЧАС ЗАВЕРШЕННЯ]),СписокЗанять[УНІКАЛЬНІ]),СписокЗанять[УНІКАЛЬНІ],0),2),0)","v":0},{"$f":"IFERROR(INDEX(СписокЗанять[],MATCH(SUMPRODUCT((СписокЗанять[ДЕНЬ]=РозкладЗанять[[#Headers],[ВІВТОРОК]])*(ROUNDDOWN($B55,10)>=ROUNDDOWN(СписокЗанять[ЧАС ПОЧАТКУ],10))*($B55<=СписокЗанять[ЧАС ЗАВЕРШЕННЯ]),СписокЗанять[УНІКАЛЬНІ]),СписокЗанять[УНІКАЛЬНІ],0),2),0)","v":0},{"$f":"IFERROR(INDEX(СписокЗанять[],MATCH(SUMPRODUCT((СписокЗанять[ДЕНЬ]=РозкладЗанять[[#Headers],[СЕРЕДА]])*(ROUNDDOWN($B55,10)>=ROUNDDOWN(СписокЗанять[ЧАС ПОЧАТКУ],10))*($B55<=СписокЗанять[ЧАС ЗАВЕРШЕННЯ]),СписокЗанять[УНІКАЛЬНІ]),СписокЗанять[УНІКАЛЬНІ],0),2),0)","v":0},{"$f":"IFERROR(INDEX(СписокЗанять[],MATCH(SUMPRODUCT((СписокЗанять[ДЕНЬ]=РозкладЗанять[[#Headers],[ЧЕТВЕР]])*(ROUNDDOWN($B55,10)>=ROUNDDOWN(СписокЗанять[ЧАС ПОЧАТКУ],10))*($B55<=СписокЗанять[ЧАС ЗАВЕРШЕННЯ]),СписокЗанять[УНІКАЛЬНІ]),СписокЗанять[УНІКАЛЬНІ],0),2),0)","v":0},{"$f":"IFERROR(INDEX(СписокЗанять[],MATCH(SUMPRODUCT((СписокЗанять[ДЕНЬ]=РозкладЗанять[[#Headers],[П’ЯТНИЦЯ]])*(ROUNDDOWN($B55,10)>=ROUNDDOWN(СписокЗанять[ЧАС ПОЧАТКУ],10))*($B55<=СписокЗанять[ЧАС ЗАВЕРШЕННЯ]),СписокЗанять[УНІКАЛЬНІ]),СписокЗанять[УНІКАЛЬНІ],0),2),0)","v":0},{"$f":"IFERROR(INDEX(СписокЗанять[],MATCH(SUMPRODUCT((СписокЗанять[ДЕНЬ]=РозкладЗанять[[#Headers],[СУБОТА]])*(ROUNDDOWN($B55,10)>=ROUNDDOWN(СписокЗанять[ЧАС ПОЧАТКУ],10))*($B55<=СписокЗанять[ЧАС ЗАВЕРШЕННЯ]),СписокЗанять[УНІКАЛЬНІ]),СписокЗанять[УНІКАЛЬНІ],0),2),0)","v":0}]
[null,"21:00:00",{"$f":"IFERROR(INDEX(СписокЗанять[],MATCH(SUMPRODUCT((СписокЗанять[ДЕНЬ]=РозкладЗанять[[#Headers],[НЕДІЛЯ]])*(ROUNDDOWN($B56,10)>=ROUNDDOWN(СписокЗанять[ЧАС ПОЧАТКУ],10))*($B56<=СписокЗанять[ЧАС ЗАВЕРШЕННЯ]),СписокЗанять[УНІКАЛЬНІ]),СписокЗанять[УНІКАЛЬНІ],0),2),0)","v":0},{"$f":"IFERROR(INDEX(СписокЗанять[],MATCH(SUMPRODUCT((СписокЗанять[ДЕНЬ]=РозкладЗанять[[#Headers],[ПОНЕДІЛОК]])*(ROUNDDOWN($B56,10)>=ROUNDDOWN(СписокЗанять[ЧАС ПОЧАТКУ],10))*($B56<=СписокЗанять[ЧАС ЗАВЕРШЕННЯ]),СписокЗанять[УНІКАЛЬНІ]),СписокЗанять[УНІКАЛЬНІ],0),2),0)","v":0},{"$f":"IFERROR(INDEX(СписокЗанять[],MATCH(SUMPRODUCT((СписокЗанять[ДЕНЬ]=РозкладЗанять[[#Headers],[ВІВТОРОК]])*(ROUNDDOWN($B56,10)>=ROUNDDOWN(СписокЗанять[ЧАС ПОЧАТКУ],10))*($B56<=СписокЗанять[ЧАС ЗАВЕРШЕННЯ]),СписокЗанять[УНІКАЛЬНІ]),СписокЗанять[УНІКАЛЬНІ],0),2),0)","v":0},{"$f":"IFERROR(INDEX(СписокЗанять[],MATCH(SUMPRODUCT((СписокЗанять[ДЕНЬ]=РозкладЗанять[[#Headers],[СЕРЕДА]])*(ROUNDDOWN($B56,10)>=ROUNDDOWN(СписокЗанять[ЧАС ПОЧАТКУ],10))*($B56<=СписокЗанять[ЧАС ЗАВЕРШЕННЯ]),СписокЗанять[УНІКАЛЬНІ]),СписокЗанять[УНІКАЛЬНІ],0),2),0)","v":0},{"$f":"IFERROR(INDEX(СписокЗанять[],MATCH(SUMPRODUCT((СписокЗанять[ДЕНЬ]=РозкладЗанять[[#Headers],[ЧЕТВЕР]])*(ROUNDDOWN($B56,10)>=ROUNDDOWN(СписокЗанять[ЧАС ПОЧАТКУ],10))*($B56<=СписокЗанять[ЧАС ЗАВЕРШЕННЯ]),СписокЗанять[УНІКАЛЬНІ]),СписокЗанять[УНІКАЛЬНІ],0),2),0)","v":0},{"$f":"IFERROR(INDEX(СписокЗанять[],MATCH(SUMPRODUCT((СписокЗанять[ДЕНЬ]=РозкладЗанять[[#Headers],[П’ЯТНИЦЯ]])*(ROUNDDOWN($B56,10)>=ROUNDDOWN(СписокЗанять[ЧАС ПОЧАТКУ],10))*($B56<=СписокЗанять[ЧАС ЗАВЕРШЕННЯ]),СписокЗанять[УНІКАЛЬНІ]),СписокЗанять[УНІКАЛЬНІ],0),2),0)","v":0},{"$f":"IFERROR(INDEX(СписокЗанять[],MATCH(SUMPRODUCT((СписокЗанять[ДЕНЬ]=РозкладЗанять[[#Headers],[СУБОТА]])*(ROUNDDOWN($B56,10)>=ROUNDDOWN(СписокЗанять[ЧАС ПОЧАТКУ],10))*($B56<=СписокЗанять[ЧАС ЗАВЕРШЕННЯ]),СписокЗанять[УНІКАЛЬНІ]),СписокЗанять[УНІКАЛЬНІ],0),2),0)","v":0}]

{"sheet":"Список занять","index":1,"n_rows":10,"n_cols":8,"rows_kept":10,"merged":[[0,1,0,5],[0,6,0,7]]}
[null,"СПИСОК ЗАНЯТЬ",{"$nulls":4},"Розклад занять"]
[null,"ЗАНЯТТЯ","Код","ДЕНЬ","РОЗТАШУВАННЯ","ЧАС ПОЧАТКУ","ЧАС ЗАВЕРШЕННЯ","УНІКАЛЬНІ"]
[null,"Складання технічної документації","ТЕХД","ПОНЕДІЛОК","Корпус А","13:00:00","14:00:00",{"$f":"ROW()-ROW(СписокЗанять[[#Headers],[УНІКАЛЬНІ]])","v":1}]
[null,"Складання технічної документації","ТЕХД","СЕРЕДА","Корпус А","13:00:00","14:00:00",{"$f":"ROW()-ROW(СписокЗанять[[#Headers],[УНІКАЛЬНІ]])","v":2}]
[null,"Ораторське мистецтво","ОР","ПОНЕДІЛОК","Корпус Б","16:00:00","17:00:00",{"$f":"ROW()-ROW(СписокЗанять[[#Headers],[УНІКАЛЬНІ]])","v":3}]
[null,"Фізкультура","ФІЗ","ВІВТОРОК","Корпус Б","11:00:00","12:00:00",{"$f":"ROW()-ROW(СписокЗанять[[#Headers],[УНІКАЛЬНІ]])","v":4}]
[null,"Фізкультура","ФІЗ","ЧЕТВЕР","Корпус Б","11:00:00","12:00:00",{"$f":"ROW()-ROW(СписокЗанять[[#Headers],[УНІКАЛЬНІ]])","v":5}]
[null,"Алгебра","АЛГ","ПОНЕДІЛОК","Корпус В","08:10:00","09:15:00",{"$f":"ROW()-ROW(СписокЗанять[[#Headers],[УНІКАЛЬНІ]])","v":6}]
[null,"Алгебра","АЛГ","СЕРЕДА","Корпус В","08:10:00","09:15:00",{"$f":"ROW()-ROW(СписокЗанять[[#Headers],[УНІКАЛЬНІ]])","v":7}]
[null,"Алгебра","АЛГ","П’ЯТНИЦЯ","Корпус В","08:10:00","09:15:00",{"$f":"ROW()-ROW(СписокЗанять[[#Headers],[УНІКАЛЬНІ]])","v":8}]